{"text_format":"1","workbook":"xlsx","n_sheets":8,"sheets":["A. Overview","B. Engagements","C. Invoice Details","D. Breakdown Details","Reference","Agency Structure","Sheet1","Named Ranges"],"not_rendered":{"charts":0,"images":3,"macros":1,"external_links":0,"defined_names":29,"comments":0,"pivot_tables":0},"unopened":[],"bounds":{"document_bytes":16777216,"sheet_cells":100000,"rows_first":2000,"rows_last":500,"rows_between":2000,"halvings":0,"cell_chars":16384,"cell_head_chars":4096},"cells_cut":0,"cells_raw":0,"read":"whole","date_system":"1900"}

{"sheet":"A. Overview","index":0,"n_rows":74,"n_cols":7,"rows_kept":74,"cut":false,"hidden":false,"merged":[[22,1,22,6],[9,3,9,6],[0,1,0,7],[3,2,3,6],[6,2,6,6],[7,3,7,6],[8,3,8,6],[10,3,10,6],[14,2,14,6],[16,2,16,4],[16,5,16,6],[11,3,11,6],[17,2,17,4],[17,5,17,6],[15,2,15,4],[15,5,15,6],[23,1,23,6],[30,1,30,2],[31,1,31,2],[34,2,54,2],[34,1,54,1],[25,1,27,1],[25,6,27,6],[27,3,27,5],[26,3,26,5],[25,3,25,5],[35,4,35,6],[47,4,47,6],[55,2,58,2],[55,1,58,1],[66,4,66,6],[67,4,67,6],[69,4,69,6],[58,4,58,6],[59,4,59,6],[64,4,64,6],[65,4,65,6],[56,4,56,6],[60,4,60,6],[61,4,61,6],[62,4,62,6],[68,4,68,6],[70,4,70,6],[59,2,73,2],[59,1,73,1],[63,4,63,6],[36,4,36,6],[37,4,37,6],[38,4,38,6],[39,4,39,6],[40,4,40,6],[41,4,41,6],[42,4,42,6],[43,4,43,6],[44,4,44,6],[45,4,45,6],[46,4,46,6],[57,4,57,6],[71,4,71,6],[72,4,72,6],[73,4,73,6],[30,4,30,6],[31,4,31,6],[32,4,32,6],[33,4,33,6],[34,4,34,6],[48,4,48,6],[49,4,49,6],[50,4,50,6],[51,4,51,6],[52,4,52,6],[53,4,53,6],[54,4,54,6],[55,4,55,6]]}
[null,"BAS & ICT Consulting Probity Data Request - Overview"]
[]
[]
[null,null,"Please follow the instructions below to fill in this form"]
[]
[]
[null,null,"Contact Details"]
[null,null,"Company Name"]
[null,null,"Contact Name"]
[null,null,"Contract Phone Number"]
[null,null,"Email Address"]
[null,null,"Reporting Period"]
[]
[]
[null,null,"Overall Summary"]
[null,null,"Total Number of Engagements reported this period",null,null,{"$f":"IF(COUNTA('B. Engagements'!D4:D500)=0,\"\",COUNTA('B. Engagements'!D4:D473))","v":""}]
[null,null,"Total Invoiced Amount reported this period (AUD, excl.GST)",null,null,{"$f":"SUM('C. Invoice Details'!C4:C489)","v":0}]
[null,null,"Total Breakdown amount reported (AUD, excl. GST)",null,null,{"$f":"SUM('D. Breakdown Details'!N4:N487)","v":0}]
[]
[]
[]
[]
[null,"General Instructions"]
[null,"The purpose of this template is to enable Management Consulting Suppliers to report on their engagements with NSW Government, providing information about the cost of each project and the resources delivered. Please consider the following instructions before you fill in the file.\n\n1. All $ amounts should be reported in AUD, exclusive of GST.\n2. The request includes all engagements across all NSW Government Clusters and Agencies, excluding all GOCs (Government owned corporations) and SOCs (State owned corporations).\n3.The request includes all business advisory services probity engagements (6c) and ICT Consulting engagements. For further details please refer to Guide for BAS & ICT Suppliers FAQ.\n4. This is a monthly report. Please complete all information related to a particular month and submit by 15th of the following month.\n5. Please make sure the data you submit is accurate and complete. A report with missing data or errors will be returned to the suppliers and it will affect suppliers' overall performance.\n"]
[]
[null,"Cell Legend","Table Header","Table Header: For informational purposes - do not edit",null,null,"Please do NOT change the format or structure of this document. \nPlease do NOT add any rows or columns to this document except where indicated."]
[null,null,"Supplier Response Field","Supplier Response: For Suppliers to enter their responses - editable"]
[null,null,"Calculated Field","These cells are locked and automatically populated, no data input from your side is required. Please do not attempt to modify them"]
[]
[]
[null,"Worksheet",null,"Column","Specific Instructions"]
[null,"Instructions",null,null,"Supplier to review. No response required."]
[null,"A","Overview","E","1. Please complete your contact details"]
[null,null,"Reference\n","ALL","1. Please ensure that you are familiar with the Engagement type categories and the roles descriptions as they appear throughout this document\n2. Please review and use the clusters and agencies' names as listed"]
[null,"B","Engagements","ALL","Each month, this tab should include only new or modified engagements. Previously reported engagements should only be reported here if there has been a change to the Pricing Model, Engagement Cost, End date, or Status."]
[null,null,null,"A","Please enter whether the engagement is \"New\" or \"Update to an existing engagement\""]
[null,null,null,"B","Please enter the Engagement ID or SoW Number. "]
[null,null,null,"C","Please enter Supplier Project Code. This is the identifier if the project and all data will be linked to this number"]
[null,null,null,"D","Please enter the Engagement name as per Engagement Letter"]
[null,null,null,"E","Please enter the Engagement description at a high level"]
[null,null,null,"F","Please select from the dropdown menu if the engagement was won through a competitive bidding process or not"]
[null,null,null,"G","Please select if the project is an Assignment or Secondment type of engagement, as described in the 'Reference' tab"]
[null,null,null,"H","Please select pricing model from the dropdown menu"]
[null,null,null,"I","Please select the type of engagement from the dropdown menu (refer to definitions in the 'Reference' tab)"]
[null,null,null,"J","Please select the type of service from the dropdown menu (refer to definitions in the 'Reference' tab)"]
[null,null,null,"K","Please provide the expected start date of this engagement as per engagement Letter or SoW"]
[null,null,null,"L","Please provide the expected end date of this engagement  as per engagement Letter or SoW"]
[null,null,null,"M","Please provide which Framework this engagement applies to. This will be automated depending on the start date, but can be modified. "]
[null,null,null,"N","Please provide engagement sponsor's name and email address (NSW Government) as per engagement Letter or SoW"]
[null,null,null,"O","Please select the Cluster you provided consulting services on this engagement from the dropdown menu. A full list of Clusters and Agencies can be found in the tab 'Agency Structure'"]
[null,null,null,"P","Please select the Agency you did provide consulting services on this engagement from the dropdown menu. A full list of Clusters and Agencies can be found in the tab 'Agency Structure'"]
[null,null,null,"Q","Please enter the total estimated engagement cost as per Engagement Letter or SoW"]
[null,null,null,"R","Please enter your ABN (ABN to raise the invoice)"]
[null,null,null,"S","Please enter the status of engagement"]
[null,null,null,"T","Please add any comments about this engagement in this column"]
[null,"C","Invoice Details","A","Please enter Supplier Project Code"]
[null,null,null,"B","Please enter invoice number"]
[null,null,null,"C","Please enter the total invoiced amount (excl. GST)"]
[null,null,null,"D","Please add any comments about this invoice"]
[null,"D","Breakdown Details","A","Please enter Supplier Project Code"]
[null,null,null,"B","Please enter the invoice number"]
[null,null,null,"C","Please enter the invoice line item number"]
[null,null,null,"D","Please select the invoice type from the dropdown"]
[null,null,null,"E","Please enter the first name of the resource working on this engagement"]
[null,null,null,"F","Please enter the last name of the resource working on this engagement"]
[null,null,null,"G","Please select the equivalent NSW Government resource role from the dropdown menu"]
[null,null,null,"H","Please enter the Daily rate proposed on this project by this resource "]
[null,null,null,"I","Please enter in the number of Days proposed on this project by this resource "]
[null,null,null,"J","Please enter if there is a pre-approval to bill rates higher than capped for the particular resource"]
[null,null,null,"K","Please select the disbursement billing methodology from the dropdown menu"]
[null,null,null,"L","Please select the expense type from the dropdown menu"]
[null,null,null,"M","Please select if specified resource were  billable or non-billable "]
[null,null,null,"N","Please enter the amount invoiced for this resource or expense"]
[null,null,null,"O","Please add any comments about this resource or expense"]

{"sheet":"B. Engagements","index":1,"n_rows":473,"n_cols":20,"rows_kept":473,"cut":false,"hidden":false,"merged":[[0,0,0,19]]}
["BAS Probity Data Request - Engagements"]
["Mandatory\nInfo: Report Only New Engagements or changes to existing engagements.","Mandatory","Non-Mandatory","Non-Mandatory","Non-Mandatory","Mandatory\nuse DropDown","Mandatory\nUse DropDown","Mandatory\nUse DropDown","Mandatory\nUse DropDown","Mandatory\nUse DropDown","Mandatory","Non-Mandatory","Mandatory\nPre-Selected, Change if required","Mandatory","Mandatory\nUse DropDown","Mandatory\nUse DropDown","Mandatory","Mandatory","Mandatory\nUse DropDown","Non-Mandatory\nUse to provide any additional info/ clarifications"]
["New Engagement (or) Update to Engagement details ?","Supplier Project Code","Engagement ID or SOW Number","Engagement Name\n(As per Engagement Letter)","Engagement Description\n(high level)","The engagement was won through competitive bidding?","Assignment / \nSecondment","Pricing Model","Consulting Engagement Type \n(Category)","Consulting Service Type\n(Sub-category)","Engagement Start Date\n(as per SOW or Engagement Letter)","Engagement End Date\n(as per SOW or Engagement Letter)","Under FrameWork","NSW Engagement Leader and Email","Cluster","Agency","Total Estimated Engagement Cost (As per SoW or Eng. Letter, $, excl. GST ) ","Suppliers' ABN","Status","Comments"]
[]
[null,null,null,null,null,null,null,null,null,null,null,null,{"$f":"IF(K5=\"\",\"\",_xlfn.XLOOKUP(K5,'Named Ranges'!$BC$4:$BC$6,'Named Ranges'!$BA$4:$BA$6,\"No\",-1,1))","v":""}]
[null,null,null,null,null,null,null,null,null,null,null,null,{"$f":"IF(K6=\"\",\"\",_xlfn.XLOOKUP(K6,'Named Ranges'!$BC$4:$BC$6,'Named Ranges'!$BA$4:$BA$6,\"No\",-1,1))","v":""}]
[null,null,null,null,null,null,null,null,null,null,null,null,{"$f":"IF(K7=\"\",\"\",_xlfn.XLOOKUP(K7,'Named Ranges'!$BC$4:$BC$6,'Named Ranges'!$BA$4:$BA$6,\"No\",-1,1))","v":""}]
[null,null,null,null,null,null,null,null,null,null,null,null,{"$f":"IF(K8=\"\",\"\",_xlfn.XLOOKUP(K8,'Named Ranges'!$BC$4:$BC$6,'Named Ranges'!$BA$4:$BA$6,\"No\",-1,1))","v":""}]
[null,null,null,null,null,null,null,null,null,null,null,null,{"$f":"IF(K9=\"\",\"\",_xlfn.XLOOKUP(K9,'Named Ranges'!$BC$4:$BC$6,'Named Ranges'!$BA$4:$BA$6,\"No\",-1,1))","v":""}]
[null,null,null,null,null,null,null,null,null,null,null,null,{"$f":"IF(K10=\"\",\"\",_xlfn.XLOOKUP(K10,'Named Ranges'!$BC$4:$BC$6,'Named Ranges'!$BA$4:$BA$6,\"No\",-1,1))","v":""}]
[null,null,null,null,null,null,null,null,null,null,null,null,{"$f":"IF(K11=\"\",\"\",_xlfn.XLOOKUP(K11,'Named Ranges'!$BC$4:$BC$6,'Named Ranges'!$BA$4:$BA$6,\"No\",-1,1))","v":""}]
[null,null,null,null,null,null,null,null,null,null,null,null,{"$f":"IF(K12=\"\",\"\",_xlfn.XLOOKUP(K12,'Named Ranges'!$BC$4:$BC$6,'Named Ranges'!$BA$4:$BA$6,\"No\",-1,1))","v":""}]
[null,null,null,null,null,null,null,null,null,null,null,null,{"$f":"IF(K13=\"\",\"\",_xlfn.XLOOKUP(K13,'Named Ranges'!$BC$4:$BC$6,'Named Ranges'!$BA$4:$BA$6,\"No\",-1,1))","v":""}]
[null,null,null,null,null,null,null,null,null,null,null,null,{"$f":"IF(K14=\"\",\"\",_xlfn.XLOOKUP(K14,'Named Ranges'!$BC$4:$BC$6,'Named Ranges'!$BA$4:$BA$6,\"No\",-1,1))","v":""}]
[null,null,null,null,null,null,null,null,null,null,null,null,{"$f":"IF(K15=\"\",\"\",_xlfn.XLOOKUP(K15,'Named Ranges'!$BC$4:$BC$6,'Named Ranges'!$BA$4:$BA$6,\"No\",-1,1))","v":""}]
[null,null,null,null,null,null,null,null,null,null,null,null,{"$f":"IF(K16=\"\",\"\",_xlfn.XLOOKUP(K16,'Named Ranges'!$BC$4:$BC$6,'Named Ranges'!$BA$4:$BA$6,\"No\",-1,1))","v":""}]
[null,null,null,null,null,null,null,null,null,null,null,null,{"$f":"IF(K17=\"\",\"\",_xlfn.XLOOKUP(K17,'Named Ranges'!$BC$4:$BC$6,'Named Ranges'!$BA$4:$BA$6,\"No\",-1,1))","v":""}]
[null,null,null,null,null,null,null,null,null,null,null,null,{"$f":"IF(K18=\"\",\"\",_xlfn.XLOOKUP(K18,'Named Ranges'!$BC$4:$BC$6,'Named Ranges'!$BA$4:$BA$6,\"No\",-1,1))","v":""}]
[null,null,null,null,null,null,null,null,null,null,null,null,{"$f":"IF(K19=\"\",\"\",_xlfn.XLOOKUP(K19,'Named Ranges'!$BC$4:$BC$6,'Named Ranges'!$BA$4:$BA$6,\"No\",-1,1))","v":""}]
[null,null,null,null,null,null,null,null,null,null,null,null,{"$f":"IF(K20=\"\",\"\",_xlfn.XLOOKUP(K20,'Named Ranges'!$BC$4:$BC$6,'Named Ranges'!$BA$4:$BA$6,\"No\",-1,1))","v":""}]
[null,null,null,null,null,null,null,null,null,null,null,null,{"$f":"IF(K21=\"\",\"\",_xlfn.XLOOKUP(K21,'Named Ranges'!$BC$4:$BC$6,'Named Ranges'!$BA$4:$BA$6,\"No\",-1,1))","v":""}]
[null,null,null,null,null,null,null,null,null,null,null,null,{"$f":"IF(K22=\"\",\"\",_xlfn.XLOOKUP(K22,'Named Ranges'!$BC$4:$BC$6,'Named Ranges'!$BA$4:$BA$6,\"No\",-1,1))","v":""}]
[null,null,null,null,null,null,null,null,null,null,null,null,{"$f":"IF(K23=\"\",\"\",_xlfn.XLOOKUP(K23,'Named Ranges'!$BC$4:$BC$6,'Named Ranges'!$BA$4:$BA$6,\"No\",-1,1))","v":""}]
[null,null,null,null,null,null,null,null,null,null,null,null,{"$f":"IF(K24=\"\",\"\",_xlfn.XLOOKUP(K24,'Named Ranges'!$BC$4:$BC$6,'Named Ranges'!$BA$4:$BA$6,\"No\",-1,1))","v":""}]
[null,null,null,null,null,null,null,null,null,null,null,null,{"$f":"IF(K25=\"\",\"\",_xlfn.XLOOKUP(K25,'Named Ranges'!$BC$4:$BC$6,'Named Ranges'!$BA$4:$BA$6,\"No\",-1,1))","v":""}]
[null,null,null,null,null,null,null,null,null,null,null,null,{"$f":"IF(K26=\"\",\"\",_xlfn.XLOOKUP(K26,'Named Ranges'!$BC$4:$BC$6,'Named Ranges'!$BA$4:$BA$6,\"No\",-1,1))","v":""}]
[null,null,null,null,null,null,null,null,null,null,null,null,{"$f":"IF(K27=\"\",\"\",_xlfn.XLOOKUP(K27,'Named Ranges'!$BC$4:$BC$6,'Named Ranges'!$BA$4:$BA$6,\"No\",-1,1))","v":""}]
[null,null,null,null,null,null,null,null,null,null,null,null,{"$f":"IF(K28=\"\",\"\",_xlfn.XLOOKUP(K28,'Named Ranges'!$BC$4:$BC$6,'Named Ranges'!$BA$4:$BA$6,\"No\",-1,1))","v":""}]
[null,null,null,null,null,null,null,null,null,null,null,null,{"$f":"IF(K29=\"\",\"\",_xlfn.XLOOKUP(K29,'Named Ranges'!$BC$4:$BC$6,'Named Ranges'!$BA$4:$BA$6,\"No\",-1,1))","v":""}]
[null,null,null,null,null,null,null,null,null,null,null,null,{"$f":"IF(K30=\"\",\"\",_xlfn.XLOOKUP(K30,'Named Ranges'!$BC$4:$BC$6,'Named Ranges'!$BA$4:$BA$6,\"No\",-1,1))","v":""}]
[null,null,null,null,null,null,null,null,null,null,null,null,{"$f":"IF(K31=\"\",\"\",_xlfn.XLOOKUP(K31,'Named Ranges'!$BC$4:$BC$6,'Named Ranges'!$BA$4:$BA$6,\"No\",-1,1))","v":""}]
[null,null,null,null,null,null,null,null,null,null,null,null,{"$f":"IF(K32=\"\",\"\",_xlfn.XLOOKUP(K32,'Named Ranges'!$BC$4:$BC$6,'Named Ranges'!$BA$4:$BA$6,\"No\",-1,1))","v":""}]
[null,null,null,null,null,null,null,null,null,null,null,null,{"$f":"IF(K33=\"\",\"\",_xlfn.XLOOKUP(K33,'Named Ranges'!$BC$4:$BC$6,'Named Ranges'!$BA$4:$BA$6,\"No\",-1,1))","v":""}]
[null,null,null,null,null,null,null,null,null,null,null,null,{"$f":"IF(K34=\"\",\"\",_xlfn.XLOOKUP(K34,'Named Ranges'!$BC$4:$BC$6,'Named Ranges'!$BA$4:$BA$6,\"No\",-1,1))","v":""}]
[null,null,null,null,null,null,null,null,null,null,null,null,{"$f":"IF(K35=\"\",\"\",_xlfn.XLOOKUP(K35,'Named Ranges'!$BC$4:$BC$6,'Named Ranges'!$BA$4:$BA$6,\"No\",-1,1))","v":""}]
[null,null,null,null,null,null,null,null,null,null,null,null,{"$f":"IF(K36=\"\",\"\",_xlfn.XLOOKUP(K36,'Named Ranges'!$BC$4:$BC$6,'Named Ranges'!$BA$4:$BA$6,\"No\",-1,1))","v":""}]
[null,null,null,null,null,null,null,null,null,null,null,null,{"$f":"IF(K37=\"\",\"\",_xlfn.XLOOKUP(K37,'Named Ranges'!$BC$4:$BC$6,'Named Ranges'!$BA$4:$BA$6,\"No\",-1,1))","v":""}]
[null,null,null,null,null,null,null,null,null,null,null,null,{"$f":"IF(K38=\"\",\"\",_xlfn.XLOOKUP(K38,'Named Ranges'!$BC$4:$BC$6,'Named Ranges'!$BA$4:$BA$6,\"No\",-1,1))","v":""}]
[null,null,null,null,null,null,null,null,null,null,null,null,{"$f":"IF(K39=\"\",\"\",_xlfn.XLOOKUP(K39,'Named Ranges'!$BC$4:$BC$6,'Named Ranges'!$BA$4:$BA$6,\"No\",-1,1))","v":""}]
[null,null,null,null,null,null,null,null,null,null,null,null,{"$f":"IF(K40=\"\",\"\",_xlfn.XLOOKUP(K40,'Named Ranges'!$BC$4:$BC$6,'Named Ranges'!$BA$4:$BA$6,\"No\",-1,1))","v":""}]
[null,null,null,null,null,null,null,null,null,null,null,null,{"$f":"IF(K41=\"\",\"\",_xlfn.XLOOKUP(K41,'Named Ranges'!$BC$4:$BC$6,'Named Ranges'!$BA$4:$BA$6,\"No\",-1,1))","v":""}]
[null,null,null,null,null,null,null,null,null,null,null,null,{"$f":"IF(K42=\"\",\"\",_xlfn.XLOOKUP(K42,'Named Ranges'!$BC$4:$BC$6,'Named Ranges'!$BA$4:$BA$6,\"No\",-1,1))","v":""}]
[null,null,null,null,null,null,null,null,null,null,null,null,{"$f":"IF(K43=\"\",\"\",_xlfn.XLOOKUP(K43,'Named Ranges'!$BC$4:$BC$6,'Named Ranges'!$BA$4:$BA$6,\"No\",-1,1))","v":""}]
[null,null,null,null,null,null,null,null,null,null,null,null,{"$f":"IF(K44=\"\",\"\",_xlfn.XLOOKUP(K44,'Named Ranges'!$BC$4:$BC$6,'Named Ranges'!$BA$4:$BA$6,\"No\",-1,1))","v":""}]
[null,null,null,null,null,null,null,null,null,null,null,null,{"$f":"IF(K45=\"\",\"\",_xlfn.XLOOKUP(K45,'Named Ranges'!$BC$4:$BC$6,'Named Ranges'!$BA$4:$BA$6,\"No\",-1,1))","v":""}]
[null,null,null,null,null,null,null,null,null,null,null,null,{"$f":"IF(K46=\"\",\"\",_xlfn.XLOOKUP(K46,'Named Ranges'!$BC$4:$BC$6,'Named Ranges'!$BA$4:$BA$6,\"No\",-1,1))","v":""}]
[null,null,null,null,null,null,null,null,null,null,null,null,{"$f":"IF(K47=\"\",\"\",_xlfn.XLOOKUP(K47,'Named Ranges'!$BC$4:$BC$6,'Named Ranges'!$BA$4:$BA$6,\"No\",-1,1))","v":""}]
[null,null,null,null,null,null,null,null,null,null,null,null,{"$f":"IF(K48=\"\",\"\",_xlfn.XLOOKUP(K48,'Named Ranges'!$BC$4:$BC$6,'Named Ranges'!$BA$4:$BA$6,\"No\",-1,1))","v":""}]
[null,null,null,null,null,null,null,null,null,null,null,null,{"$f":"IF(K49=\"\",\"\",_xlfn.XLOOKUP(K49,'Named Ranges'!$BC$4:$BC$6,'Named Ranges'!$BA$4:$BA$6,\"No\",-1,1))","v":""}]
[null,null,null,null,null,null,null,null,null,null,null,null,{"$f":"IF(K50=\"\",\"\",_xlfn.XLOOKUP(K50,'Named Ranges'!$BC$4:$BC$6,'Named Ranges'!$BA$4:$BA$6,\"No\",-1,1))","v":""}]
[null,null,null,null,null,null,null,null,null,null,null,null,{"$f":"IF(K51=\"\",\"\",_xlfn.XLOOKUP(K51,'Named Ranges'!$BC$4:$BC$6,'Named Ranges'!$BA$4:$BA$6,\"No\",-1,1))","v":""}]
[null,null,null,null,null,null,null,null,null,null,null,null,{"$f":"IF(K52=\"\",\"\",_xlfn.XLOOKUP(K52,'Named Ranges'!$BC$4:$BC$6,'Named Ranges'!$BA$4:$BA$6,\"No\",-1,1))","v":""}]
[null,null,null,null,null,null,null,null,null,null,null,null,{"$f":"IF(K53=\"\",\"\",_xlfn.XLOOKUP(K53,'Named Ranges'!$BC$4:$BC$6,'Named Ranges'!$BA$4:$BA$6,\"No\",-1,1))","v":""}]
[null,null,null,null,null,null,null,null,null,null,null,null,{"$f":"IF(K54=\"\",\"\",_xlfn.XLOOKUP(K54,'Named Ranges'!$BC$4:$BC$6,'Named Ranges'!$BA$4:$BA$6,\"No\",-1,1))","v":""}]
[null,null,null,null,null,null,null,null,null,null,null,null,{"$f":"IF(K55=\"\",\"\",_xlfn.XLOOKUP(K55,'Named Ranges'!$BC$4:$BC$6,'Named Ranges'!$BA$4:$BA$6,\"No\",-1,1))","v":""}]
[null,null,null,null,null,null,null,null,null,null,null,null,{"$f":"IF(K56=\"\",\"\",_xlfn.XLOOKUP(K56,'Named Ranges'!$BC$4:$BC$6,'Named Ranges'!$BA$4:$BA$6,\"No\",-1,1))","v":""}]
[null,null,null,null,null,null,null,null,null,null,null,null,{"$f":"IF(K57=\"\",\"\",_xlfn.XLOOKUP(K57,'Named Ranges'!$BC$4:$BC$6,'Named Ranges'!$BA$4:$BA$6,\"No\",-1,1))","v":""}]
[null,null,null,null,null,null,null,null,null,null,null,null,{"$f":"IF(K58=\"\",\"\",_xlfn.XLOOKUP(K58,'Named Ranges'!$BC$4:$BC$6,'Named Ranges'!$BA$4:$BA$6,\"No\",-1,1))","v":""}]
[null,null,null,null,null,null,null,null,null,null,null,null,{"$f":"IF(K59=\"\",\"\",_xlfn.XLOOKUP(K59,'Named Ranges'!$BC$4:$BC$6,'Named Ranges'!$BA$4:$BA$6,\"No\",-1,1))","v":""}]
[null,null,null,null,null,null,null,null,null,null,null,null,{"$f":"IF(K60=\"\",\"\",_xlfn.XLOOKUP(K60,'Named Ranges'!$BC$4:$BC$6,'Named Ranges'!$BA$4:$BA$6,\"No\",-1,1))","v":""}]
[null,null,null,null,null,null,null,null,null,null,null,null,{"$f":"IF(K61=\"\",\"\",_xlfn.XLOOKUP(K61,'Named Ranges'!$BC$4:$BC$6,'Named Ranges'!$BA$4:$BA$6,\"No\",-1,1))","v":""}]
[null,null,null,null,null,null,null,null,null,null,null,null,{"$f":"IF(K62=\"\",\"\",_xlfn.XLOOKUP(K62,'Named Ranges'!$BC$4:$BC$6,'Named Ranges'!$BA$4:$BA$6,\"No\",-1,1))","v":""}]
[null,null,null,null,null,null,null,null,null,null,null,null,{"$f":"IF(K63=\"\",\"\",_xlfn.XLOOKUP(K63,'Named Ranges'!$BC$4:$BC$6,'Named Ranges'!$BA$4:$BA$6,\"No\",-1,1))","v":""}]
[null,null,null,null,null,null,null,null,null,null,null,null,{"$f":"IF(K64=\"\",\"\",_xlfn.XLOOKUP(K64,'Named Ranges'!$BC$4:$BC$6,'Named Ranges'!$BA$4:$BA$6,\"No\",-1,1))","v":""}]
[null,null,null,null,null,null,null,null,null,null,null,null,{"$f":"IF(K65=\"\",\"\",_xlfn.XLOOKUP(K65,'Named Ranges'!$BC$4:$BC$6,'Named Ranges'!$BA$4:$BA$6,\"No\",-1,1))","v":""}]
[null,null,null,null,null,null,null,null,null,null,null,null,{"$f":"IF(K66=\"\",\"\",_xlfn.XLOOKUP(K66,'Named Ranges'!$BC$4:$BC$6,'Named Ranges'!$BA$4:$BA$6,\"No\",-1,1))","v":""}]
[null,null,null,null,null,null,null,null,null,null,null,null,{"$f":"IF(K67=\"\",\"\",_xlfn.XLOOKUP(K67,'Named Ranges'!$BC$4:$BC$6,'Named Ranges'!$BA$4:$BA$6,\"No\",-1,1))","v":""}]
[null,null,null,null,null,null,null,null,null,null,null,null,{"$f":"IF(K68=\"\",\"\",_xlfn.XLOOKUP(K68,'Named Ranges'!$BC$4:$BC$6,'Named Ranges'!$BA$4:$BA$6,\"No\",-1,1))","v":""}]
[null,null,null,null,null,null,null,null,null,null,null,null,{"$f":"IF(K69=\"\",\"\",_xlfn.XLOOKUP(K69,'Named Ranges'!$BC$4:$BC$6,'Named Ranges'!$BA$4:$BA$6,\"No\",-1,1))","v":""}]
[null,null,null,null,null,null,null,null,null,null,null,null,{"$f":"IF(K70=\"\",\"\",_xlfn.XLOOKUP(K70,'Named Ranges'!$BC$4:$BC$6,'Named Ranges'!$BA$4:$BA$6,\"No\",-1,1))","v":""}]
[null,null,null,null,null,null,null,null,null,null,null,null,{"$f":"IF(K71=\"\",\"\",_xlfn.XLOOKUP(K71,'Named Ranges'!$BC$4:$BC$6,'Named Ranges'!$BA$4:$BA$6,\"No\",-1,1))","v":""}]
[null,null,null,null,null,null,null,null,null,null,null,null,{"$f":"IF(K72=\"\",\"\",_xlfn.XLOOKUP(K72,'Named Ranges'!$BC$4:$BC$6,'Named Ranges'!$BA$4:$BA$6,\"No\",-1,1))","v":""}]
[null,null,null,null,null,null,null,null,null,null,null,null,{"$f":"IF(K73=\"\",\"\",_xlfn.XLOOKUP(K73,'Named Ranges'!$BC$4:$BC$6,'Named Ranges'!$BA$4:$BA$6,\"No\",-1,1))","v":""}]
[null,null,null,null,null,null,null,null,null,null,null,null,{"$f":"IF(K74=\"\",\"\",_xlfn.XLOOKUP(K74,'Named Ranges'!$BC$4:$BC$6,'Named Ranges'!$BA$4:$BA$6,\"No\",-1,1))","v":""}]
[null,null,null,null,null,null,null,null,null,null,null,null,{"$f":"IF(K75=\"\",\"\",_xlfn.XLOOKUP(K75,'Named Ranges'!$BC$4:$BC$6,'Named Ranges'!$BA$4:$BA$6,\"No\",-1,1))","v":""}]
[null,null,null,null,null,null,null,null,null,null,null,null,{"$f":"IF(K76=\"\",\"\",_xlfn.XLOOKUP(K76,'Named Ranges'!$BC$4:$BC$6,'Named Ranges'!$BA$4:$BA$6,\"No\",-1,1))","v":""}]
[null,null,null,null,null,null,null,null,null,null,null,null,{"$f":"IF(K77=\"\",\"\",_xlfn.XLOOKUP(K77,'Named Ranges'!$BC$4:$BC$6,'Named Ranges'!$BA$4:$BA$6,\"No\",-1,1))","v":""}]
[null,null,null,null,null,null,null,null,null,null,null,null,{"$f":"IF(K78=\"\",\"\",_xlfn.XLOOKUP(K78,'Named Ranges'!$BC$4:$BC$6,'Named Ranges'!$BA$4:$BA$6,\"No\",-1,1))","v":""}]
[null,null,null,null,null,null,null,null,null,null,null,null,{"$f":"IF(K79=\"\",\"\",_xlfn.XLOOKUP(K79,'Named Ranges'!$BC$4:$BC$6,'Named Ranges'!$BA$4:$BA$6,\"No\",-1,1))","v":""}]
[null,null,null,null,null,null,null,null,null,null,null,null,{"$f":"IF(K80=\"\",\"\",_xlfn.XLOOKUP(K80,'Named Ranges'!$BC$4:$BC$6,'Named Ranges'!$BA$4:$BA$6,\"No\",-1,1))","v":""}]
[null,null,null,null,null,null,null,null,null,null,null,null,{"$f":"IF(K81=\"\",\"\",_xlfn.XLOOKUP(K81,'Named Ranges'!$BC$4:$BC$6,'Named Ranges'!$BA$4:$BA$6,\"No\",-1,1))","v":""}]
[null,null,null,null,null,null,null,null,null,null,null,null,{"$f":"IF(K82=\"\",\"\",_xlfn.XLOOKUP(K82,'Named Ranges'!$BC$4:$BC$6,'Named Ranges'!$BA$4:$BA$6,\"No\",-1,1))","v":""}]
[null,null,null,null,null,null,null,null,null,null,null,null,{"$f":"IF(K83=\"\",\"\",_xlfn.XLOOKUP(K83,'Named Ranges'!$BC$4:$BC$6,'Named Ranges'!$BA$4:$BA$6,\"No\",-1,1))","v":""}]
[null,null,null,null,null,null,null,null,null,null,null,null,{"$f":"IF(K84=\"\",\"\",_xlfn.XLOOKUP(K84,'Named Ranges'!$BC$4:$BC$6,'Named Ranges'!$BA$4:$BA$6,\"No\",-1,1))","v":""}]
[null,null,null,null,null,null,null,null,null,null,null,null,{"$f":"IF(K85=\"\",\"\",_xlfn.XLOOKUP(K85,'Named Ranges'!$BC$4:$BC$6,'Named Ranges'!$BA$4:$BA$6,\"No\",-1,1))","v":""}]
[null,null,null,null,null,null,null,null,null,null,null,null,{"$f":"IF(K86=\"\",\"\",_xlfn.XLOOKUP(K86,'Named Ranges'!$BC$4:$BC$6,'Named Ranges'!$BA$4:$BA$6,\"No\",-1,1))","v":""}]
[null,null,null,null,null,null,null,null,null,null,null,null,{"$f":"IF(K87=\"\",\"\",_xlfn.XLOOKUP(K87,'Named Ranges'!$BC$4:$BC$6,'Named Ranges'!$BA$4:$BA$6,\"No\",-1,1))","v":""}]
[null,null,null,null,null,null,null,null,null,null,null,null,{"$f":"IF(K88=\"\",\"\",_xlfn.XLOOKUP(K88,'Named Ranges'!$BC$4:$BC$6,'Named Ranges'!$BA$4:$BA$6,\"No\",-1,1))","v":""}]
[null,null,null,null,null,null,null,null,null,null,null,null,{"$f":"IF(K89=\"\",\"\",_xlfn.XLOOKUP(K89,'Named Ranges'!$BC$4:$BC$6,'Named Ranges'!$BA$4:$BA$6,\"No\",-1,1))","v":""}]
[null,null,null,null,null,null,null,null,null,null,null,null,{"$f":"IF(K90=\"\",\"\",_xlfn.XLOOKUP(K90,'Named Ranges'!$BC$4:$BC$6,'Named Ranges'!$BA$4:$BA$6,\"No\",-1,1))","v":""}]
[null,null,null,null,null,null,null,null,null,null,null,null,{"$f":"IF(K91=\"\",\"\",_xlfn.XLOOKUP(K91,'Named Ranges'!$BC$4:$BC$6,'Named Ranges'!$BA$4:$BA$6,\"No\",-1,1))","v":""}]
[null,null,null,null,null,null,null,null,null,null,null,null,{"$f":"IF(K92=\"\",\"\",_xlfn.XLOOKUP(K92,'Named Ranges'!$BC$4:$BC$6,'Named Ranges'!$BA$4:$BA$6,\"No\",-1,1))","v":""}]
[null,null,null,null,null,null,null,null,null,null,null,null,{"$f":"IF(K93=\"\",\"\",_xlfn.XLOOKUP(K93,'Named Ranges'!$BC$4:$BC$6,'Named Ranges'!$BA$4:$BA$6,\"No\",-1,1))","v":""}]
[null,null,null,null,null,null,null,null,null,null,null,null,{"$f":"IF(K94=\"\",\"\",_xlfn.XLOOKUP(K94,'Named Ranges'!$BC$4:$BC$6,'Named Ranges'!$BA$4:$BA$6,\"No\",-1,1))","v":""}]
[null,null,null,null,null,null,null,null,null,null,null,null,{"$f":"IF(K95=\"\",\"\",_xlfn.XLOOKUP(K95,'Named Ranges'!$BC$4:$BC$6,'Named Ranges'!$BA$4:$BA$6,\"No\",-1,1))","v":""}]
[null,null,null,null,null,null,null,null,null,null,null,null,{"$f":"IF(K96=\"\",\"\",_xlfn.XLOOKUP(K96,'Named Ranges'!$BC$4:$BC$6,'Named Ranges'!$BA$4:$BA$6,\"No\",-1,1))","v":""}]
[null,null,null,null,null,null,null,null,null,null,null,null,{"$f":"IF(K97=\"\",\"\",_xlfn.XLOOKUP(K97,'Named Ranges'!$BC$4:$BC$6,'Named Ranges'!$BA$4:$BA$6,\"No\",-1,1))","v":""}]
[null,null,null,null,null,null,null,null,null,null,null,null,{"$f":"IF(K98=\"\",\"\",_xlfn.XLOOKUP(K98,'Named Ranges'!$BC$4:$BC$6,'Named Ranges'!$BA$4:$BA$6,\"No\",-1,1))","v":""}]
[null,null,null,null,null,null,null,null,null,null,null,null,{"$f":"IF(K99=\"\",\"\",_xlfn.XLOOKUP(K99,'Named Ranges'!$BC$4:$BC$6,'Named Ranges'!$BA$4:$BA$6,\"No\",-1,1))","v":""}]
[null,null,null,null,null,null,null,null,null,null,null,null,{"$f":"IF(K100=\"\",\"\",_xlfn.XLOOKUP(K100,'Named Ranges'!$BC$4:$BC$6,'Named Ranges'!$BA$4:$BA$6,\"No\",-1,1))","v":""}]
[null,null,null,null,null,null,null,null,null,null,null,null,{"$f":"IF(K101=\"\",\"\",_xlfn.XLOOKUP(K101,'Named Ranges'!$BC$4:$BC$6,'Named Ranges'!$BA$4:$BA$6,\"No\",-1,1))","v":""}]
[null,null,null,null,null,null,null,null,null,null,null,null,{"$f":"IF(K102=\"\",\"\",_xlfn.XLOOKUP(K102,'Named Ranges'!$BC$4:$BC$6,'Named Ranges'!$BA$4:$BA$6,\"No\",-1,1))","v":""}]
[null,null,null,null,null,null,null,null,null,null,null,null,{"$f":"IF(K103=\"\",\"\",_xlfn.XLOOKUP(K103,'Named Ranges'!$BC$4:$BC$6,'Named Ranges'!$BA$4:$BA$6,\"No\",-1,1))","v":""}]
[null,null,null,null,null,null,null,null,null,null,null,null,{"$f":"IF(K104=\"\",\"\",_xlfn.XLOOKUP(K104,'Named Ranges'!$BC$4:$BC$6,'Named Ranges'!$BA$4:$BA$6,\"No\",-1,1))","v":""}]
[null,null,null,null,null,null,null,null,null,null,null,null,{"$f":"IF(K105=\"\",\"\",_xlfn.XLOOKUP(K105,'Named Ranges'!$BC$4:$BC$6,'Named Ranges'!$BA$4:$BA$6,\"No\",-1,1))","v":""}]
[null,null,null,null,null,null,null,null,null,null,null,null,{"$f":"IF(K106=\"\",\"\",_xlfn.XLOOKUP(K106,'Named Ranges'!$BC$4:$BC$6,'Named Ranges'!$BA$4:$BA$6,\"No\",-1,1))","v":""}]
[null,null,null,null,null,null,null,null,null,null,null,null,{"$f":"IF(K107=\"\",\"\",_xlfn.XLOOKUP(K107,'Named Ranges'!$BC$4:$BC$6,'Named Ranges'!$BA$4:$BA$6,\"No\",-1,1))","v":""}]
[null,null,null,null,null,null,null,null,null,null,null,null,{"$f":"IF(K108=\"\",\"\",_xlfn.XLOOKUP(K108,'Named Ranges'!$BC$4:$BC$6,'Named Ranges'!$BA$4:$BA$6,\"No\",-1,1))","v":""}]
[null,null,null,null,null,null,null,null,null,null,null,null,{"$f":"IF(K109=\"\",\"\",_xlfn.XLOOKUP(K109,'Named Ranges'!$BC$4:$BC$6,'Named Ranges'!$BA$4:$BA$6,\"No\",-1,1))","v":""}]
[null,null,null,null,null,null,null,null,null,null,null,null,{"$f":"IF(K110=\"\",\"\",_xlfn.XLOOKUP(K110,'Named Ranges'!$BC$4:$BC$6,'Named Ranges'!$BA$4:$BA$6,\"No\",-1,1))","v":""}]
[null,null,null,null,null,null,null,null,null,null,null,null,{"$f":"IF(K111=\"\",\"\",_xlfn.XLOOKUP(K111,'Named Ranges'!$BC$4:$BC$6,'Named Ranges'!$BA$4:$BA$6,\"No\",-1,1))","v":""}]
[null,null,null,null,null,null,null,null,null,null,null,null,{"$f":"IF(K112=\"\",\"\",_xlfn.XLOOKUP(K112,'Named Ranges'!$BC$4:$BC$6,'Named Ranges'!$BA$4:$BA$6,\"No\",-1,1))","v":""}]
[null,null,null,null,null,null,null,null,null,null,null,null,{"$f":"IF(K113=\"\",\"\",_xlfn.XLOOKUP(K113,'Named Ranges'!$BC$4:$BC$6,'Named Ranges'!$BA$4:$BA$6,\"No\",-1,1))","v":""}]
[null,null,null,null,null,null,null,null,null,null,null,null,{"$f":"IF(K114=\"\",\"\",_xlfn.XLOOKUP(K114,'Named Ranges'!$BC$4:$BC$6,'Named Ranges'!$BA$4:$BA$6,\"No\",-1,1))","v":""}]
[null,null,null,null,null,null,null,null,null,null,null,null,{"$f":"IF(K115=\"\",\"\",_xlfn.XLOOKUP(K115,'Named Ranges'!$BC$4:$BC$6,'Named Ranges'!$BA$4:$BA$6,\"No\",-1,1))","v":""}]
[null,null,null,null,null,null,null,null,null,null,null,null,{"$f":"IF(K116=\"\",\"\",_xlfn.XLOOKUP(K116,'Named Ranges'!$BC$4:$BC$6,'Named Ranges'!$BA$4:$BA$6,\"No\",-1,1))","v":""}]
[null,null,null,null,null,null,null,null,null,null,null,null,{"$f":"IF(K117=\"\",\"\",_xlfn.XLOOKUP(K117,'Named Ranges'!$BC$4:$BC$6,'Named Ranges'!$BA$4:$BA$6,\"No\",-1,1))","v":""}]
[null,null,null,null,null,null,null,null,null,null,null,null,{"$f":"IF(K118=\"\",\"\",_xlfn.XLOOKUP(K118,'Named Ranges'!$BC$4:$BC$6,'Named Ranges'!$BA$4:$BA$6,\"No\",-1,1))","v":""}]
[null,null,null,null,null,null,null,null,null,null,null,null,{"$f":"IF(K119=\"\",\"\",_xlfn.XLOOKUP(K119,'Named Ranges'!$BC$4:$BC$6,'Named Ranges'!$BA$4:$BA$6,\"No\",-1,1))","v":""}]
[null,null,null,null,null,null,null,null,null,null,null,null,{"$f":"IF(K120=\"\",\"\",_xlfn.XLOOKUP(K120,'Named Ranges'!$BC$4:$BC$6,'Named Ranges'!$BA$4:$BA$6,\"No\",-1,1))","v":""}]
[null,null,null,null,null,null,null,null,null,null,null,null,{"$f":"IF(K121=\"\",\"\",_xlfn.XLOOKUP(K121,'Named Ranges'!$BC$4:$BC$6,'Named Ranges'!$BA$4:$BA$6,\"No\",-1,1))","v":""}]
[null,null,null,null,null,null,null,null,null,null,null,null,{"$f":"IF(K122=\"\",\"\",_xlfn.XLOOKUP(K122,'Named Ranges'!$BC$4:$BC$6,'Named Ranges'!$BA$4:$BA$6,\"No\",-1,1))","v":""}]
[null,null,null,null,null,null,null,null,null,null,null,null,{"$f":"IF(K123=\"\",\"\",_xlfn.XLOOKUP(K123,'Named Ranges'!$BC$4:$BC$6,'Named Ranges'!$BA$4:$BA$6,\"No\",-1,1))","v":""}]
[null,null,null,null,null,null,null,null,null,null,null,null,{"$f":"IF(K124=\"\",\"\",_xlfn.XLOOKUP(K124,'Named Ranges'!$BC$4:$BC$6,'Named Ranges'!$BA$4:$BA$6,\"No\",-1,1))","v":""}]
[null,null,null,null,null,null,null,null,null,null,null,null,{"$f":"IF(K125=\"\",\"\",_xlfn.XLOOKUP(K125,'Named Ranges'!$BC$4:$BC$6,'Named Ranges'!$BA$4:$BA$6,\"No\",-1,1))","v":""}]
[null,null,null,null,null,null,null,null,null,null,null,null,{"$f":"IF(K126=\"\",\"\",_xlfn.XLOOKUP(K126,'Named Ranges'!$BC$4:$BC$6,'Named Ranges'!$BA$4:$BA$6,\"No\",-1,1))","v":""}]
[null,null,null,null,null,null,null,null,null,null,null,null,{"$f":"IF(K127=\"\",\"\",_xlfn.XLOOKUP(K127,'Named Ranges'!$BC$4:$BC$6,'Named Ranges'!$BA$4:$BA$6,\"No\",-1,1))","v":""}]
[null,null,null,null,null,null,null,null,null,null,null,null,{"$f":"IF(K128=\"\",\"\",_xlfn.XLOOKUP(K128,'Named Ranges'!$BC$4:$BC$6,'Named Ranges'!$BA$4:$BA$6,\"No\",-1,1))","v":""}]
[null,null,null,null,null,null,null,null,null,null,null,null,{"$f":"IF(K129=\"\",\"\",_xlfn.XLOOKUP(K129,'Named Ranges'!$BC$4:$BC$6,'Named Ranges'!$BA$4:$BA$6,\"No\",-1,1))","v":""}]
[null,null,null,null,null,null,null,null,null,null,null,null,{"$f":"IF(K130=\"\",\"\",_xlfn.XLOOKUP(K130,'Named Ranges'!$BC$4:$BC$6,'Named Ranges'!$BA$4:$BA$6,\"No\",-1,1))","v":""}]
[null,null,null,null,null,null,null,null,null,null,null,null,{"$f":"IF(K131=\"\",\"\",_xlfn.XLOOKUP(K131,'Named Ranges'!$BC$4:$BC$6,'Named Ranges'!$BA$4:$BA$6,\"No\",-1,1))","v":""}]
[null,null,null,null,null,null,null,null,null,null,null,null,{"$f":"IF(K132=\"\",\"\",_xlfn.XLOOKUP(K132,'Named Ranges'!$BC$4:$BC$6,'Named Ranges'!$BA$4:$BA$6,\"No\",-1,1))","v":""}]
[null,null,null,null,null,null,null,null,null,null,null,null,{"$f":"IF(K133=\"\",\"\",_xlfn.XLOOKUP(K133,'Named Ranges'!$BC$4:$BC$6,'Named Ranges'!$BA$4:$BA$6,\"No\",-1,1))","v":""}]
[null,null,null,null,null,null,null,null,null,null,null,null,{"$f":"IF(K134=\"\",\"\",_xlfn.XLOOKUP(K134,'Named Ranges'!$BC$4:$BC$6,'Named Ranges'!$BA$4:$BA$6,\"No\",-1,1))","v":""}]
[null,null,null,null,null,null,null,null,null,null,null,null,{"$f":"IF(K135=\"\",\"\",_xlfn.XLOOKUP(K135,'Named Ranges'!$BC$4:$BC$6,'Named Ranges'!$BA$4:$BA$6,\"No\",-1,1))","v":""}]
[null,null,null,null,null,null,null,null,null,null,null,null,{"$f":"IF(K136=\"\",\"\",_xlfn.XLOOKUP(K136,'Named Ranges'!$BC$4:$BC$6,'Named Ranges'!$BA$4:$BA$6,\"No\",-1,1))","v":""}]
[null,null,null,null,null,null,null,null,null,null,null,null,{"$f":"IF(K137=\"\",\"\",_xlfn.XLOOKUP(K137,'Named Ranges'!$BC$4:$BC$6,'Named Ranges'!$BA$4:$BA$6,\"No\",-1,1))","v":""}]
[null,null,null,null,null,null,null,null,null,null,null,null,{"$f":"IF(K138=\"\",\"\",_xlfn.XLOOKUP(K138,'Named Ranges'!$BC$4:$BC$6,'Named Ranges'!$BA$4:$BA$6,\"No\",-1,1))","v":""}]
[null,null,null,null,null,null,null,null,null,null,null,null,{"$f":"IF(K139=\"\",\"\",_xlfn.XLOOKUP(K139,'Named Ranges'!$BC$4:$BC$6,'Named Ranges'!$BA$4:$BA$6,\"No\",-1,1))","v":""}]
[null,null,null,null,null,null,null,null,null,null,null,null,{"$f":"IF(K140=\"\",\"\",_xlfn.XLOOKUP(K140,'Named Ranges'!$BC$4:$BC$6,'Named Ranges'!$BA$4:$BA$6,\"No\",-1,1))","v":""}]
[null,null,null,null,null,null,null,null,null,null,null,null,{"$f":"IF(K141=\"\",\"\",_xlfn.XLOOKUP(K141,'Named Ranges'!$BC$4:$BC$6,'Named Ranges'!$BA$4:$BA$6,\"No\",-1,1))","v":""}]
[null,null,null,null,null,null,null,null,null,null,null,null,{"$f":"IF(K142=\"\",\"\",_xlfn.XLOOKUP(K142,'Named Ranges'!$BC$4:$BC$6,'Named Ranges'!$BA$4:$BA$6,\"No\",-1,1))","v":""}]
[null,null,null,null,null,null,null,null,null,null,null,null,{"$f":"IF(K143=\"\",\"\",_xlfn.XLOOKUP(K143,'Named Ranges'!$BC$4:$BC$6,'Named Ranges'!$BA$4:$BA$6,\"No\",-1,1))","v":""}]
[null,null,null,null,null,null,null,null,null,null,null,null,{"$f":"IF(K144=\"\",\"\",_xlfn.XLOOKUP(K144,'Named Ranges'!$BC$4:$BC$6,'Named Ranges'!$BA$4:$BA$6,\"No\",-1,1))","v":""}]
[null,null,null,null,null,null,null,null,null,null,null,null,{"$f":"IF(K145=\"\",\"\",_xlfn.XLOOKUP(K145,'Named Ranges'!$BC$4:$BC$6,'Named Ranges'!$BA$4:$BA$6,\"No\",-1,1))","v":""}]
[null,null,null,null,null,null,null,null,null,null,null,null,{"$f":"IF(K146=\"\",\"\",_xlfn.XLOOKUP(K146,'Named Ranges'!$BC$4:$BC$6,'Named Ranges'!$BA$4:$BA$6,\"No\",-1,1))","v":""}]
[null,null,null,null,null,null,null,null,null,null,null,null,{"$f":"IF(K147=\"\",\"\",_xlfn.XLOOKUP(K147,'Named Ranges'!$BC$4:$BC$6,'Named Ranges'!$BA$4:$BA$6,\"No\",-1,1))","v":""}]
[null,null,null,null,null,null,null,null,null,null,null,null,{"$f":"IF(K148=\"\",\"\",_xlfn.XLOOKUP(K148,'Named Ranges'!$BC$4:$BC$6,'Named Ranges'!$BA$4:$BA$6,\"No\",-1,1))","v":""}]
[null,null,null,null,null,null,null,null,null,null,null,null,{"$f":"IF(K149=\"\",\"\",_xlfn.XLOOKUP(K149,'Named Ranges'!$BC$4:$BC$6,'Named Ranges'!$BA$4:$BA$6,\"No\",-1,1))","v":""}]
[null,null,null,null,null,null,null,null,null,null,null,null,{"$f":"IF(K150=\"\",\"\",_xlfn.XLOOKUP(K150,'Named Ranges'!$BC$4:$BC$6,'Named Ranges'!$BA$4:$BA$6,\"No\",-1,1))","v":""}]
[null,null,null,null,null,null,null,null,null,null,null,null,{"$f":"IF(K151=\"\",\"\",_xlfn.XLOOKUP(K151,'Named Ranges'!$BC$4:$BC$6,'Named Ranges'!$BA$4:$BA$6,\"No\",-1,1))","v":""}]
[null,null,null,null,null,null,null,null,null,null,null,null,{"$f":"IF(K152=\"\",\"\",_xlfn.XLOOKUP(K152,'Named Ranges'!$BC$4:$BC$6,'Named Ranges'!$BA$4:$BA$6,\"No\",-1,1))","v":""}]
[null,null,null,null,null,null,null,null,null,null,null,null,{"$f":"IF(K153=\"\",\"\",_xlfn.XLOOKUP(K153,'Named Ranges'!$BC$4:$BC$6,'Named Ranges'!$BA$4:$BA$6,\"No\",-1,1))","v":""}]
[null,null,null,null,null,null,null,null,null,null,null,null,{"$f":"IF(K154=\"\",\"\",_xlfn.XLOOKUP(K154,'Named Ranges'!$BC$4:$BC$6,'Named Ranges'!$BA$4:$BA$6,\"No\",-1,1))","v":""}]
[null,null,null,null,null,null,null,null,null,null,null,null,{"$f":"IF(K155=\"\",\"\",_xlfn.XLOOKUP(K155,'Named Ranges'!$BC$4:$BC$6,'Named Ranges'!$BA$4:$BA$6,\"No\",-1,1))","v":""}]
[null,null,null,null,null,null,null,null,null,null,null,null,{"$f":"IF(K156=\"\",\"\",_xlfn.XLOOKUP(K156,'Named Ranges'!$BC$4:$BC$6,'Named Ranges'!$BA$4:$BA$6,\"No\",-1,1))","v":""}]
[null,null,null,null,null,null,null,null,null,null,null,null,{"$f":"IF(K157=\"\",\"\",_xlfn.XLOOKUP(K157,'Named Ranges'!$BC$4:$BC$6,'Named Ranges'!$BA$4:$BA$6,\"No\",-1,1))","v":""}]
[null,null,null,null,null,null,null,null,null,null,null,null,{"$f":"IF(K158=\"\",\"\",_xlfn.XLOOKUP(K158,'Named Ranges'!$BC$4:$BC$6,'Named Ranges'!$BA$4:$BA$6,\"No\",-1,1))","v":""}]
[null,null,null,null,null,null,null,null,null,null,null,null,{"$f":"IF(K159=\"\",\"\",_xlfn.XLOOKUP(K159,'Named Ranges'!$BC$4:$BC$6,'Named Ranges'!$BA$4:$BA$6,\"No\",-1,1))","v":""}]
[null,null,null,null,null,null,null,null,null,null,null,null,{"$f":"IF(K160=\"\",\"\",_xlfn.XLOOKUP(K160,'Named Ranges'!$BC$4:$BC$6,'Named Ranges'!$BA$4:$BA$6,\"No\",-1,1))","v":""}]
[null,null,null,null,null,null,null,null,null,null,null,null,{"$f":"IF(K161=\"\",\"\",_xlfn.XLOOKUP(K161,'Named Ranges'!$BC$4:$BC$6,'Named Ranges'!$BA$4:$BA$6,\"No\",-1,1))","v":""}]
[null,null,null,null,null,null,null,null,null,null,null,null,{"$f":"IF(K162=\"\",\"\",_xlfn.XLOOKUP(K162,'Named Ranges'!$BC$4:$BC$6,'Named Ranges'!$BA$4:$BA$6,\"No\",-1,1))","v":""}]
[null,null,null,null,null,null,null,null,null,null,null,null,{"$f":"IF(K163=\"\",\"\",_xlfn.XLOOKUP(K163,'Named Ranges'!$BC$4:$BC$6,'Named Ranges'!$BA$4:$BA$6,\"No\",-1,1))","v":""}]
[null,null,null,null,null,null,null,null,null,null,null,null,{"$f":"IF(K164=\"\",\"\",_xlfn.XLOOKUP(K164,'Named Ranges'!$BC$4:$BC$6,'Named Ranges'!$BA$4:$BA$6,\"No\",-1,1))","v":""}]
[null,null,null,null,null,null,null,null,null,null,null,null,{"$f":"IF(K165=\"\",\"\",_xlfn.XLOOKUP(K165,'Named Ranges'!$BC$4:$BC$6,'Named Ranges'!$BA$4:$BA$6,\"No\",-1,1))","v":""}]
[null,null,null,null,null,null,null,null,null,null,null,null,{"$f":"IF(K166=\"\",\"\",_xlfn.XLOOKUP(K166,'Named Ranges'!$BC$4:$BC$6,'Named Ranges'!$BA$4:$BA$6,\"No\",-1,1))","v":""}]
[null,null,null,null,null,null,null,null,null,null,null,null,{"$f":"IF(K167=\"\",\"\",_xlfn.XLOOKUP(K167,'Named Ranges'!$BC$4:$BC$6,'Named Ranges'!$BA$4:$BA$6,\"No\",-1,1))","v":""}]
[null,null,null,null,null,null,null,null,null,null,null,null,{"$f":"IF(K168=\"\",\"\",_xlfn.XLOOKUP(K168,'Named Ranges'!$BC$4:$BC$6,'Named Ranges'!$BA$4:$BA$6,\"No\",-1,1))","v":""}]
[null,null,null,null,null,null,null,null,null,null,null,null,{"$f":"IF(K169=\"\",\"\",_xlfn.XLOOKUP(K169,'Named Ranges'!$BC$4:$BC$6,'Named Ranges'!$BA$4:$BA$6,\"No\",-1,1))","v":""}]
[null,null,null,null,null,null,null,null,null,null,null,null,{"$f":"IF(K170=\"\",\"\",_xlfn.XLOOKUP(K170,'Named Ranges'!$BC$4:$BC$6,'Named Ranges'!$BA$4:$BA$6,\"No\",-1,1))","v":""}]
[null,null,null,null,null,null,null,null,null,null,null,null,{"$f":"IF(K171=\"\",\"\",_xlfn.XLOOKUP(K171,'Named Ranges'!$BC$4:$BC$6,'Named Ranges'!$BA$4:$BA$6,\"No\",-1,1))","v":""}]
[null,null,null,null,null,null,null,null,null,null,null,null,{"$f":"IF(K172=\"\",\"\",_xlfn.XLOOKUP(K172,'Named Ranges'!$BC$4:$BC$6,'Named Ranges'!$BA$4:$BA$6,\"No\",-1,1))","v":""}]
[null,null,null,null,null,null,null,null,null,null,null,null,{"$f":"IF(K173=\"\",\"\",_xlfn.XLOOKUP(K173,'Named Ranges'!$BC$4:$BC$6,'Named Ranges'!$BA$4:$BA$6,\"No\",-1,1))","v":""}]
[null,null,null,null,null,null,null,null,null,null,null,null,{"$f":"IF(K174=\"\",\"\",_xlfn.XLOOKUP(K174,'Named Ranges'!$BC$4:$BC$6,'Named Ranges'!$BA$4:$BA$6,\"No\",-1,1))","v":""}]
[null,null,null,null,null,null,null,null,null,null,null,null,{"$f":"IF(K175=\"\",\"\",_xlfn.XLOOKUP(K175,'Named Ranges'!$BC$4:$BC$6,'Named Ranges'!$BA$4:$BA$6,\"No\",-1,1))","v":""}]
[null,null,null,null,null,null,null,null,null,null,null,null,{"$f":"IF(K176=\"\",\"\",_xlfn.XLOOKUP(K176,'Named Ranges'!$BC$4:$BC$6,'Named Ranges'!$BA$4:$BA$6,\"No\",-1,1))","v":""}]
[null,null,null,null,null,null,null,null,null,null,null,null,{"$f":"IF(K177=\"\",\"\",_xlfn.XLOOKUP(K177,'Named Ranges'!$BC$4:$BC$6,'Named Ranges'!$BA$4:$BA$6,\"No\",-1,1))","v":""}]
[null,null,null,null,null,null,null,null,null,null,null,null,{"$f":"IF(K178=\"\",\"\",_xlfn.XLOOKUP(K178,'Named Ranges'!$BC$4:$BC$6,'Named Ranges'!$BA$4:$BA$6,\"No\",-1,1))","v":""}]
[null,null,null,null,null,null,null,null,null,null,null,null,{"$f":"IF(K179=\"\",\"\",_xlfn.XLOOKUP(K179,'Named Ranges'!$BC$4:$BC$6,'Named Ranges'!$BA$4:$BA$6,\"No\",-1,1))","v":""}]
[null,null,null,null,null,null,null,null,null,null,null,null,{"$f":"IF(K180=\"\",\"\",_xlfn.XLOOKUP(K180,'Named Ranges'!$BC$4:$BC$6,'Named Ranges'!$BA$4:$BA$6,\"No\",-1,1))","v":""}]
[null,null,null,null,null,null,null,null,null,null,null,null,{"$f":"IF(K181=\"\",\"\",_xlfn.XLOOKUP(K181,'Named Ranges'!$BC$4:$BC$6,'Named Ranges'!$BA$4:$BA$6,\"No\",-1,1))","v":""}]
[null,null,null,null,null,null,null,null,null,null,null,null,{"$f":"IF(K182=\"\",\"\",_xlfn.XLOOKUP(K182,'Named Ranges'!$BC$4:$BC$6,'Named Ranges'!$BA$4:$BA$6,\"No\",-1,1))","v":""}]
[null,null,null,null,null,null,null,null,null,null,null,null,{"$f":"IF(K183=\"\",\"\",_xlfn.XLOOKUP(K183,'Named Ranges'!$BC$4:$BC$6,'Named Ranges'!$BA$4:$BA$6,\"No\",-1,1))","v":""}]
[null,null,null,null,null,null,null,null,null,null,null,null,{"$f":"IF(K184=\"\",\"\",_xlfn.XLOOKUP(K184,'Named Ranges'!$BC$4:$BC$6,'Named Ranges'!$BA$4:$BA$6,\"No\",-1,1))","v":""}]
[null,null,null,null,null,null,null,null,null,null,null,null,{"$f":"IF(K185=\"\",\"\",_xlfn.XLOOKUP(K185,'Named Ranges'!$BC$4:$BC$6,'Named Ranges'!$BA$4:$BA$6,\"No\",-1,1))","v":""}]
[null,null,null,null,null,null,null,null,null,null,null,null,{"$f":"IF(K186=\"\",\"\",_xlfn.XLOOKUP(K186,'Named Ranges'!$BC$4:$BC$6,'Named Ranges'!$BA$4:$BA$6,\"No\",-1,1))","v":""}]
[null,null,null,null,null,null,null,null,null,null,null,null,{"$f":"IF(K187=\"\",\"\",_xlfn.XLOOKUP(K187,'Named Ranges'!$BC$4:$BC$6,'Named Ranges'!$BA$4:$BA$6,\"No\",-1,1))","v":""}]
[null,null,null,null,null,null,null,null,null,null,null,null,{"$f":"IF(K188=\"\",\"\",_xlfn.XLOOKUP(K188,'Named Ranges'!$BC$4:$BC$6,'Named Ranges'!$BA$4:$BA$6,\"No\",-1,1))","v":""}]
[null,null,null,null,null,null,null,null,null,null,null,null,{"$f":"IF(K189=\"\",\"\",_xlfn.XLOOKUP(K189,'Named Ranges'!$BC$4:$BC$6,'Named Ranges'!$BA$4:$BA$6,\"No\",-1,1))","v":""}]
[null,null,null,null,null,null,null,null,null,null,null,null,{"$f":"IF(K190=\"\",\"\",_xlfn.XLOOKUP(K190,'Named Ranges'!$BC$4:$BC$6,'Named Ranges'!$BA$4:$BA$6,\"No\",-1,1))","v":""}]
[null,null,null,null,null,null,null,null,null,null,null,null,{"$f":"IF(K191=\"\",\"\",_xlfn.XLOOKUP(K191,'Named Ranges'!$BC$4:$BC$6,'Named Ranges'!$BA$4:$BA$6,\"No\",-1,1))","v":""}]
[null,null,null,null,null,null,null,null,null,null,null,null,{"$f":"IF(K192=\"\",\"\",_xlfn.XLOOKUP(K192,'Named Ranges'!$BC$4:$BC$6,'Named Ranges'!$BA$4:$BA$6,\"No\",-1,1))","v":""}]
[null,null,null,null,null,null,null,null,null,null,null,null,{"$f":"IF(K193=\"\",\"\",_xlfn.XLOOKUP(K193,'Named Ranges'!$BC$4:$BC$6,'Named Ranges'!$BA$4:$BA$6,\"No\",-1,1))","v":""}]
[null,null,null,null,null,null,null,null,null,null,null,null,{"$f":"IF(K194=\"\",\"\",_xlfn.XLOOKUP(K194,'Named Ranges'!$BC$4:$BC$6,'Named Ranges'!$BA$4:$BA$6,\"No\",-1,1))","v":""}]
[null,null,null,null,null,null,null,null,null,null,null,null,{"$f":"IF(K195=\"\",\"\",_xlfn.XLOOKUP(K195,'Named Ranges'!$BC$4:$BC$6,'Named Ranges'!$BA$4:$BA$6,\"No\",-1,1))","v":""}]
[null,null,null,null,null,null,null,null,null,null,null,null,{"$f":"IF(K196=\"\",\"\",_xlfn.XLOOKUP(K196,'Named Ranges'!$BC$4:$BC$6,'Named Ranges'!$BA$4:$BA$6,\"No\",-1,1))","v":""}]
[null,null,null,null,null,null,null,null,null,null,null,null,{"$f":"IF(K197=\"\",\"\",_xlfn.XLOOKUP(K197,'Named Ranges'!$BC$4:$BC$6,'Named Ranges'!$BA$4:$BA$6,\"No\",-1,1))","v":""}]
[null,null,null,null,null,null,null,null,null,null,null,null,{"$f":"IF(K198=\"\",\"\",_xlfn.XLOOKUP(K198,'Named Ranges'!$BC$4:$BC$6,'Named Ranges'!$BA$4:$BA$6,\"No\",-1,1))","v":""}]
[null,null,null,null,null,null,null,null,null,null,null,null,{"$f":"IF(K199=\"\",\"\",_xlfn.XLOOKUP(K199,'Named Ranges'!$BC$4:$BC$6,'Named Ranges'!$BA$4:$BA$6,\"No\",-1,1))","v":""}]
[null,null,null,null,null,null,null,null,null,null,null,null,{"$f":"IF(K200=\"\",\"\",_xlfn.XLOOKUP(K200,'Named Ranges'!$BC$4:$BC$6,'Named Ranges'!$BA$4:$BA$6,\"No\",-1,1))","v":""}]
[null,null,null,null,null,null,null,null,null,null,null,null,{"$f":"IF(K201=\"\",\"\",_xlfn.XLOOKUP(K201,'Named Ranges'!$BC$4:$BC$6,'Named Ranges'!$BA$4:$BA$6,\"No\",-1,1))","v":""}]
[null,null,null,null,null,null,null,null,null,null,null,null,{"$f":"IF(K202=\"\",\"\",_xlfn.XLOOKUP(K202,'Named Ranges'!$BC$4:$BC$6,'Named Ranges'!$BA$4:$BA$6,\"No\",-1,1))","v":""}]
[null,null,null,null,null,null,null,null,null,null,null,null,{"$f":"IF(K203=\"\",\"\",_xlfn.XLOOKUP(K203,'Named Ranges'!$BC$4:$BC$6,'Named Ranges'!$BA$4:$BA$6,\"No\",-1,1))","v":""}]
[null,null,null,null,null,null,null,null,null,null,null,null,{"$f":"IF(K204=\"\",\"\",_xlfn.XLOOKUP(K204,'Named Ranges'!$BC$4:$BC$6,'Named Ranges'!$BA$4:$BA$6,\"No\",-1,1))","v":""}]
[null,null,null,null,null,null,null,null,null,null,null,null,{"$f":"IF(K205=\"\",\"\",_xlfn.XLOOKUP(K205,'Named Ranges'!$BC$4:$BC$6,'Named Ranges'!$BA$4:$BA$6,\"No\",-1,1))","v":""}]
[null,null,null,null,null,null,null,null,null,null,null,null,{"$f":"IF(K206=\"\",\"\",_xlfn.XLOOKUP(K206,'Named Ranges'!$BC$4:$BC$6,'Named Ranges'!$BA$4:$BA$6,\"No\",-1,1))","v":""}]
[null,null,null,null,null,null,null,null,null,null,null,null,{"$f":"IF(K207=\"\",\"\",_xlfn.XLOOKUP(K207,'Named Ranges'!$BC$4:$BC$6,'Named Ranges'!$BA$4:$BA$6,\"No\",-1,1))","v":""}]
[null,null,null,null,null,null,null,null,null,null,null,null,{"$f":"IF(K208=\"\",\"\",_xlfn.XLOOKUP(K208,'Named Ranges'!$BC$4:$BC$6,'Named Ranges'!$BA$4:$BA$6,\"No\",-1,1))","v":""}]
[null,null,null,null,null,null,null,null,null,null,null,null,{"$f":"IF(K209=\"\",\"\",_xlfn.XLOOKUP(K209,'Named Ranges'!$BC$4:$BC$6,'Named Ranges'!$BA$4:$BA$6,\"No\",-1,1))","v":""}]
[null,null,null,null,null,null,null,null,null,null,null,null,{"$f":"IF(K210=\"\",\"\",_xlfn.XLOOKUP(K210,'Named Ranges'!$BC$4:$BC$6,'Named Ranges'!$BA$4:$BA$6,\"No\",-1,1))","v":""}]
[null,null,null,null,null,null,null,null,null,null,null,null,{"$f":"IF(K211=\"\",\"\",_xlfn.XLOOKUP(K211,'Named Ranges'!$BC$4:$BC$6,'Named Ranges'!$BA$4:$BA$6,\"No\",-1,1))","v":""}]
[null,null,null,null,null,null,null,null,null,null,null,null,{"$f":"IF(K212=\"\",\"\",_xlfn.XLOOKUP(K212,'Named Ranges'!$BC$4:$BC$6,'Named Ranges'!$BA$4:$BA$6,\"No\",-1,1))","v":""}]
[null,null,null,null,null,null,null,null,null,null,null,null,{"$f":"IF(K213=\"\",\"\",_xlfn.XLOOKUP(K213,'Named Ranges'!$BC$4:$BC$6,'Named Ranges'!$BA$4:$BA$6,\"No\",-1,1))","v":""}]
[null,null,null,null,null,null,null,null,null,null,null,null,{"$f":"IF(K214=\"\",\"\",_xlfn.XLOOKUP(K214,'Named Ranges'!$BC$4:$BC$6,'Named Ranges'!$BA$4:$BA$6,\"No\",-1,1))","v":""}]
[null,null,null,null,null,null,null,null,null,null,null,null,{"$f":"IF(K215=\"\",\"\",_xlfn.XLOOKUP(K215,'Named Ranges'!$BC$4:$BC$6,'Named Ranges'!$BA$4:$BA$6,\"No\",-1,1))","v":""}]
[null,null,null,null,null,null,null,null,null,null,null,null,{"$f":"IF(K216=\"\",\"\",_xlfn.XLOOKUP(K216,'Named Ranges'!$BC$4:$BC$6,'Named Ranges'!$BA$4:$BA$6,\"No\",-1,1))","v":""}]
[null,null,null,null,null,null,null,null,null,null,null,null,{"$f":"IF(K217=\"\",\"\",_xlfn.XLOOKUP(K217,'Named Ranges'!$BC$4:$BC$6,'Named Ranges'!$BA$4:$BA$6,\"No\",-1,1))","v":""}]
[null,null,null,null,null,null,null,null,null,null,null,null,{"$f":"IF(K218=\"\",\"\",_xlfn.XLOOKUP(K218,'Named Ranges'!$BC$4:$BC$6,'Named Ranges'!$BA$4:$BA$6,\"No\",-1,1))","v":""}]
[null,null,null,null,null,null,null,null,null,null,null,null,{"$f":"IF(K219=\"\",\"\",_xlfn.XLOOKUP(K219,'Named Ranges'!$BC$4:$BC$6,'Named Ranges'!$BA$4:$BA$6,\"No\",-1,1))","v":""}]
[null,null,null,null,null,null,null,null,null,null,null,null,{"$f":"IF(K220=\"\",\"\",_xlfn.XLOOKUP(K220,'Named Ranges'!$BC$4:$BC$6,'Named Ranges'!$BA$4:$BA$6,\"No\",-1,1))","v":""}]
[null,null,null,null,null,null,null,null,null,null,null,null,{"$f":"IF(K221=\"\",\"\",_xlfn.XLOOKUP(K221,'Named Ranges'!$BC$4:$BC$6,'Named Ranges'!$BA$4:$BA$6,\"No\",-1,1))","v":""}]
[null,null,null,null,null,null,null,null,null,null,null,null,{"$f":"IF(K222=\"\",\"\",_xlfn.XLOOKUP(K222,'Named Ranges'!$BC$4:$BC$6,'Named Ranges'!$BA$4:$BA$6,\"No\",-1,1))","v":""}]
[null,null,null,null,null,null,null,null,null,null,null,null,{"$f":"IF(K223=\"\",\"\",_xlfn.XLOOKUP(K223,'Named Ranges'!$BC$4:$BC$6,'Named Ranges'!$BA$4:$BA$6,\"No\",-1,1))","v":""}]
[null,null,null,null,null,null,null,null,null,null,null,null,{"$f":"IF(K224=\"\",\"\",_xlfn.XLOOKUP(K224,'Named Ranges'!$BC$4:$BC$6,'Named Ranges'!$BA$4:$BA$6,\"No\",-1,1))","v":""}]
[null,null,null,null,null,null,null,null,null,null,null,null,{"$f":"IF(K225=\"\",\"\",_xlfn.XLOOKUP(K225,'Named Ranges'!$BC$4:$BC$6,'Named Ranges'!$BA$4:$BA$6,\"No\",-1,1))","v":""}]
[null,null,null,null,null,null,null,null,null,null,null,null,{"$f":"IF(K226=\"\",\"\",_xlfn.XLOOKUP(K226,'Named Ranges'!$BC$4:$BC$6,'Named Ranges'!$BA$4:$BA$6,\"No\",-1,1))","v":""}]
[null,null,null,null,null,null,null,null,null,null,null,null,{"$f":"IF(K227=\"\",\"\",_xlfn.XLOOKUP(K227,'Named Ranges'!$BC$4:$BC$6,'Named Ranges'!$BA$4:$BA$6,\"No\",-1,1))","v":""}]
[null,null,null,null,null,null,null,null,null,null,null,null,{"$f":"IF(K228=\"\",\"\",_xlfn.XLOOKUP(K228,'Named Ranges'!$BC$4:$BC$6,'Named Ranges'!$BA$4:$BA$6,\"No\",-1,1))","v":""}]
[null,null,null,null,null,null,null,null,null,null,null,null,{"$f":"IF(K229=\"\",\"\",_xlfn.XLOOKUP(K229,'Named Ranges'!$BC$4:$BC$6,'Named Ranges'!$BA$4:$BA$6,\"No\",-1,1))","v":""}]
[null,null,null,null,null,null,null,null,null,null,null,null,{"$f":"IF(K230=\"\",\"\",_xlfn.XLOOKUP(K230,'Named Ranges'!$BC$4:$BC$6,'Named Ranges'!$BA$4:$BA$6,\"No\",-1,1))","v":""}]
[null,null,null,null,null,null,null,null,null,null,null,null,{"$f":"IF(K231=\"\",\"\",_xlfn.XLOOKUP(K231,'Named Ranges'!$BC$4:$BC$6,'Named Ranges'!$BA$4:$BA$6,\"No\",-1,1))","v":""}]
[null,null,null,null,null,null,null,null,null,null,null,null,{"$f":"IF(K232=\"\",\"\",_xlfn.XLOOKUP(K232,'Named Ranges'!$BC$4:$BC$6,'Named Ranges'!$BA$4:$BA$6,\"No\",-1,1))","v":""}]
[null,null,null,null,null,null,null,null,null,null,null,null,{"$f":"IF(K233=\"\",\"\",_xlfn.XLOOKUP(K233,'Named Ranges'!$BC$4:$BC$6,'Named Ranges'!$BA$4:$BA$6,\"No\",-1,1))","v":""}]
[null,null,null,null,null,null,null,null,null,null,null,null,{"$f":"IF(K234=\"\",\"\",_xlfn.XLOOKUP(K234,'Named Ranges'!$BC$4:$BC$6,'Named Ranges'!$BA$4:$BA$6,\"No\",-1,1))","v":""}]
[null,null,null,null,null,null,null,null,null,null,null,null,{"$f":"IF(K235=\"\",\"\",_xlfn.XLOOKUP(K235,'Named Ranges'!$BC$4:$BC$6,'Named Ranges'!$BA$4:$BA$6,\"No\",-1,1))","v":""}]
[null,null,null,null,null,null,null,null,null,null,null,null,{"$f":"IF(K236=\"\",\"\",_xlfn.XLOOKUP(K236,'Named Ranges'!$BC$4:$BC$6,'Named Ranges'!$BA$4:$BA$6,\"No\",-1,1))","v":""}]
[null,null,null,null,null,null,null,null,null,null,null,null,{"$f":"IF(K237=\"\",\"\",_xlfn.XLOOKUP(K237,'Named Ranges'!$BC$4:$BC$6,'Named Ranges'!$BA$4:$BA$6,\"No\",-1,1))","v":""}]
[null,null,null,null,null,null,null,null,null,null,null,null,{"$f":"IF(K238=\"\",\"\",_xlfn.XLOOKUP(K238,'Named Ranges'!$BC$4:$BC$6,'Named Ranges'!$BA$4:$BA$6,\"No\",-1,1))","v":""}]
[null,null,null,null,null,null,null,null,null,null,null,null,{"$f":"IF(K239=\"\",\"\",_xlfn.XLOOKUP(K239,'Named Ranges'!$BC$4:$BC$6,'Named Ranges'!$BA$4:$BA$6,\"No\",-1,1))","v":""}]
[null,null,null,null,null,null,null,null,null,null,null,null,{"$f":"IF(K240=\"\",\"\",_xlfn.XLOOKUP(K240,'Named Ranges'!$BC$4:$BC$6,'Named Ranges'!$BA$4:$BA$6,\"No\",-1,1))","v":""}]
[null,null,null,null,null,null,null,null,null,null,null,null,{"$f":"IF(K241=\"\",\"\",_xlfn.XLOOKUP(K241,'Named Ranges'!$BC$4:$BC$6,'Named Ranges'!$BA$4:$BA$6,\"No\",-1,1))","v":""}]
[null,null,null,null,null,null,null,null,null,null,null,null,{"$f":"IF(K242=\"\",\"\",_xlfn.XLOOKUP(K242,'Named Ranges'!$BC$4:$BC$6,'Named Ranges'!$BA$4:$BA$6,\"No\",-1,1))","v":""}]
[null,null,null,null,null,null,null,null,null,null,null,null,{"$f":"IF(K243=\"\",\"\",_xlfn.XLOOKUP(K243,'Named Ranges'!$BC$4:$BC$6,'Named Ranges'!$BA$4:$BA$6,\"No\",-1,1))","v":""}]
[null,null,null,null,null,null,null,null,null,null,null,null,{"$f":"IF(K244=\"\",\"\",_xlfn.XLOOKUP(K244,'Named Ranges'!$BC$4:$BC$6,'Named Ranges'!$BA$4:$BA$6,\"No\",-1,1))","v":""}]
[null,null,null,null,null,null,null,null,null,null,null,null,{"$f":"IF(K245=\"\",\"\",_xlfn.XLOOKUP(K245,'Named Ranges'!$BC$4:$BC$6,'Named Ranges'!$BA$4:$BA$6,\"No\",-1,1))","v":""}]
[null,null,null,null,null,null,null,null,null,null,null,null,{"$f":"IF(K246=\"\",\"\",_xlfn.XLOOKUP(K246,'Named Ranges'!$BC$4:$BC$6,'Named Ranges'!$BA$4:$BA$6,\"No\",-1,1))","v":""}]
[null,null,null,null,null,null,null,null,null,null,null,null,{"$f":"IF(K247=\"\",\"\",_xlfn.XLOOKUP(K247,'Named Ranges'!$BC$4:$BC$6,'Named Ranges'!$BA$4:$BA$6,\"No\",-1,1))","v":""}]
[null,null,null,null,null,null,null,null,null,null,null,null,{"$f":"IF(K248=\"\",\"\",_xlfn.XLOOKUP(K248,'Named Ranges'!$BC$4:$BC$6,'Named Ranges'!$BA$4:$BA$6,\"No\",-1,1))","v":""}]
[null,null,null,null,null,null,null,null,null,null,null,null,{"$f":"IF(K249=\"\",\"\",_xlfn.XLOOKUP(K249,'Named Ranges'!$BC$4:$BC$6,'Named Ranges'!$BA$4:$BA$6,\"No\",-1,1))","v":""}]
[null,null,null,null,null,null,null,null,null,null,null,null,{"$f":"IF(K250=\"\",\"\",_xlfn.XLOOKUP(K250,'Named Ranges'!$BC$4:$BC$6,'Named Ranges'!$BA$4:$BA$6,\"No\",-1,1))","v":""}]
[null,null,null,null,null,null,null,null,null,null,null,null,{"$f":"IF(K251=\"\",\"\",_xlfn.XLOOKUP(K251,'Named Ranges'!$BC$4:$BC$6,'Named Ranges'!$BA$4:$BA$6,\"No\",-1,1))","v":""}]
[null,null,null,null,null,null,null,null,null,null,null,null,{"$f":"IF(K252=\"\",\"\",_xlfn.XLOOKUP(K252,'Named Ranges'!$BC$4:$BC$6,'Named Ranges'!$BA$4:$BA$6,\"No\",-1,1))","v":""}]
[null,null,null,null,null,null,null,null,null,null,null,null,{"$f":"IF(K253=\"\",\"\",_xlfn.XLOOKUP(K253,'Named Ranges'!$BC$4:$BC$6,'Named Ranges'!$BA$4:$BA$6,\"No\",-1,1))","v":""}]
[null,null,null,null,null,null,null,null,null,null,null,null,{"$f":"IF(K254=\"\",\"\",_xlfn.XLOOKUP(K254,'Named Ranges'!$BC$4:$BC$6,'Named Ranges'!$BA$4:$BA$6,\"No\",-1,1))","v":""}]
[null,null,null,null,null,null,null,null,null,null,null,null,{"$f":"IF(K255=\"\",\"\",_xlfn.XLOOKUP(K255,'Named Ranges'!$BC$4:$BC$6,'Named Ranges'!$BA$4:$BA$6,\"No\",-1,1))","v":""}]
[null,null,null,null,null,null,null,null,null,null,null,null,{"$f":"IF(K256=\"\",\"\",_xlfn.XLOOKUP(K256,'Named Ranges'!$BC$4:$BC$6,'Named Ranges'!$BA$4:$BA$6,\"No\",-1,1))","v":""}]
[null,null,null,null,null,null,null,null,null,null,null,null,{"$f":"IF(K257=\"\",\"\",_xlfn.XLOOKUP(K257,'Named Ranges'!$BC$4:$BC$6,'Named Ranges'!$BA$4:$BA$6,\"No\",-1,1))","v":""}]
[null,null,null,null,null,null,null,null,null,null,null,null,{"$f":"IF(K258=\"\",\"\",_xlfn.XLOOKUP(K258,'Named Ranges'!$BC$4:$BC$6,'Named Ranges'!$BA$4:$BA$6,\"No\",-1,1))","v":""}]
[null,null,null,null,null,null,null,null,null,null,null,null,{"$f":"IF(K259=\"\",\"\",_xlfn.XLOOKUP(K259,'Named Ranges'!$BC$4:$BC$6,'Named Ranges'!$BA$4:$BA$6,\"No\",-1,1))","v":""}]
[null,null,null,null,null,null,null,null,null,null,null,null,{"$f":"IF(K260=\"\",\"\",_xlfn.XLOOKUP(K260,'Named Ranges'!$BC$4:$BC$6,'Named Ranges'!$BA$4:$BA$6,\"No\",-1,1))","v":""}]
[null,null,null,null,null,null,null,null,null,null,null,null,{"$f":"IF(K261=\"\",\"\",_xlfn.XLOOKUP(K261,'Named Ranges'!$BC$4:$BC$6,'Named Ranges'!$BA$4:$BA$6,\"No\",-1,1))","v":""}]
[null,null,null,null,null,null,null,null,null,null,null,null,{"$f":"IF(K262=\"\",\"\",_xlfn.XLOOKUP(K262,'Named Ranges'!$BC$4:$BC$6,'Named Ranges'!$BA$4:$BA$6,\"No\",-1,1))","v":""}]
[null,null,null,null,null,null,null,null,null,null,null,null,{"$f":"IF(K263=\"\",\"\",_xlfn.XLOOKUP(K263,'Named Ranges'!$BC$4:$BC$6,'Named Ranges'!$BA$4:$BA$6,\"No\",-1,1))","v":""}]
[null,null,null,null,null,null,null,null,null,null,null,null,{"$f":"IF(K264=\"\",\"\",_xlfn.XLOOKUP(K264,'Named Ranges'!$BC$4:$BC$6,'Named Ranges'!$BA$4:$BA$6,\"No\",-1,1))","v":""}]
[null,null,null,null,null,null,null,null,null,null,null,null,{"$f":"IF(K265=\"\",\"\",_xlfn.XLOOKUP(K265,'Named Ranges'!$BC$4:$BC$6,'Named Ranges'!$BA$4:$BA$6,\"No\",-1,1))","v":""}]
[null,null,null,null,null,null,null,null,null,null,null,null,{"$f":"IF(K266=\"\",\"\",_xlfn.XLOOKUP(K266,'Named Ranges'!$BC$4:$BC$6,'Named Ranges'!$BA$4:$BA$6,\"No\",-1,1))","v":""}]
[null,null,null,null,null,null,null,null,null,null,null,null,{"$f":"IF(K267=\"\",\"\",_xlfn.XLOOKUP(K267,'Named Ranges'!$BC$4:$BC$6,'Named Ranges'!$BA$4:$BA$6,\"No\",-1,1))","v":""}]
[null,null,null,null,null,null,null,null,null,null,null,null,{"$f":"IF(K268=\"\",\"\",_xlfn.XLOOKUP(K268,'Named Ranges'!$BC$4:$BC$6,'Named Ranges'!$BA$4:$BA$6,\"No\",-1,1))","v":""}]
[null,null,null,null,null,null,null,null,null,null,null,null,{"$f":"IF(K269=\"\",\"\",_xlfn.XLOOKUP(K269,'Named Ranges'!$BC$4:$BC$6,'Named Ranges'!$BA$4:$BA$6,\"No\",-1,1))","v":""}]
[null,null,null,null,null,null,null,null,null,null,null,null,{"$f":"IF(K270=\"\",\"\",_xlfn.XLOOKUP(K270,'Named Ranges'!$BC$4:$BC$6,'Named Ranges'!$BA$4:$BA$6,\"No\",-1,1))","v":""}]
[null,null,null,null,null,null,null,null,null,null,null,null,{"$f":"IF(K271=\"\",\"\",_xlfn.XLOOKUP(K271,'Named Ranges'!$BC$4:$BC$6,'Named Ranges'!$BA$4:$BA$6,\"No\",-1,1))","v":""}]
[null,null,null,null,null,null,null,null,null,null,null,null,{"$f":"IF(K272=\"\",\"\",_xlfn.XLOOKUP(K272,'Named Ranges'!$BC$4:$BC$6,'Named Ranges'!$BA$4:$BA$6,\"No\",-1,1))","v":""}]
[null,null,null,null,null,null,null,null,null,null,null,null,{"$f":"IF(K273=\"\",\"\",_xlfn.XLOOKUP(K273,'Named Ranges'!$BC$4:$BC$6,'Named Ranges'!$BA$4:$BA$6,\"No\",-1,1))","v":""}]
[null,null,null,null,null,null,null,null,null,null,null,null,{"$f":"IF(K274=\"\",\"\",_xlfn.XLOOKUP(K274,'Named Ranges'!$BC$4:$BC$6,'Named Ranges'!$BA$4:$BA$6,\"No\",-1,1))","v":""}]
[null,null,null,null,null,null,null,null,null,null,null,null,{"$f":"IF(K275=\"\",\"\",_xlfn.XLOOKUP(K275,'Named Ranges'!$BC$4:$BC$6,'Named Ranges'!$BA$4:$BA$6,\"No\",-1,1))","v":""}]
[null,null,null,null,null,null,null,null,null,null,null,null,{"$f":"IF(K276=\"\",\"\",_xlfn.XLOOKUP(K276,'Named Ranges'!$BC$4:$BC$6,'Named Ranges'!$BA$4:$BA$6,\"No\",-1,1))","v":""}]
[null,null,null,null,null,null,null,null,null,null,null,null,{"$f":"IF(K277=\"\",\"\",_xlfn.XLOOKUP(K277,'Named Ranges'!$BC$4:$BC$6,'Named Ranges'!$BA$4:$BA$6,\"No\",-1,1))","v":""}]
[null,null,null,null,null,null,null,null,null,null,null,null,{"$f":"IF(K278=\"\",\"\",_xlfn.XLOOKUP(K278,'Named Ranges'!$BC$4:$BC$6,'Named Ranges'!$BA$4:$BA$6,\"No\",-1,1))","v":""}]
[null,null,null,null,null,null,null,null,null,null,null,null,{"$f":"IF(K279=\"\",\"\",_xlfn.XLOOKUP(K279,'Named Ranges'!$BC$4:$BC$6,'Named Ranges'!$BA$4:$BA$6,\"No\",-1,1))","v":""}]
[null,null,null,null,null,null,null,null,null,null,null,null,{"$f":"IF(K280=\"\",\"\",_xlfn.XLOOKUP(K280,'Named Ranges'!$BC$4:$BC$6,'Named Ranges'!$BA$4:$BA$6,\"No\",-1,1))","v":""}]
[null,null,null,null,null,null,null,null,null,null,null,null,{"$f":"IF(K281=\"\",\"\",_xlfn.XLOOKUP(K281,'Named Ranges'!$BC$4:$BC$6,'Named Ranges'!$BA$4:$BA$6,\"No\",-1,1))","v":""}]
[null,null,null,null,null,null,null,null,null,null,null,null,{"$f":"IF(K282=\"\",\"\",_xlfn.XLOOKUP(K282,'Named Ranges'!$BC$4:$BC$6,'Named Ranges'!$BA$4:$BA$6,\"No\",-1,1))","v":""}]
[null,null,null,null,null,null,null,null,null,null,null,null,{"$f":"IF(K283=\"\",\"\",_xlfn.XLOOKUP(K283,'Named Ranges'!$BC$4:$BC$6,'Named Ranges'!$BA$4:$BA$6,\"No\",-1,1))","v":""}]
[null,null,null,null,null,null,null,null,null,null,null,null,{"$f":"IF(K284=\"\",\"\",_xlfn.XLOOKUP(K284,'Named Ranges'!$BC$4:$BC$6,'Named Ranges'!$BA$4:$BA$6,\"No\",-1,1))","v":""}]
[null,null,null,null,null,null,null,null,null,null,null,null,{"$f":"IF(K285=\"\",\"\",_xlfn.XLOOKUP(K285,'Named Ranges'!$BC$4:$BC$6,'Named Ranges'!$BA$4:$BA$6,\"No\",-1,1))","v":""}]
[null,null,null,null,null,null,null,null,null,null,null,null,{"$f":"IF(K286=\"\",\"\",_xlfn.XLOOKUP(K286,'Named Ranges'!$BC$4:$BC$6,'Named Ranges'!$BA$4:$BA$6,\"No\",-1,1))","v":""}]
[null,null,null,null,null,null,null,null,null,null,null,null,{"$f":"IF(K287=\"\",\"\",_xlfn.XLOOKUP(K287,'Named Ranges'!$BC$4:$BC$6,'Named Ranges'!$BA$4:$BA$6,\"No\",-1,1))","v":""}]
[null,null,null,null,null,null,null,null,null,null,null,null,{"$f":"IF(K288=\"\",\"\",_xlfn.XLOOKUP(K288,'Named Ranges'!$BC$4:$BC$6,'Named Ranges'!$BA$4:$BA$6,\"No\",-1,1))","v":""}]
[null,null,null,null,null,null,null,null,null,null,null,null,{"$f":"IF(K289=\"\",\"\",_xlfn.XLOOKUP(K289,'Named Ranges'!$BC$4:$BC$6,'Named Ranges'!$BA$4:$BA$6,\"No\",-1,1))","v":""}]
[null,null,null,null,null,null,null,null,null,null,null,null,{"$f":"IF(K290=\"\",\"\",_xlfn.XLOOKUP(K290,'Named Ranges'!$BC$4:$BC$6,'Named Ranges'!$BA$4:$BA$6,\"No\",-1,1))","v":""}]
[null,null,null,null,null,null,null,null,null,null,null,null,{"$f":"IF(K291=\"\",\"\",_xlfn.XLOOKUP(K291,'Named Ranges'!$BC$4:$BC$6,'Named Ranges'!$BA$4:$BA$6,\"No\",-1,1))","v":""}]
[null,null,null,null,null,null,null,null,null,null,null,null,{"$f":"IF(K292=\"\",\"\",_xlfn.XLOOKUP(K292,'Named Ranges'!$BC$4:$BC$6,'Named Ranges'!$BA$4:$BA$6,\"No\",-1,1))","v":""}]
[null,null,null,null,null,null,null,null,null,null,null,null,{"$f":"IF(K293=\"\",\"\",_xlfn.XLOOKUP(K293,'Named Ranges'!$BC$4:$BC$6,'Named Ranges'!$BA$4:$BA$6,\"No\",-1,1))","v":""}]
[null,null,null,null,null,null,null,null,null,null,null,null,{"$f":"IF(K294=\"\",\"\",_xlfn.XLOOKUP(K294,'Named Ranges'!$BC$4:$BC$6,'Named Ranges'!$BA$4:$BA$6,\"No\",-1,1))","v":""}]
[null,null,null,null,null,null,null,null,null,null,null,null,{"$f":"IF(K295=\"\",\"\",_xlfn.XLOOKUP(K295,'Named Ranges'!$BC$4:$BC$6,'Named Ranges'!$BA$4:$BA$6,\"No\",-1,1))","v":""}]
[null,null,null,null,null,null,null,null,null,null,null,null,{"$f":"IF(K296=\"\",\"\",_xlfn.XLOOKUP(K296,'Named Ranges'!$BC$4:$BC$6,'Named Ranges'!$BA$4:$BA$6,\"No\",-1,1))","v":""}]
[null,null,null,null,null,null,null,null,null,null,null,null,{"$f":"IF(K297=\"\",\"\",_xlfn.XLOOKUP(K297,'Named Ranges'!$BC$4:$BC$6,'Named Ranges'!$BA$4:$BA$6,\"No\",-1,1))","v":""}]
[null,null,null,null,null,null,null,null,null,null,null,null,{"$f":"IF(K298=\"\",\"\",_xlfn.XLOOKUP(K298,'Named Ranges'!$BC$4:$BC$6,'Named Ranges'!$BA$4:$BA$6,\"No\",-1,1))","v":""}]
[null,null,null,null,null,null,null,null,null,null,null,null,{"$f":"IF(K299=\"\",\"\",_xlfn.XLOOKUP(K299,'Named Ranges'!$BC$4:$BC$6,'Named Ranges'!$BA$4:$BA$6,\"No\",-1,1))","v":""}]
[null,null,null,null,null,null,null,null,null,null,null,null,{"$f":"IF(K300=\"\",\"\",_xlfn.XLOOKUP(K300,'Named Ranges'!$BC$4:$BC$6,'Named Ranges'!$BA$4:$BA$6,\"No\",-1,1))","v":""}]
[null,null,null,null,null,null,null,null,null,null,null,null,{"$f":"IF(K301=\"\",\"\",_xlfn.XLOOKUP(K301,'Named Ranges'!$BC$4:$BC$6,'Named Ranges'!$BA$4:$BA$6,\"No\",-1,1))","v":""}]
[null,null,null,null,null,null,null,null,null,null,null,null,{"$f":"IF(K302=\"\",\"\",_xlfn.XLOOKUP(K302,'Named Ranges'!$BC$4:$BC$6,'Named Ranges'!$BA$4:$BA$6,\"No\",-1,1))","v":""}]
[null,null,null,null,null,null,null,null,null,null,null,null,{"$f":"IF(K303=\"\",\"\",_xlfn.XLOOKUP(K303,'Named Ranges'!$BC$4:$BC$6,'Named Ranges'!$BA$4:$BA$6,\"No\",-1,1))","v":""}]
[null,null,null,null,null,null,null,null,null,null,null,null,{"$f":"IF(K304=\"\",\"\",_xlfn.XLOOKUP(K304,'Named Ranges'!$BC$4:$BC$6,'Named Ranges'!$BA$4:$BA$6,\"No\",-1,1))","v":""}]
[null,null,null,null,null,null,null,null,null,null,null,null,{"$f":"IF(K305=\"\",\"\",_xlfn.XLOOKUP(K305,'Named Ranges'!$BC$4:$BC$6,'Named Ranges'!$BA$4:$BA$6,\"No\",-1,1))","v":""}]
[null,null,null,null,null,null,null,null,null,null,null,null,{"$f":"IF(K306=\"\",\"\",_xlfn.XLOOKUP(K306,'Named Ranges'!$BC$4:$BC$6,'Named Ranges'!$BA$4:$BA$6,\"No\",-1,1))","v":""}]
[null,null,null,null,null,null,null,null,null,null,null,null,{"$f":"IF(K307=\"\",\"\",_xlfn.XLOOKUP(K307,'Named Ranges'!$BC$4:$BC$6,'Named Ranges'!$BA$4:$BA$6,\"No\",-1,1))","v":""}]
[null,null,null,null,null,null,null,null,null,null,null,null,{"$f":"IF(K308=\"\",\"\",_xlfn.XLOOKUP(K308,'Named Ranges'!$BC$4:$BC$6,'Named Ranges'!$BA$4:$BA$6,\"No\",-1,1))","v":""}]
[null,null,null,null,null,null,null,null,null,null,null,null,{"$f":"IF(K309=\"\",\"\",_xlfn.XLOOKUP(K309,'Named Ranges'!$BC$4:$BC$6,'Named Ranges'!$BA$4:$BA$6,\"No\",-1,1))","v":""}]
[null,null,null,null,null,null,null,null,null,null,null,null,{"$f":"IF(K310=\"\",\"\",_xlfn.XLOOKUP(K310,'Named Ranges'!$BC$4:$BC$6,'Named Ranges'!$BA$4:$BA$6,\"No\",-1,1))","v":""}]
[null,null,null,null,null,null,null,null,null,null,null,null,{"$f":"IF(K311=\"\",\"\",_xlfn.XLOOKUP(K311,'Named Ranges'!$BC$4:$BC$6,'Named Ranges'!$BA$4:$BA$6,\"No\",-1,1))","v":""}]
[null,null,null,null,null,null,null,null,null,null,null,null,{"$f":"IF(K312=\"\",\"\",_xlfn.XLOOKUP(K312,'Named Ranges'!$BC$4:$BC$6,'Named Ranges'!$BA$4:$BA$6,\"No\",-1,1))","v":""}]
[null,null,null,null,null,null,null,null,null,null,null,null,{"$f":"IF(K313=\"\",\"\",_xlfn.XLOOKUP(K313,'Named Ranges'!$BC$4:$BC$6,'Named Ranges'!$BA$4:$BA$6,\"No\",-1,1))","v":""}]
[null,null,null,null,null,null,null,null,null,null,null,null,{"$f":"IF(K314=\"\",\"\",_xlfn.XLOOKUP(K314,'Named Ranges'!$BC$4:$BC$6,'Named Ranges'!$BA$4:$BA$6,\"No\",-1,1))","v":""}]
[null,null,null,null,null,null,null,null,null,null,null,null,{"$f":"IF(K315=\"\",\"\",_xlfn.XLOOKUP(K315,'Named Ranges'!$BC$4:$BC$6,'Named Ranges'!$BA$4:$BA$6,\"No\",-1,1))","v":""}]
[null,null,null,null,null,null,null,null,null,null,null,null,{"$f":"IF(K316=\"\",\"\",_xlfn.XLOOKUP(K316,'Named Ranges'!$BC$4:$BC$6,'Named Ranges'!$BA$4:$BA$6,\"No\",-1,1))","v":""}]
[null,null,null,null,null,null,null,null,null,null,null,null,{"$f":"IF(K317=\"\",\"\",_xlfn.XLOOKUP(K317,'Named Ranges'!$BC$4:$BC$6,'Named Ranges'!$BA$4:$BA$6,\"No\",-1,1))","v":""}]
[null,null,null,null,null,null,null,null,null,null,null,null,{"$f":"IF(K318=\"\",\"\",_xlfn.XLOOKUP(K318,'Named Ranges'!$BC$4:$BC$6,'Named Ranges'!$BA$4:$BA$6,\"No\",-1,1))","v":""}]
[null,null,null,null,null,null,null,null,null,null,null,null,{"$f":"IF(K319=\"\",\"\",_xlfn.XLOOKUP(K319,'Named Ranges'!$BC$4:$BC$6,'Named Ranges'!$BA$4:$BA$6,\"No\",-1,1))","v":""}]
[null,null,null,null,null,null,null,null,null,null,null,null,{"$f":"IF(K320=\"\",\"\",_xlfn.XLOOKUP(K320,'Named Ranges'!$BC$4:$BC$6,'Named Ranges'!$BA$4:$BA$6,\"No\",-1,1))","v":""}]
[null,null,null,null,null,null,null,null,null,null,null,null,{"$f":"IF(K321=\"\",\"\",_xlfn.XLOOKUP(K321,'Named Ranges'!$BC$4:$BC$6,'Named Ranges'!$BA$4:$BA$6,\"No\",-1,1))","v":""}]
[null,null,null,null,null,null,null,null,null,null,null,null,{"$f":"IF(K322=\"\",\"\",_xlfn.XLOOKUP(K322,'Named Ranges'!$BC$4:$BC$6,'Named Ranges'!$BA$4:$BA$6,\"No\",-1,1))","v":""}]
[null,null,null,null,null,null,null,null,null,null,null,null,{"$f":"IF(K323=\"\",\"\",_xlfn.XLOOKUP(K323,'Named Ranges'!$BC$4:$BC$6,'Named Ranges'!$BA$4:$BA$6,\"No\",-1,1))","v":""}]
[null,null,null,null,null,null,null,null,null,null,null,null,{"$f":"IF(K324=\"\",\"\",_xlfn.XLOOKUP(K324,'Named Ranges'!$BC$4:$BC$6,'Named Ranges'!$BA$4:$BA$6,\"No\",-1,1))","v":""}]
[null,null,null,null,null,null,null,null,null,null,null,null,{"$f":"IF(K325=\"\",\"\",_xlfn.XLOOKUP(K325,'Named Ranges'!$BC$4:$BC$6,'Named Ranges'!$BA$4:$BA$6,\"No\",-1,1))","v":""}]
[null,null,null,null,null,null,null,null,null,null,null,null,{"$f":"IF(K326=\"\",\"\",_xlfn.XLOOKUP(K326,'Named Ranges'!$BC$4:$BC$6,'Named Ranges'!$BA$4:$BA$6,\"No\",-1,1))","v":""}]
[null,null,null,null,null,null,null,null,null,null,null,null,{"$f":"IF(K327=\"\",\"\",_xlfn.XLOOKUP(K327,'Named Ranges'!$BC$4:$BC$6,'Named Ranges'!$BA$4:$BA$6,\"No\",-1,1))","v":""}]
[null,null,null,null,null,null,null,null,null,null,null,null,{"$f":"IF(K328=\"\",\"\",_xlfn.XLOOKUP(K328,'Named Ranges'!$BC$4:$BC$6,'Named Ranges'!$BA$4:$BA$6,\"No\",-1,1))","v":""}]
[null,null,null,null,null,null,null,null,null,null,null,null,{"$f":"IF(K329=\"\",\"\",_xlfn.XLOOKUP(K329,'Named Ranges'!$BC$4:$BC$6,'Named Ranges'!$BA$4:$BA$6,\"No\",-1,1))","v":""}]
[null,null,null,null,null,null,null,null,null,null,null,null,{"$f":"IF(K330=\"\",\"\",_xlfn.XLOOKUP(K330,'Named Ranges'!$BC$4:$BC$6,'Named Ranges'!$BA$4:$BA$6,\"No\",-1,1))","v":""}]
[null,null,null,null,null,null,null,null,null,null,null,null,{"$f":"IF(K331=\"\",\"\",_xlfn.XLOOKUP(K331,'Named Ranges'!$BC$4:$BC$6,'Named Ranges'!$BA$4:$BA$6,\"No\",-1,1))","v":""}]
[null,null,null,null,null,null,null,null,null,null,null,null,{"$f":"IF(K332=\"\",\"\",_xlfn.XLOOKUP(K332,'Named Ranges'!$BC$4:$BC$6,'Named Ranges'!$BA$4:$BA$6,\"No\",-1,1))","v":""}]
[null,null,null,null,null,null,null,null,null,null,null,null,{"$f":"IF(K333=\"\",\"\",_xlfn.XLOOKUP(K333,'Named Ranges'!$BC$4:$BC$6,'Named Ranges'!$BA$4:$BA$6,\"No\",-1,1))","v":""}]
[null,null,null,null,null,null,null,null,null,null,null,null,{"$f":"IF(K334=\"\",\"\",_xlfn.XLOOKUP(K334,'Named Ranges'!$BC$4:$BC$6,'Named Ranges'!$BA$4:$BA$6,\"No\",-1,1))","v":""}]
[null,null,null,null,null,null,null,null,null,null,null,null,{"$f":"IF(K335=\"\",\"\",_xlfn.XLOOKUP(K335,'Named Ranges'!$BC$4:$BC$6,'Named Ranges'!$BA$4:$BA$6,\"No\",-1,1))","v":""}]
[null,null,null,null,null,null,null,null,null,null,null,null,{"$f":"IF(K336=\"\",\"\",_xlfn.XLOOKUP(K336,'Named Ranges'!$BC$4:$BC$6,'Named Ranges'!$BA$4:$BA$6,\"No\",-1,1))","v":""}]
[null,null,null,null,null,null,null,null,null,null,null,null,{"$f":"IF(K337=\"\",\"\",_xlfn.XLOOKUP(K337,'Named Ranges'!$BC$4:$BC$6,'Named Ranges'!$BA$4:$BA$6,\"No\",-1,1))","v":""}]
[null,null,null,null,null,null,null,null,null,null,null,null,{"$f":"IF(K338=\"\",\"\",_xlfn.XLOOKUP(K338,'Named Ranges'!$BC$4:$BC$6,'Named Ranges'!$BA$4:$BA$6,\"No\",-1,1))","v":""}]
[null,null,null,null,null,null,null,null,null,null,null,null,{"$f":"IF(K339=\"\",\"\",_xlfn.XLOOKUP(K339,'Named Ranges'!$BC$4:$BC$6,'Named Ranges'!$BA$4:$BA$6,\"No\",-1,1))","v":""}]
[null,null,null,null,null,null,null,null,null,null,null,null,{"$f":"IF(K340=\"\",\"\",_xlfn.XLOOKUP(K340,'Named Ranges'!$BC$4:$BC$6,'Named Ranges'!$BA$4:$BA$6,\"No\",-1,1))","v":""}]
[null,null,null,null,null,null,null,null,null,null,null,null,{"$f":"IF(K341=\"\",\"\",_xlfn.XLOOKUP(K341,'Named Ranges'!$BC$4:$BC$6,'Named Ranges'!$BA$4:$BA$6,\"No\",-1,1))","v":""}]
[null,null,null,null,null,null,null,null,null,null,null,null,{"$f":"IF(K342=\"\",\"\",_xlfn.XLOOKUP(K342,'Named Ranges'!$BC$4:$BC$6,'Named Ranges'!$BA$4:$BA$6,\"No\",-1,1))","v":""}]
[null,null,null,null,null,null,null,null,null,null,null,null,{"$f":"IF(K343=\"\",\"\",_xlfn.XLOOKUP(K343,'Named Ranges'!$BC$4:$BC$6,'Named Ranges'!$BA$4:$BA$6,\"No\",-1,1))","v":""}]
[null,null,null,null,null,null,null,null,null,null,null,null,{"$f":"IF(K344=\"\",\"\",_xlfn.XLOOKUP(K344,'Named Ranges'!$BC$4:$BC$6,'Named Ranges'!$BA$4:$BA$6,\"No\",-1,1))","v":""}]
[null,null,null,null,null,null,null,null,null,null,null,null,{"$f":"IF(K345=\"\",\"\",_xlfn.XLOOKUP(K345,'Named Ranges'!$BC$4:$BC$6,'Named Ranges'!$BA$4:$BA$6,\"No\",-1,1))","v":""}]
[null,null,null,null,null,null,null,null,null,null,null,null,{"$f":"IF(K346=\"\",\"\",_xlfn.XLOOKUP(K346,'Named Ranges'!$BC$4:$BC$6,'Named Ranges'!$BA$4:$BA$6,\"No\",-1,1))","v":""}]
[null,null,null,null,null,null,null,null,null,null,null,null,{"$f":"IF(K347=\"\",\"\",_xlfn.XLOOKUP(K347,'Named Ranges'!$BC$4:$BC$6,'Named Ranges'!$BA$4:$BA$6,\"No\",-1,1))","v":""}]
[null,null,null,null,null,null,null,null,null,null,null,null,{"$f":"IF(K348=\"\",\"\",_xlfn.XLOOKUP(K348,'Named Ranges'!$BC$4:$BC$6,'Named Ranges'!$BA$4:$BA$6,\"No\",-1,1))","v":""}]
[null,null,null,null,null,null,null,null,null,null,null,null,{"$f":"IF(K349=\"\",\"\",_xlfn.XLOOKUP(K349,'Named Ranges'!$BC$4:$BC$6,'Named Ranges'!$BA$4:$BA$6,\"No\",-1,1))","v":""}]
[null,null,null,null,null,null,null,null,null,null,null,null,{"$f":"IF(K350=\"\",\"\",_xlfn.XLOOKUP(K350,'Named Ranges'!$BC$4:$BC$6,'Named Ranges'!$BA$4:$BA$6,\"No\",-1,1))","v":""}]
[null,null,null,null,null,null,null,null,null,null,null,null,{"$f":"IF(K351=\"\",\"\",_xlfn.XLOOKUP(K351,'Named Ranges'!$BC$4:$BC$6,'Named Ranges'!$BA$4:$BA$6,\"No\",-1,1))","v":""}]
[null,null,null,null,null,null,null,null,null,null,null,null,{"$f":"IF(K352=\"\",\"\",_xlfn.XLOOKUP(K352,'Named Ranges'!$BC$4:$BC$6,'Named Ranges'!$BA$4:$BA$6,\"No\",-1,1))","v":""}]
[null,null,null,null,null,null,null,null,null,null,null,null,{"$f":"IF(K353=\"\",\"\",_xlfn.XLOOKUP(K353,'Named Ranges'!$BC$4:$BC$6,'Named Ranges'!$BA$4:$BA$6,\"No\",-1,1))","v":""}]
[null,null,null,null,null,null,null,null,null,null,null,null,{"$f":"IF(K354=\"\",\"\",_xlfn.XLOOKUP(K354,'Named Ranges'!$BC$4:$BC$6,'Named Ranges'!$BA$4:$BA$6,\"No\",-1,1))","v":""}]
[null,null,null,null,null,null,null,null,null,null,null,null,{"$f":"IF(K355=\"\",\"\",_xlfn.XLOOKUP(K355,'Named Ranges'!$BC$4:$BC$6,'Named Ranges'!$BA$4:$BA$6,\"No\",-1,1))","v":""}]
[null,null,null,null,null,null,null,null,null,null,null,null,{"$f":"IF(K356=\"\",\"\",_xlfn.XLOOKUP(K356,'Named Ranges'!$BC$4:$BC$6,'Named Ranges'!$BA$4:$BA$6,\"No\",-1,1))","v":""}]
[null,null,null,null,null,null,null,null,null,null,null,null,{"$f":"IF(K357=\"\",\"\",_xlfn.XLOOKUP(K357,'Named Ranges'!$BC$4:$BC$6,'Named Ranges'!$BA$4:$BA$6,\"No\",-1,1))","v":""}]
[null,null,null,null,null,null,null,null,null,null,null,null,{"$f":"IF(K358=\"\",\"\",_xlfn.XLOOKUP(K358,'Named Ranges'!$BC$4:$BC$6,'Named Ranges'!$BA$4:$BA$6,\"No\",-1,1))","v":""}]
[null,null,null,null,null,null,null,null,null,null,null,null,{"$f":"IF(K359=\"\",\"\",_xlfn.XLOOKUP(K359,'Named Ranges'!$BC$4:$BC$6,'Named Ranges'!$BA$4:$BA$6,\"No\",-1,1))","v":""}]
[null,null,null,null,null,null,null,null,null,null,null,null,{"$f":"IF(K360=\"\",\"\",_xlfn.XLOOKUP(K360,'Named Ranges'!$BC$4:$BC$6,'Named Ranges'!$BA$4:$BA$6,\"No\",-1,1))","v":""}]
[null,null,null,null,null,null,null,null,null,null,null,null,{"$f":"IF(K361=\"\",\"\",_xlfn.XLOOKUP(K361,'Named Ranges'!$BC$4:$BC$6,'Named Ranges'!$BA$4:$BA$6,\"No\",-1,1))","v":""}]
[null,null,null,null,null,null,null,null,null,null,null,null,{"$f":"IF(K362=\"\",\"\",_xlfn.XLOOKUP(K362,'Named Ranges'!$BC$4:$BC$6,'Named Ranges'!$BA$4:$BA$6,\"No\",-1,1))","v":""}]
[null,null,null,null,null,null,null,null,null,null,null,null,{"$f":"IF(K363=\"\",\"\",_xlfn.XLOOKUP(K363,'Named Ranges'!$BC$4:$BC$6,'Named Ranges'!$BA$4:$BA$6,\"No\",-1,1))","v":""}]
[null,null,null,null,null,null,null,null,null,null,null,null,{"$f":"IF(K364=\"\",\"\",_xlfn.XLOOKUP(K364,'Named Ranges'!$BC$4:$BC$6,'Named Ranges'!$BA$4:$BA$6,\"No\",-1,1))","v":""}]
[null,null,null,null,null,null,null,null,null,null,null,null,{"$f":"IF(K365=\"\",\"\",_xlfn.XLOOKUP(K365,'Named Ranges'!$BC$4:$BC$6,'Named Ranges'!$BA$4:$BA$6,\"No\",-1,1))","v":""}]
[null,null,null,null,null,null,null,null,null,null,null,null,{"$f":"IF(K366=\"\",\"\",_xlfn.XLOOKUP(K366,'Named Ranges'!$BC$4:$BC$6,'Named Ranges'!$BA$4:$BA$6,\"No\",-1,1))","v":""}]
[null,null,null,null,null,null,null,null,null,null,null,null,{"$f":"IF(K367=\"\",\"\",_xlfn.XLOOKUP(K367,'Named Ranges'!$BC$4:$BC$6,'Named Ranges'!$BA$4:$BA$6,\"No\",-1,1))","v":""}]
[null,null,null,null,null,null,null,null,null,null,null,null,{"$f":"IF(K368=\"\",\"\",_xlfn.XLOOKUP(K368,'Named Ranges'!$BC$4:$BC$6,'Named Ranges'!$BA$4:$BA$6,\"No\",-1,1))","v":""}]
[null,null,null,null,null,null,null,null,null,null,null,null,{"$f":"IF(K369=\"\",\"\",_xlfn.XLOOKUP(K369,'Named Ranges'!$BC$4:$BC$6,'Named Ranges'!$BA$4:$BA$6,\"No\",-1,1))","v":""}]
[null,null,null,null,null,null,null,null,null,null,null,null,{"$f":"IF(K370=\"\",\"\",_xlfn.XLOOKUP(K370,'Named Ranges'!$BC$4:$BC$6,'Named Ranges'!$BA$4:$BA$6,\"No\",-1,1))","v":""}]
[null,null,null,null,null,null,null,null,null,null,null,null,{"$f":"IF(K371=\"\",\"\",_xlfn.XLOOKUP(K371,'Named Ranges'!$BC$4:$BC$6,'Named Ranges'!$BA$4:$BA$6,\"No\",-1,1))","v":""}]
[null,null,null,null,null,null,null,null,null,null,null,null,{"$f":"IF(K372=\"\",\"\",_xlfn.XLOOKUP(K372,'Named Ranges'!$BC$4:$BC$6,'Named Ranges'!$BA$4:$BA$6,\"No\",-1,1))","v":""}]
[null,null,null,null,null,null,null,null,null,null,null,null,{"$f":"IF(K373=\"\",\"\",_xlfn.XLOOKUP(K373,'Named Ranges'!$BC$4:$BC$6,'Named Ranges'!$BA$4:$BA$6,\"No\",-1,1))","v":""}]
[null,null,null,null,null,null,null,null,null,null,null,null,{"$f":"IF(K374=\"\",\"\",_xlfn.XLOOKUP(K374,'Named Ranges'!$BC$4:$BC$6,'Named Ranges'!$BA$4:$BA$6,\"No\",-1,1))","v":""}]
[null,null,null,null,null,null,null,null,null,null,null,null,{"$f":"IF(K375=\"\",\"\",_xlfn.XLOOKUP(K375,'Named Ranges'!$BC$4:$BC$6,'Named Ranges'!$BA$4:$BA$6,\"No\",-1,1))","v":""}]
[null,null,null,null,null,null,null,null,null,null,null,null,{"$f":"IF(K376=\"\",\"\",_xlfn.XLOOKUP(K376,'Named Ranges'!$BC$4:$BC$6,'Named Ranges'!$BA$4:$BA$6,\"No\",-1,1))","v":""}]
[null,null,null,null,null,null,null,null,null,null,null,null,{"$f":"IF(K377=\"\",\"\",_xlfn.XLOOKUP(K377,'Named Ranges'!$BC$4:$BC$6,'Named Ranges'!$BA$4:$BA$6,\"No\",-1,1))","v":""}]
[null,null,null,null,null,null,null,null,null,null,null,null,{"$f":"IF(K378=\"\",\"\",_xlfn.XLOOKUP(K378,'Named Ranges'!$BC$4:$BC$6,'Named Ranges'!$BA$4:$BA$6,\"No\",-1,1))","v":""}]
[null,null,null,null,null,null,null,null,null,null,null,null,{"$f":"IF(K379=\"\",\"\",_xlfn.XLOOKUP(K379,'Named Ranges'!$BC$4:$BC$6,'Named Ranges'!$BA$4:$BA$6,\"No\",-1,1))","v":""}]
[null,null,null,null,null,null,null,null,null,null,null,null,{"$f":"IF(K380=\"\",\"\",_xlfn.XLOOKUP(K380,'Named Ranges'!$BC$4:$BC$6,'Named Ranges'!$BA$4:$BA$6,\"No\",-1,1))","v":""}]
[null,null,null,null,null,null,null,null,null,null,null,null,{"$f":"IF(K381=\"\",\"\",_xlfn.XLOOKUP(K381,'Named Ranges'!$BC$4:$BC$6,'Named Ranges'!$BA$4:$BA$6,\"No\",-1,1))","v":""}]
[null,null,null,null,null,null,null,null,null,null,null,null,{"$f":"IF(K382=\"\",\"\",_xlfn.XLOOKUP(K382,'Named Ranges'!$BC$4:$BC$6,'Named Ranges'!$BA$4:$BA$6,\"No\",-1,1))","v":""}]
[null,null,null,null,null,null,null,null,null,null,null,null,{"$f":"IF(K383=\"\",\"\",_xlfn.XLOOKUP(K383,'Named Ranges'!$BC$4:$BC$6,'Named Ranges'!$BA$4:$BA$6,\"No\",-1,1))","v":""}]
[null,null,null,null,null,null,null,null,null,null,null,null,{"$f":"IF(K384=\"\",\"\",_xlfn.XLOOKUP(K384,'Named Ranges'!$BC$4:$BC$6,'Named Ranges'!$BA$4:$BA$6,\"No\",-1,1))","v":""}]
[null,null,null,null,null,null,null,null,null,null,null,null,{"$f":"IF(K385=\"\",\"\",_xlfn.XLOOKUP(K385,'Named Ranges'!$BC$4:$BC$6,'Named Ranges'!$BA$4:$BA$6,\"No\",-1,1))","v":""}]
[null,null,null,null,null,null,null,null,null,null,null,null,{"$f":"IF(K386=\"\",\"\",_xlfn.XLOOKUP(K386,'Named Ranges'!$BC$4:$BC$6,'Named Ranges'!$BA$4:$BA$6,\"No\",-1,1))","v":""}]
[null,null,null,null,null,null,null,null,null,null,null,null,{"$f":"IF(K387=\"\",\"\",_xlfn.XLOOKUP(K387,'Named Ranges'!$BC$4:$BC$6,'Named Ranges'!$BA$4:$BA$6,\"No\",-1,1))","v":""}]
[null,null,null,null,null,null,null,null,null,null,null,null,{"$f":"IF(K388=\"\",\"\",_xlfn.XLOOKUP(K388,'Named Ranges'!$BC$4:$BC$6,'Named Ranges'!$BA$4:$BA$6,\"No\",-1,1))","v":""}]
[null,null,null,null,null,null,null,null,null,null,null,null,{"$f":"IF(K389=\"\",\"\",_xlfn.XLOOKUP(K389,'Named Ranges'!$BC$4:$BC$6,'Named Ranges'!$BA$4:$BA$6,\"No\",-1,1))","v":""}]
[null,null,null,null,null,null,null,null,null,null,null,null,{"$f":"IF(K390=\"\",\"\",_xlfn.XLOOKUP(K390,'Named Ranges'!$BC$4:$BC$6,'Named Ranges'!$BA$4:$BA$6,\"No\",-1,1))","v":""}]
[null,null,null,null,null,null,null,null,null,null,null,null,{"$f":"IF(K391=\"\",\"\",_xlfn.XLOOKUP(K391,'Named Ranges'!$BC$4:$BC$6,'Named Ranges'!$BA$4:$BA$6,\"No\",-1,1))","v":""}]
[null,null,null,null,null,null,null,null,null,null,null,null,{"$f":"IF(K392=\"\",\"\",_xlfn.XLOOKUP(K392,'Named Ranges'!$BC$4:$BC$6,'Named Ranges'!$BA$4:$BA$6,\"No\",-1,1))","v":""}]
[null,null,null,null,null,null,null,null,null,null,null,null,{"$f":"IF(K393=\"\",\"\",_xlfn.XLOOKUP(K393,'Named Ranges'!$BC$4:$BC$6,'Named Ranges'!$BA$4:$BA$6,\"No\",-1,1))","v":""}]
[null,null,null,null,null,null,null,null,null,null,null,null,{"$f":"IF(K394=\"\",\"\",_xlfn.XLOOKUP(K394,'Named Ranges'!$BC$4:$BC$6,'Named Ranges'!$BA$4:$BA$6,\"No\",-1,1))","v":""}]
[null,null,null,null,null,null,null,null,null,null,null,null,{"$f":"IF(K395=\"\",\"\",_xlfn.XLOOKUP(K395,'Named Ranges'!$BC$4:$BC$6,'Named Ranges'!$BA$4:$BA$6,\"No\",-1,1))","v":""}]
[null,null,null,null,null,null,null,null,null,null,null,null,{"$f":"IF(K396=\"\",\"\",_xlfn.XLOOKUP(K396,'Named Ranges'!$BC$4:$BC$6,'Named Ranges'!$BA$4:$BA$6,\"No\",-1,1))","v":""}]
[null,null,null,null,null,null,null,null,null,null,null,null,{"$f":"IF(K397=\"\",\"\",_xlfn.XLOOKUP(K397,'Named Ranges'!$BC$4:$BC$6,'Named Ranges'!$BA$4:$BA$6,\"No\",-1,1))","v":""}]
[null,null,null,null,null,null,null,null,null,null,null,null,{"$f":"IF(K398=\"\",\"\",_xlfn.XLOOKUP(K398,'Named Ranges'!$BC$4:$BC$6,'Named Ranges'!$BA$4:$BA$6,\"No\",-1,1))","v":""}]
[null,null,null,null,null,null,null,null,null,null,null,null,{"$f":"IF(K399=\"\",\"\",_xlfn.XLOOKUP(K399,'Named Ranges'!$BC$4:$BC$6,'Named Ranges'!$BA$4:$BA$6,\"No\",-1,1))","v":""}]
[null,null,null,null,null,null,null,null,null,null,null,null,{"$f":"IF(K400=\"\",\"\",_xlfn.XLOOKUP(K400,'Named Ranges'!$BC$4:$BC$6,'Named Ranges'!$BA$4:$BA$6,\"No\",-1,1))","v":""}]
[null,null,null,null,null,null,null,null,null,null,null,null,{"$f":"IF(K401=\"\",\"\",_xlfn.XLOOKUP(K401,'Named Ranges'!$BC$4:$BC$6,'Named Ranges'!$BA$4:$BA$6,\"No\",-1,1))","v":""}]
[null,null,null,null,null,null,null,null,null,null,null,null,{"$f":"IF(K402=\"\",\"\",_xlfn.XLOOKUP(K402,'Named Ranges'!$BC$4:$BC$6,'Named Ranges'!$BA$4:$BA$6,\"No\",-1,1))","v":""}]
[null,null,null,null,null,null,null,null,null,null,null,null,{"$f":"IF(K403=\"\",\"\",_xlfn.XLOOKUP(K403,'Named Ranges'!$BC$4:$BC$6,'Named Ranges'!$BA$4:$BA$6,\"No\",-1,1))","v":""}]
[null,null,null,null,null,null,null,null,null,null,null,null,{"$f":"IF(K404=\"\",\"\",_xlfn.XLOOKUP(K404,'Named Ranges'!$BC$4:$BC$6,'Named Ranges'!$BA$4:$BA$6,\"No\",-1,1))","v":""}]
[null,null,null,null,null,null,null,null,null,null,null,null,{"$f":"IF(K405=\"\",\"\",_xlfn.XLOOKUP(K405,'Named Ranges'!$BC$4:$BC$6,'Named Ranges'!$BA$4:$BA$6,\"No\",-1,1))","v":""}]
[null,null,null,null,null,null,null,null,null,null,null,null,{"$f":"IF(K406=\"\",\"\",_xlfn.XLOOKUP(K406,'Named Ranges'!$BC$4:$BC$6,'Named Ranges'!$BA$4:$BA$6,\"No\",-1,1))","v":""}]
[null,null,null,null,null,null,null,null,null,null,null,null,{"$f":"IF(K407=\"\",\"\",_xlfn.XLOOKUP(K407,'Named Ranges'!$BC$4:$BC$6,'Named Ranges'!$BA$4:$BA$6,\"No\",-1,1))","v":""}]
[null,null,null,null,null,null,null,null,null,null,null,null,{"$f":"IF(K408=\"\",\"\",_xlfn.XLOOKUP(K408,'Named Ranges'!$BC$4:$BC$6,'Named Ranges'!$BA$4:$BA$6,\"No\",-1,1))","v":""}]
[null,null,null,null,null,null,null,null,null,null,null,null,{"$f":"IF(K409=\"\",\"\",_xlfn.XLOOKUP(K409,'Named Ranges'!$BC$4:$BC$6,'Named Ranges'!$BA$4:$BA$6,\"No\",-1,1))","v":""}]
[null,null,null,null,null,null,null,null,null,null,null,null,{"$f":"IF(K410=\"\",\"\",_xlfn.XLOOKUP(K410,'Named Ranges'!$BC$4:$BC$6,'Named Ranges'!$BA$4:$BA$6,\"No\",-1,1))","v":""}]
[null,null,null,null,null,null,null,null,null,null,null,null,{"$f":"IF(K411=\"\",\"\",_xlfn.XLOOKUP(K411,'Named Ranges'!$BC$4:$BC$6,'Named Ranges'!$BA$4:$BA$6,\"No\",-1,1))","v":""}]
[null,null,null,null,null,null,null,null,null,null,null,null,{"$f":"IF(K412=\"\",\"\",_xlfn.XLOOKUP(K412,'Named Ranges'!$BC$4:$BC$6,'Named Ranges'!$BA$4:$BA$6,\"No\",-1,1))","v":""}]
[null,null,null,null,null,null,null,null,null,null,null,null,{"$f":"IF(K413=\"\",\"\",_xlfn.XLOOKUP(K413,'Named Ranges'!$BC$4:$BC$6,'Named Ranges'!$BA$4:$BA$6,\"No\",-1,1))","v":""}]
[null,null,null,null,null,null,null,null,null,null,null,null,{"$f":"IF(K414=\"\",\"\",_xlfn.XLOOKUP(K414,'Named Ranges'!$BC$4:$BC$6,'Named Ranges'!$BA$4:$BA$6,\"No\",-1,1))","v":""}]
[null,null,null,null,null,null,null,null,null,null,null,null,{"$f":"IF(K415=\"\",\"\",_xlfn.XLOOKUP(K415,'Named Ranges'!$BC$4:$BC$6,'Named Ranges'!$BA$4:$BA$6,\"No\",-1,1))","v":""}]
[null,null,null,null,null,null,null,null,null,null,null,null,{"$f":"IF(K416=\"\",\"\",_xlfn.XLOOKUP(K416,'Named Ranges'!$BC$4:$BC$6,'Named Ranges'!$BA$4:$BA$6,\"No\",-1,1))","v":""}]
[null,null,null,null,null,null,null,null,null,null,null,null,{"$f":"IF(K417=\"\",\"\",_xlfn.XLOOKUP(K417,'Named Ranges'!$BC$4:$BC$6,'Named Ranges'!$BA$4:$BA$6,\"No\",-1,1))","v":""}]
[null,null,null,null,null,null,null,null,null,null,null,null,{"$f":"IF(K418=\"\",\"\",_xlfn.XLOOKUP(K418,'Named Ranges'!$BC$4:$BC$6,'Named Ranges'!$BA$4:$BA$6,\"No\",-1,1))","v":""}]
[null,null,null,null,null,null,null,null,null,null,null,null,{"$f":"IF(K419=\"\",\"\",_xlfn.XLOOKUP(K419,'Named Ranges'!$BC$4:$BC$6,'Named Ranges'!$BA$4:$BA$6,\"No\",-1,1))","v":""}]
[null,null,null,null,null,null,null,null,null,null,null,null,{"$f":"IF(K420=\"\",\"\",_xlfn.XLOOKUP(K420,'Named Ranges'!$BC$4:$BC$6,'Named Ranges'!$BA$4:$BA$6,\"No\",-1,1))","v":""}]
[null,null,null,null,null,null,null,null,null,null,null,null,{"$f":"IF(K421=\"\",\"\",_xlfn.XLOOKUP(K421,'Named Ranges'!$BC$4:$BC$6,'Named Ranges'!$BA$4:$BA$6,\"No\",-1,1))","v":""}]
[null,null,null,null,null,null,null,null,null,null,null,null,{"$f":"IF(K422=\"\",\"\",_xlfn.XLOOKUP(K422,'Named Ranges'!$BC$4:$BC$6,'Named Ranges'!$BA$4:$BA$6,\"No\",-1,1))","v":""}]
[null,null,null,null,null,null,null,null,null,null,null,null,{"$f":"IF(K423=\"\",\"\",_xlfn.XLOOKUP(K423,'Named Ranges'!$BC$4:$BC$6,'Named Ranges'!$BA$4:$BA$6,\"No\",-1,1))","v":""}]
[null,null,null,null,null,null,null,null,null,null,null,null,{"$f":"IF(K424=\"\",\"\",_xlfn.XLOOKUP(K424,'Named Ranges'!$BC$4:$BC$6,'Named Ranges'!$BA$4:$BA$6,\"No\",-1,1))","v":""}]
[null,null,null,null,null,null,null,null,null,null,null,null,{"$f":"IF(K425=\"\",\"\",_xlfn.XLOOKUP(K425,'Named Ranges'!$BC$4:$BC$6,'Named Ranges'!$BA$4:$BA$6,\"No\",-1,1))","v":""}]
[null,null,null,null,null,null,null,null,null,null,null,null,{"$f":"IF(K426=\"\",\"\",_xlfn.XLOOKUP(K426,'Named Ranges'!$BC$4:$BC$6,'Named Ranges'!$BA$4:$BA$6,\"No\",-1,1))","v":""}]
[null,null,null,null,null,null,null,null,null,null,null,null,{"$f":"IF(K427=\"\",\"\",_xlfn.XLOOKUP(K427,'Named Ranges'!$BC$4:$BC$6,'Named Ranges'!$BA$4:$BA$6,\"No\",-1,1))","v":""}]
[null,null,null,null,null,null,null,null,null,null,null,null,{"$f":"IF(K428=\"\",\"\",_xlfn.XLOOKUP(K428,'Named Ranges'!$BC$4:$BC$6,'Named Ranges'!$BA$4:$BA$6,\"No\",-1,1))","v":""}]
[null,null,null,null,null,null,null,null,null,null,null,null,{"$f":"IF(K429=\"\",\"\",_xlfn.XLOOKUP(K429,'Named Ranges'!$BC$4:$BC$6,'Named Ranges'!$BA$4:$BA$6,\"No\",-1,1))","v":""}]
[null,null,null,null,null,null,null,null,null,null,null,null,{"$f":"IF(K430=\"\",\"\",_xlfn.XLOOKUP(K430,'Named Ranges'!$BC$4:$BC$6,'Named Ranges'!$BA$4:$BA$6,\"No\",-1,1))","v":""}]
[null,null,null,null,null,null,null,null,null,null,null,null,{"$f":"IF(K431=\"\",\"\",_xlfn.XLOOKUP(K431,'Named Ranges'!$BC$4:$BC$6,'Named Ranges'!$BA$4:$BA$6,\"No\",-1,1))","v":""}]
[null,null,null,null,null,null,null,null,null,null,null,null,{"$f":"IF(K432=\"\",\"\",_xlfn.XLOOKUP(K432,'Named Ranges'!$BC$4:$BC$6,'Named Ranges'!$BA$4:$BA$6,\"No\",-1,1))","v":""}]
[null,null,null,null,null,null,null,null,null,null,null,null,{"$f":"IF(K433=\"\",\"\",_xlfn.XLOOKUP(K433,'Named Ranges'!$BC$4:$BC$6,'Named Ranges'!$BA$4:$BA$6,\"No\",-1,1))","v":""}]
[null,null,null,null,null,null,null,null,null,null,null,null,{"$f":"IF(K434=\"\",\"\",_xlfn.XLOOKUP(K434,'Named Ranges'!$BC$4:$BC$6,'Named Ranges'!$BA$4:$BA$6,\"No\",-1,1))","v":""}]
[null,null,null,null,null,null,null,null,null,null,null,null,{"$f":"IF(K435=\"\",\"\",_xlfn.XLOOKUP(K435,'Named Ranges'!$BC$4:$BC$6,'Named Ranges'!$BA$4:$BA$6,\"No\",-1,1))","v":""}]
[null,null,null,null,null,null,null,null,null,null,null,null,{"$f":"IF(K436=\"\",\"\",_xlfn.XLOOKUP(K436,'Named Ranges'!$BC$4:$BC$6,'Named Ranges'!$BA$4:$BA$6,\"No\",-1,1))","v":""}]
[null,null,null,null,null,null,null,null,null,null,null,null,{"$f":"IF(K437=\"\",\"\",_xlfn.XLOOKUP(K437,'Named Ranges'!$BC$4:$BC$6,'Named Ranges'!$BA$4:$BA$6,\"No\",-1,1))","v":""}]
[null,null,null,null,null,null,null,null,null,null,null,null,{"$f":"IF(K438=\"\",\"\",_xlfn.XLOOKUP(K438,'Named Ranges'!$BC$4:$BC$6,'Named Ranges'!$BA$4:$BA$6,\"No\",-1,1))","v":""}]
[null,null,null,null,null,null,null,null,null,null,null,null,{"$f":"IF(K439=\"\",\"\",_xlfn.XLOOKUP(K439,'Named Ranges'!$BC$4:$BC$6,'Named Ranges'!$BA$4:$BA$6,\"No\",-1,1))","v":""}]
[null,null,null,null,null,null,null,null,null,null,null,null,{"$f":"IF(K440=\"\",\"\",_xlfn.XLOOKUP(K440,'Named Ranges'!$BC$4:$BC$6,'Named Ranges'!$BA$4:$BA$6,\"No\",-1,1))","v":""}]
[null,null,null,null,null,null,null,null,null,null,null,null,{"$f":"IF(K441=\"\",\"\",_xlfn.XLOOKUP(K441,'Named Ranges'!$BC$4:$BC$6,'Named Ranges'!$BA$4:$BA$6,\"No\",-1,1))","v":""}]
[null,null,null,null,null,null,null,null,null,null,null,null,{"$f":"IF(K442=\"\",\"\",_xlfn.XLOOKUP(K442,'Named Ranges'!$BC$4:$BC$6,'Named Ranges'!$BA$4:$BA$6,\"No\",-1,1))","v":""}]
[null,null,null,null,null,null,null,null,null,null,null,null,{"$f":"IF(K443=\"\",\"\",_xlfn.XLOOKUP(K443,'Named Ranges'!$BC$4:$BC$6,'Named Ranges'!$BA$4:$BA$6,\"No\",-1,1))","v":""}]
[null,null,null,null,null,null,null,null,null,null,null,null,{"$f":"IF(K444=\"\",\"\",_xlfn.XLOOKUP(K444,'Named Ranges'!$BC$4:$BC$6,'Named Ranges'!$BA$4:$BA$6,\"No\",-1,1))","v":""}]
[null,null,null,null,null,null,null,null,null,null,null,null,{"$f":"IF(K445=\"\",\"\",_xlfn.XLOOKUP(K445,'Named Ranges'!$BC$4:$BC$6,'Named Ranges'!$BA$4:$BA$6,\"No\",-1,1))","v":""}]
[null,null,null,null,null,null,null,null,null,null,null,null,{"$f":"IF(K446=\"\",\"\",_xlfn.XLOOKUP(K446,'Named Ranges'!$BC$4:$BC$6,'Named Ranges'!$BA$4:$BA$6,\"No\",-1,1))","v":""}]
[null,null,null,null,null,null,null,null,null,null,null,null,{"$f":"IF(K447=\"\",\"\",_xlfn.XLOOKUP(K447,'Named Ranges'!$BC$4:$BC$6,'Named Ranges'!$BA$4:$BA$6,\"No\",-1,1))","v":""}]
[null,null,null,null,null,null,null,null,null,null,null,null,{"$f":"IF(K448=\"\",\"\",_xlfn.XLOOKUP(K448,'Named Ranges'!$BC$4:$BC$6,'Named Ranges'!$BA$4:$BA$6,\"No\",-1,1))","v":""}]
[null,null,null,null,null,null,null,null,null,null,null,null,{"$f":"IF(K449=\"\",\"\",_xlfn.XLOOKUP(K449,'Named Ranges'!$BC$4:$BC$6,'Named Ranges'!$BA$4:$BA$6,\"No\",-1,1))","v":""}]
[null,null,null,null,null,null,null,null,null,null,null,null,{"$f":"IF(K450=\"\",\"\",_xlfn.XLOOKUP(K450,'Named Ranges'!$BC$4:$BC$6,'Named Ranges'!$BA$4:$BA$6,\"No\",-1,1))","v":""}]
[null,null,null,null,null,null,null,null,null,null,null,null,{"$f":"IF(K451=\"\",\"\",_xlfn.XLOOKUP(K451,'Named Ranges'!$BC$4:$BC$6,'Named Ranges'!$BA$4:$BA$6,\"No\",-1,1))","v":""}]
[null,null,null,null,null,null,null,null,null,null,null,null,{"$f":"IF(K452=\"\",\"\",_xlfn.XLOOKUP(K452,'Named Ranges'!$BC$4:$BC$6,'Named Ranges'!$BA$4:$BA$6,\"No\",-1,1))","v":""}]
[null,null,null,null,null,null,null,null,null,null,null,null,{"$f":"IF(K453=\"\",\"\",_xlfn.XLOOKUP(K453,'Named Ranges'!$BC$4:$BC$6,'Named Ranges'!$BA$4:$BA$6,\"No\",-1,1))","v":""}]
[null,null,null,null,null,null,null,null,null,null,null,null,{"$f":"IF(K454=\"\",\"\",_xlfn.XLOOKUP(K454,'Named Ranges'!$BC$4:$BC$6,'Named Ranges'!$BA$4:$BA$6,\"No\",-1,1))","v":""}]
[null,null,null,null,null,null,null,null,null,null,null,null,{"$f":"IF(K455=\"\",\"\",_xlfn.XLOOKUP(K455,'Named Ranges'!$BC$4:$BC$6,'Named Ranges'!$BA$4:$BA$6,\"No\",-1,1))","v":""}]
[null,null,null,null,null,null,null,null,null,null,null,null,{"$f":"IF(K456=\"\",\"\",_xlfn.XLOOKUP(K456,'Named Ranges'!$BC$4:$BC$6,'Named Ranges'!$BA$4:$BA$6,\"No\",-1,1))","v":""}]
[null,null,null,null,null,null,null,null,null,null,null,null,{"$f":"IF(K457=\"\",\"\",_xlfn.XLOOKUP(K457,'Named Ranges'!$BC$4:$BC$6,'Named Ranges'!$BA$4:$BA$6,\"No\",-1,1))","v":""}]
[null,null,null,null,null,null,null,null,null,null,null,null,{"$f":"IF(K458=\"\",\"\",_xlfn.XLOOKUP(K458,'Named Ranges'!$BC$4:$BC$6,'Named Ranges'!$BA$4:$BA$6,\"No\",-1,1))","v":""}]
[null,null,null,null,null,null,null,null,null,null,null,null,{"$f":"IF(K459=\"\",\"\",_xlfn.XLOOKUP(K459,'Named Ranges'!$BC$4:$BC$6,'Named Ranges'!$BA$4:$BA$6,\"No\",-1,1))","v":""}]
[null,null,null,null,null,null,null,null,null,null,null,null,{"$f":"IF(K460=\"\",\"\",_xlfn.XLOOKUP(K460,'Named Ranges'!$BC$4:$BC$6,'Named Ranges'!$BA$4:$BA$6,\"No\",-1,1))","v":""}]
[null,null,null,null,null,null,null,null,null,null,null,null,{"$f":"IF(K461=\"\",\"\",_xlfn.XLOOKUP(K461,'Named Ranges'!$BC$4:$BC$6,'Named Ranges'!$BA$4:$BA$6,\"No\",-1,1))","v":""}]
[null,null,null,null,null,null,null,null,null,null,null,null,{"$f":"IF(K462=\"\",\"\",_xlfn.XLOOKUP(K462,'Named Ranges'!$BC$4:$BC$6,'Named Ranges'!$BA$4:$BA$6,\"No\",-1,1))","v":""}]
[null,null,null,null,null,null,null,null,null,null,null,null,{"$f":"IF(K463=\"\",\"\",_xlfn.XLOOKUP(K463,'Named Ranges'!$BC$4:$BC$6,'Named Ranges'!$BA$4:$BA$6,\"No\",-1,1))","v":""}]
[null,null,null,null,null,null,null,null,null,null,null,null,{"$f":"IF(K464=\"\",\"\",_xlfn.XLOOKUP(K464,'Named Ranges'!$BC$4:$BC$6,'Named Ranges'!$BA$4:$BA$6,\"No\",-1,1))","v":""}]
[null,null,null,null,null,null,null,null,null,null,null,null,{"$f":"IF(K465=\"\",\"\",_xlfn.XLOOKUP(K465,'Named Ranges'!$BC$4:$BC$6,'Named Ranges'!$BA$4:$BA$6,\"No\",-1,1))","v":""}]
[null,null,null,null,null,null,null,null,null,null,null,null,{"$f":"IF(K466=\"\",\"\",_xlfn.XLOOKUP(K466,'Named Ranges'!$BC$4:$BC$6,'Named Ranges'!$BA$4:$BA$6,\"No\",-1,1))","v":""}]
[null,null,null,null,null,null,null,null,null,null,null,null,{"$f":"IF(K467=\"\",\"\",_xlfn.XLOOKUP(K467,'Named Ranges'!$BC$4:$BC$6,'Named Ranges'!$BA$4:$BA$6,\"No\",-1,1))","v":""}]
[null,null,null,null,null,null,null,null,null,null,null,null,{"$f":"IF(K468=\"\",\"\",_xlfn.XLOOKUP(K468,'Named Ranges'!$BC$4:$BC$6,'Named Ranges'!$BA$4:$BA$6,\"No\",-1,1))","v":""}]
[null,null,null,null,null,null,null,null,null,null,null,null,{"$f":"IF(K469=\"\",\"\",_xlfn.XLOOKUP(K469,'Named Ranges'!$BC$4:$BC$6,'Named Ranges'!$BA$4:$BA$6,\"No\",-1,1))","v":""}]
[null,null,null,null,null,null,null,null,null,null,null,null,{"$f":"IF(K470=\"\",\"\",_xlfn.XLOOKUP(K470,'Named Ranges'!$BC$4:$BC$6,'Named Ranges'!$BA$4:$BA$6,\"No\",-1,1))","v":""}]
[null,null,null,null,null,null,null,null,null,null,null,null,{"$f":"IF(K471=\"\",\"\",_xlfn.XLOOKUP(K471,'Named Ranges'!$BC$4:$BC$6,'Named Ranges'!$BA$4:$BA$6,\"No\",-1,1))","v":""}]
[null,null,null,null,null,null,null,null,null,null,null,null,{"$f":"IF(K472=\"\",\"\",_xlfn.XLOOKUP(K472,'Named Ranges'!$BC$4:$BC$6,'Named Ranges'!$BA$4:$BA$6,\"No\",-1,1))","v":""}]
[null,null,null,null,null,null,null,null,null,null,null,null,{"$f":"IF(K473=\"\",\"\",_xlfn.XLOOKUP(K473,'Named Ranges'!$BC$4:$BC$6,'Named Ranges'!$BA$4:$BA$6,\"No\",-1,1))","v":""}]

{"sheet":"C. Invoice Details","index":2,"n_rows":3,"n_cols":4,"rows_kept":3,"cut":false,"hidden":false,"merged":[[0,0,0,3]]}
["BAS Probity Data Request - Invoicing Details"]
["Mandatory","Non-Mandatory","Mandatory","Non-Mandatory\nUse to provide any additional info/ clarifications"]
["Supplier Project Code","Invoice Number","Total (excl. GST)","Comments"]

{"sheet":"D. Breakdown Details","index":3,"n_rows":487,"n_cols":15,"rows_kept":487,"cut":false,"hidden":false,"merged":[[0,0,0,14]]}
["BAS Probity Data Request - Breakdown Details"]
["Mandatory","Mandatory\nuse DropDown","Non-Mandatory","Mandatory\nuse DropDown","Non-Mandatory, Report only for Invoice Type \"Resources\"","Non-Mandatory, Report only for Invoice Type \"Resources\"","Mandatory for Invoice Type \"Resources\"\nUse DropDown","Mandatory for Invoice Type \"Resources\"","Mandatory for Invoice Type \"Resources\"","Mandatory for Invoice Type \"Resources\"\nUse DropDown","Mandatory for Invoice Type \"Expenses\"","Mandatory for Invoice Type \"Expenses\"","Mandatory for Invoice Type \"Expenses\"","Auto Calculated","Non-Mandatory\nUse to provide any additional info/ clarifications"]
["Supplier Project Code","Invoice Type","Invoice Number","Billable or Non Billable","Resource Name\n(First Name)","Resource Name\n(Last Name)","Resource Role\n(NSW Government Equivalent)","Daily Rate - based std on 8 Hrs\n($, excl. GST)","Number of days (8hrs) invoiced","Above Capped Rate Approval (Y/N)","Disbursement Billing Methodology","Expense Type","Expense Amount","Total invoiced\n($, excl. GST)","Comments"]
[null,null,null,null,null,null,null,null,null,null,null,null,null,{"$f":"IF(D4=\"Non Billable\",0,(IF(B4=\"Resources\",I4*H4,M4)))","v":0}]
[null,null,null,null,null,null,null,null,null,null,null,null,null,{"$f":"IF(D5=\"Non Billable\",0,(IF(B5=\"Resources\",I5*H5,M5)))","v":0}]
[null,null,null,null,null,null,null,null,null,null,null,null,null,0]
[null,null,null,null,null,null,null,null,null,null,null,null,null,0]
[null,null,null,null,null,null,null,null,null,null,null,null,null,0]
[null,null,null,null,null,null,null,null,null,null,null,null,null,0]
[null,null,null,null,null,null,null,null,null,null,null,null,null,0]
[null,null,null,null,null,null,null,null,null,null,null,null,null,0]
[null,null,null,null,null,null,null,null,null,null,null,null,null,0]
[null,null,null,null,null,null,null,null,null,null,null,null,null,0]
[null,null,null,null,null,null,null,null,null,null,null,null,null,0]
[null,null,null,null,null,null,null,null,null,null,null,null,null,0]
[null,null,null,null,null,null,null,null,null,null,null,null,null,0]
[null,null,null,null,null,null,null,null,null,null,null,null,null,0]
[null,null,null,null,null,null,null,null,null,null,null,null,null,0]
[null,null,null,null,null,null,null,null,null,null,null,null,null,0]
[null,null,null,null,null,null,null,null,null,null,null,null,null,0]
[null,null,null,null,null,null,null,null,null,null,null,null,null,0]
[null,null,null,null,null,null,null,null,null,null,null,null,null,0]
[null,null,null,null,null,null,null,null,null,null,null,null,null,0]
[null,null,null,null,null,null,null,null,null,null,null,null,null,0]
[null,null,null,null,null,null,null,null,null,null,null,null,null,0]
[null,null,null,null,null,null,null,null,null,null,null,null,null,0]
[null,null,null,null,null,null,null,null,null,null,null,null,null,0]
[null,null,null,null,null,null,null,null,null,null,null,null,null,0]
[null,null,null,null,null,null,null,null,null,null,null,null,null,0]
[null,null,null,null,null,null,null,null,null,null,null,null,null,0]
[null,null,null,null,null,null,null,null,null,null,null,null,null,0]
[null,null,null,null,null,null,null,null,null,null,null,null,null,0]
[null,null,null,null,null,null,null,null,null,null,null,null,null,0]
[null,null,null,null,null,null,null,null,null,null,null,null,null,0]
[null,null,null,null,null,null,null,null,null,null,null,null,null,0]
[null,null,null,null,null,null,null,null,null,null,null,null,null,0]
[null,null,null,null,null,null,null,null,null,null,null,null,null,0]
[null,null,null,null,null,null,null,null,null,null,null,null,null,0]
[null,null,null,null,null,null,null,null,null,null,null,null,null,0]
[null,null,null,null,null,null,null,null,null,null,null,null,null,0]
[null,null,null,null,null,null,null,null,null,null,null,null,null,0]
[null,null,null,null,null,null,null,null,null,null,null,null,null,0]
[null,null,null,null,null,null,null,null,null,null,null,null,null,0]
[null,null,null,null,null,null,null,null,null,null,null,null,null,0]
[null,null,null,null,null,null,null,null,null,null,null,null,null,0]
[null,null,null,null,null,null,null,null,null,null,null,null,null,0]
[null,null,null,null,null,null,null,null,null,null,null,null,null,0]
[null,null,null,null,null,null,null,null,null,null,null,null,null,0]
[null,null,null,null,null,null,null,null,null,null,null,null,null,0]
[null,null,null,null,null,null,null,null,null,null,null,null,null,0]
[null,null,null,null,null,null,null,null,null,null,null,null,null,0]
[null,null,null,null,null,null,null,null,null,null,null,null,null,0]
[null,null,null,null,null,null,null,null,null,null,null,null,null,0]
[null,null,null,null,null,null,null,null,null,null,null,null,null,0]
[null,null,null,null,null,null,null,null,null,null,null,null,null,0]
[null,null,null,null,null,null,null,null,null,null,null,null,null,0]
[null,null,null,null,null,null,null,null,null,null,null,null,null,0]
[null,null,null,null,null,null,null,null,null,null,null,null,null,0]
[null,null,null,null,null,null,null,null,null,null,null,null,null,0]
[null,null,null,null,null,null,null,null,null,null,null,null,null,0]
[null,null,null,null,null,null,null,null,null,null,null,null,null,0]
[null,null,null,null,null,null,null,null,null,null,null,null,null,0]
[null,null,null,null,null,null,null,null,null,null,null,null,null,0]
[null,null,null,null,null,null,null,null,null,null,null,null,null,0]
[null,null,null,null,null,null,null,null,null,null,null,null,null,0]
[null,null,null,null,null,null,null,null,null,null,null,null,null,0]
[null,null,null,null,null,null,null,null,null,null,null,null,null,0]
[null,null,null,null,null,null,null,null,null,null,null,null,null,0]
[null,null,null,null,null,null,null,null,null,null,null,null,null,{"$f":"IF(D69=\"Non Billable\",0,(IF(B69=\"Resources\",I69*H69,M69)))","v":0}]
[null,null,null,null,null,null,null,null,null,null,null,null,null,0]
[null,null,null,null,null,null,null,null,null,null,null,null,null,0]
[null,null,null,null,null,null,null,null,null,null,null,null,null,0]
[null,null,null,null,null,null,null,null,null,null,null,null,null,0]
[null,null,null,null,null,null,null,null,null,null,null,null,null,0]
[null,null,null,null,null,null,null,null,null,null,null,null,null,0]
[null,null,null,null,null,null,null,null,null,null,null,null,null,0]
[null,null,null,null,null,null,null,null,null,null,null,null,null,0]
[null,null,null,null,null,null,null,null,null,null,null,null,null,0]
[null,null,null,null,null,null,null,null,null,null,null,null,null,0]
[null,null,null,null,null,null,null,null,null,null,null,null,null,0]
[null,null,null,null,null,null,null,null,null,null,null,null,null,0]
[null,null,null,null,null,null,null,null,null,null,null,null,null,0]
[null,null,null,null,null,null,null,null,null,null,null,null,null,0]
[null,null,null,null,null,null,null,null,null,null,null,null,null,0]
[null,null,null,null,null,null,null,null,null,null,null,null,null,0]
[null,null,null,null,null,null,null,null,null,null,null,null,null,0]
[null,null,null,null,null,null,null,null,null,null,null,null,null,0]
[null,null,null,null,null,null,null,null,null,null,null,null,null,0]
[null,null,null,null,null,null,null,null,null,null,null,null,null,0]
[null,null,null,null,null,null,null,null,null,null,null,null,null,0]
[null,null,null,null,null,null,null,null,null,null,null,null,null,0]
[null,null,null,null,null,null,null,null,null,null,null,null,null,0]
[null,null,null,null,null,null,null,null,null,null,null,null,null,0]
[null,null,null,null,null,null,null,null,null,null,null,null,null,0]
[null,null,null,null,null,null,null,null,null,null,null,null,null,0]
[null,null,null,null,null,null,null,null,null,null,null,null,null,0]
[null,null,null,null,null,null,null,null,null,null,null,null,null,0]
[null,null,null,null,null,null,null,null,null,null,null,null,null,0]
[null,null,null,null,null,null,null,null,null,null,null,null,null,0]
[null,null,null,null,null,null,null,null,null,null,null,null,null,0]
[null,null,null,null,null,null,null,null,null,null,null,null,null,0]
[null,null,null,null,null,null,null,null,null,null,null,null,null,0]
[null,null,null,null,null,null,null,null,null,null,null,null,null,0]
[null,null,null,null,null,null,null,null,null,null,null,null,null,0]
[null,null,null,null,null,null,null,null,null,null,null,null,null,0]
[null,null,null,null,null,null,null,null,null,null,null,null,null,0]
[null,null,null,null,null,null,null,null,null,null,null,null,null,0]
[null,null,null,null,null,null,null,null,null,null,null,null,null,0]
[null,null,null,null,null,null,null,null,null,null,null,null,null,0]
[null,null,null,null,null,null,null,null,null,null,null,null,null,0]
[null,null,null,null,null,null,null,null,null,null,null,null,null,0]
[null,null,null,null,null,null,null,null,null,null,null,null,null,0]
[null,null,null,null,null,null,null,null,null,null,null,null,null,0]
[null,null,null,null,null,null,null,null,null,null,null,null,null,0]
[null,null,null,null,null,null,null,null,null,null,null,null,null,0]
[null,null,null,null,null,null,null,null,null,null,null,null,null,0]
[null,null,null,null,null,null,null,null,null,null,null,null,null,0]
[null,null,null,null,null,null,null,null,null,null,null,null,null,0]
[null,null,null,null,null,null,null,null,null,null,null,null,null,0]
[null,null,null,null,null,null,null,null,null,null,null,null,null,0]
[null,null,null,null,null,null,null,null,null,null,null,null,null,0]
[null,null,null,null,null,null,null,null,null,null,null,null,null,0]
[null,null,null,null,null,null,null,null,null,null,null,null,null,0]
[null,null,null,null,null,null,null,null,null,null,null,null,null,0]
[null,null,null,null,null,null,null,null,null,null,null,null,null,0]
[null,null,null,null,null,null,null,null,null,null,null,null,null,0]
[null,null,null,null,null,null,null,null,null,null,null,null,null,0]
[null,null,null,null,null,null,null,null,null,null,null,null,null,0]
[null,null,null,null,null,null,null,null,null,null,null,null,null,0]
[null,null,null,null,null,null,null,null,null,null,null,null,null,0]
[null,null,null,null,null,null,null,null,null,null,null,null,null,0]
[null,null,null,null,null,null,null,null,null,null,null,null,null,0]
[null,null,null,null,null,null,null,null,null,null,null,null,null,{"$f":"IF(D133=\"Non Billable\",0,(IF(B133=\"Resources\",I133*H133,M133)))","v":0}]
[null,null,null,null,null,null,null,null,null,null,null,null,null,0]
[null,null,null,null,null,null,null,null,null,null,null,null,null,0]
[null,null,null,null,null,null,null,null,null,null,null,null,null,0]
[null,null,null,null,null,null,null,null,null,null,null,null,null,0]
[null,null,null,null,null,null,null,null,null,null,null,null,null,0]
[null,null,null,null,null,null,null,null,null,null,null,null,null,0]
[null,null,null,null,null,null,null,null,null,null,null,null,null,0]
[null,null,null,null,null,null,null,null,null,null,null,null,null,0]
[null,null,null,null,null,null,null,null,null,null,null,null,null,0]
[null,null,null,null,null,null,null,null,null,null,null,null,null,0]
[null,null,null,null,null,null,null,null,null,null,null,null,null,0]
[null,null,null,null,null,null,null,null,null,null,null,null,null,0]
[null,null,null,null,null,null,null,null,null,null,null,null,null,0]
[null,null,null,null,null,null,null,null,null,null,null,null,null,0]
[null,null,null,null,null,null,null,null,null,null,null,null,null,0]
[null,null,null,null,null,null,null,null,null,null,null,null,null,0]
[null,null,null,null,null,null,null,null,null,null,null,null,null,0]
[null,null,null,null,null,null,null,null,null,null,null,null,null,0]
[null,null,null,null,null,null,null,null,null,null,null,null,null,0]
[null,null,null,null,null,null,null,null,null,null,null,null,null,0]
[null,null,null,null,null,null,null,null,null,null,null,null,null,0]
[null,null,null,null,null,null,null,null,null,null,null,null,null,0]
[null,null,null,null,null,null,null,null,null,null,null,null,null,0]
[null,null,null,null,null,null,null,null,null,null,null,null,null,0]
[null,null,null,null,null,null,null,null,null,null,null,null,null,0]
[null,null,null,null,null,null,null,null,null,null,null,null,null,0]
[null,null,null,null,null,null,null,null,null,null,null,null,null,0]
[null,null,null,null,null,null,null,null,null,null,null,null,null,0]
[null,null,null,null,null,null,null,null,null,null,null,null,null,0]
[null,null,null,null,null,null,null,null,null,null,null,null,null,0]
[null,null,null,null,null,null,null,null,null,null,null,null,null,0]
[null,null,null,null,null,null,null,null,null,null,null,null,null,0]
[null,null,null,null,null,null,null,null,null,null,null,null,null,0]
[null,null,null,null,null,null,null,null,null,null,null,null,null,0]
[null,null,null,null,null,null,null,null,null,null,null,null,null,0]
[null,null,null,null,null,null,null,null,null,null,null,null,null,0]
[null,null,null,null,null,null,null,null,null,null,null,null,null,0]
[null,null,null,null,null,null,null,null,null,null,null,null,null,0]
[null,null,null,null,null,null,null,null,null,null,null,null,null,0]
[null,null,null,null,null,null,null,null,null,null,null,null,null,0]
[null,null,null,null,null,null,null,null,null,null,null,null,null,0]
[null,null,null,null,null,null,null,null,null,null,null,null,null,0]
[null,null,null,null,null,null,null,null,null,null,null,null,null,0]
[null,null,null,null,null,null,null,null,null,null,null,null,null,0]
[null,null,null,null,null,null,null,null,null,null,null,null,null,0]
[null,null,null,null,null,null,null,null,null,null,null,null,null,0]
[null,null,null,null,null,null,null,null,null,null,null,null,null,0]
[null,null,null,null,null,null,null,null,null,null,null,null,null,0]
[null,null,null,null,null,null,null,null,null,null,null,null,null,0]
[null,null,null,null,null,null,null,null,null,null,null,null,null,0]
[null,null,null,null,null,null,null,null,null,null,null,null,null,0]
[null,null,null,null,null,null,null,null,null,null,null,null,null,0]
[null,null,null,null,null,null,null,null,null,null,null,null,null,0]
[null,null,null,null,null,null,null,null,null,null,null,null,null,0]
[null,null,null,null,null,null,null,null,null,null,null,null,null,0]
[null,null,null,null,null,null,null,null,null,null,null,null,null,0]
[null,null,null,null,null,null,null,null,null,null,null,null,null,0]
[null,null,null,null,null,null,null,null,null,null,null,null,null,0]
[null,null,null,null,null,null,null,null,null,null,null,null,null,0]
[null,null,null,null,null,null,null,null,null,null,null,null,null,0]
[null,null,null,null,null,null,null,null,null,null,null,null,null,0]
[null,null,null,null,null,null,null,null,null,null,null,null,null,0]
[null,null,null,null,null,null,null,null,null,null,null,null,null,0]
[null,null,null,null,null,null,null,null,null,null,null,null,null,{"$f":"IF(D197=\"Non Billable\",0,(IF(B197=\"Resources\",I197*H197,M197)))","v":0}]
[null,null,null,null,null,null,null,null,null,null,null,null,null,0]
[null,null,null,null,null,null,null,null,null,null,null,null,null,0]
[null,null,null,null,null,null,null,null,null,null,null,null,null,0]
[null,null,null,null,null,null,null,null,null,null,null,null,null,0]
[null,null,null,null,null,null,null,null,null,null,null,null,null,0]
[null,null,null,null,null,null,null,null,null,null,null,null,null,0]
[null,null,null,null,null,null,null,null,null,null,null,null,null,0]
[null,null,null,null,null,null,null,null,null,null,null,null,null,0]
[null,null,null,null,null,null,null,null,null,null,null,null,null,0]
[null,null,null,null,null,null,null,null,null,null,null,null,null,0]
[null,null,null,null,null,null,null,null,null,null,null,null,null,0]
[null,null,null,null,null,null,null,null,null,null,null,null,null,0]
[null,null,null,null,null,null,null,null,null,null,null,null,null,0]
[null,null,null,null,null,null,null,null,null,null,null,null,null,0]
[null,null,null,null,null,null,null,null,null,null,null,null,null,0]
[null,null,null,null,null,null,null,null,null,null,null,null,null,0]
[null,null,null,null,null,null,null,null,null,null,null,null,null,0]
[null,null,null,null,null,null,null,null,null,null,null,null,null,0]
[null,null,null,null,null,null,null,null,null,null,null,null,null,0]
[null,null,null,null,null,null,null,null,null,null,null,null,null,0]
[null,null,null,null,null,null,null,null,null,null,null,null,null,0]
[null,null,null,null,null,null,null,null,null,null,null,null,null,0]
[null,null,null,null,null,null,null,null,null,null,null,null,null,0]
[null,null,null,null,null,null,null,null,null,null,null,null,null,0]
[null,null,null,null,null,null,null,null,null,null,null,null,null,0]
[null,null,null,null,null,null,null,null,null,null,null,null,null,0]
[null,null,null,null,null,null,null,null,null,null,null,null,null,0]
[null,null,null,null,null,null,null,null,null,null,null,null,null,0]
[null,null,null,null,null,null,null,null,null,null,null,null,null,0]
[null,null,null,null,null,null,null,null,null,null,null,null,null,0]
[null,null,null,null,null,null,null,null,null,null,null,null,null,0]
[null,null,null,null,null,null,null,null,null,null,null,null,null,0]
[null,null,null,null,null,null,null,null,null,null,null,null,null,0]
[null,null,null,null,null,null,null,null,null,null,null,null,null,0]
[null,null,null,null,null,null,null,null,null,null,null,null,null,0]
[null,null,null,null,null,null,null,null,null,null,null,null,null,0]
[null,null,null,null,null,null,null,null,null,null,null,null,null,0]
[null,null,null,null,null,null,null,null,null,null,null,null,null,0]
[null,null,null,null,null,null,null,null,null,null,null,null,null,0]
[null,null,null,null,null,null,null,null,null,null,null,null,null,0]
[null,null,null,null,null,null,null,null,null,null,null,null,null,0]
[null,null,null,null,null,null,null,null,null,null,null,null,null,0]
[null,null,null,null,null,null,null,null,null,null,null,null,null,0]
[null,null,null,null,null,null,null,null,null,null,null,null,null,0]
[null,null,null,null,null,null,null,null,null,null,null,null,null,0]
[null,null,null,null,null,null,null,null,null,null,null,null,null,0]
[null,null,null,null,null,null,null,null,null,null,null,null,null,0]
[null,null,null,null,null,null,null,null,null,null,null,null,null,0]
[null,null,null,null,null,null,null,null,null,null,null,null,null,0]
[null,null,null,null,null,null,null,null,null,null,null,null,null,0]
[null,null,null,null,null,null,null,null,null,null,null,null,null,0]
[null,null,null,null,null,null,null,null,null,null,null,null,null,0]
[null,null,null,null,null,null,null,null,null,null,null,null,null,0]
[null,null,null,null,null,null,null,null,null,null,null,null,null,0]
[null,null,null,null,null,null,null,null,null,null,null,null,null,0]
[null,null,null,null,null,null,null,null,null,null,null,null,null,0]
[null,null,null,null,null,null,null,null,null,null,null,null,null,0]
[null,null,null,null,null,null,null,null,null,null,null,null,null,0]
[null,null,null,null,null,null,null,null,null,null,null,null,null,0]
[null,null,null,null,null,null,null,null,null,null,null,null,null,0]
[null,null,null,null,null,null,null,null,null,null,null,null,null,0]
[null,null,null,null,null,null,null,null,null,null,null,null,null,0]
[null,null,null,null,null,null,null,null,null,null,null,null,null,0]
[null,null,null,null,null,null,null,null,null,null,null,null,null,{"$f":"IF(D261=\"Non Billable\",0,(IF(B261=\"Resources\",I261*H261,M261)))","v":0}]
[null,null,null,null,null,null,null,null,null,null,null,null,null,0]
[null,null,null,null,null,null,null,null,null,null,null,null,null,0]
[null,null,null,null,null,null,null,null,null,null,null,null,null,0]
[null,null,null,null,null,null,null,null,null,null,null,null,null,0]
[null,null,null,null,null,null,null,null,null,null,null,null,null,0]
[null,null,null,null,null,null,null,null,null,null,null,null,null,0]
[null,null,null,null,null,null,null,null,null,null,null,null,null,0]
[null,null,null,null,null,null,null,null,null,null,null,null,null,0]
[null,null,null,null,null,null,null,null,null,null,null,null,null,0]
[null,null,null,null,null,null,null,null,null,null,null,null,null,0]
[null,null,null,null,null,null,null,null,null,null,null,null,null,0]
[null,null,null,null,null,null,null,null,null,null,null,null,null,0]
[null,null,null,null,null,null,null,null,null,null,null,null,null,0]
[null,null,null,null,null,null,null,null,null,null,null,null,null,0]
[null,null,null,null,null,null,null,null,null,null,null,null,null,0]
[null,null,null,null,null,null,null,null,null,null,null,null,null,0]
[null,null,null,null,null,null,null,null,null,null,null,null,null,0]
[null,null,null,null,null,null,null,null,null,null,null,null,null,0]
[null,null,null,null,null,null,null,null,null,null,null,null,null,0]
[null,null,null,null,null,null,null,null,null,null,null,null,null,0]
[null,null,null,null,null,null,null,null,null,null,null,null,null,0]
[null,null,null,null,null,null,null,null,null,null,null,null,null,0]
[null,null,null,null,null,null,null,null,null,null,null,null,null,0]
[null,null,null,null,null,null,null,null,null,null,null,null,null,0]
[null,null,null,null,null,null,null,null,null,null,null,null,null,0]
[null,null,null,null,null,null,null,null,null,null,null,null,null,0]
[null,null,null,null,null,null,null,null,null,null,null,null,null,0]
[null,null,null,null,null,null,null,null,null,null,null,null,null,0]
[null,null,null,null,null,null,null,null,null,null,null,null,null,0]
[null,null,null,null,null,null,null,null,null,null,null,null,null,0]
[null,null,null,null,null,null,null,null,null,null,null,null,null,0]
[null,null,null,null,null,null,null,null,null,null,null,null,null,0]
[null,null,null,null,null,null,null,null,null,null,null,null,null,0]
[null,null,null,null,null,null,null,null,null,null,null,null,null,0]
[null,null,null,null,null,null,null,null,null,null,null,null,null,0]
[null,null,null,null,null,null,null,null,null,null,null,null,null,0]
[null,null,null,null,null,null,null,null,null,null,null,null,null,0]
[null,null,null,null,null,null,null,null,null,null,null,null,null,0]
[null,null,null,null,null,null,null,null,null,null,null,null,null,0]
[null,null,null,null,null,null,null,null,null,null,null,null,null,0]
[null,null,null,null,null,null,null,null,null,null,null,null,null,0]
[null,null,null,null,null,null,null,null,null,null,null,null,null,0]
[null,null,null,null,null,null,null,null,null,null,null,null,null,0]
[null,null,null,null,null,null,null,null,null,null,null,null,null,0]
[null,null,null,null,null,null,null,null,null,null,null,null,null,0]
[null,null,null,null,null,null,null,null,null,null,null,null,null,0]
[null,null,null,null,null,null,null,null,null,null,null,null,null,0]
[null,null,null,null,null,null,null,null,null,null,null,null,null,0]
[null,null,null,null,null,null,null,null,null,null,null,null,null,0]
[null,null,null,null,null,null,null,null,null,null,null,null,null,0]
[null,null,null,null,null,null,null,null,null,null,null,null,null,0]
[null,null,null,null,null,null,null,null,null,null,null,null,null,0]
[null,null,null,null,null,null,null,null,null,null,null,null,null,0]
[null,null,null,null,null,null,null,null,null,null,null,null,null,0]
[null,null,null,null,null,null,null,null,null,null,null,null,null,0]
[null,null,null,null,null,null,null,null,null,null,null,null,null,0]
[null,null,null,null,null,null,null,null,null,null,null,null,null,0]
[null,null,null,null,null,null,null,null,null,null,null,null,null,0]
[null,null,null,null,null,null,null,null,null,null,null,null,null,0]
[null,null,null,null,null,null,null,null,null,null,null,null,null,0]
[null,null,null,null,null,null,null,null,null,null,null,null,null,0]
[null,null,null,null,null,null,null,null,null,null,null,null,null,0]
[null,null,null,null,null,null,null,null,null,null,null,null,null,0]
[null,null,null,null,null,null,null,null,null,null,null,null,null,{"$f":"IF(D325=\"Non Billable\",0,(IF(B325=\"Resources\",I325*H325,M325)))","v":0}]
[null,null,null,null,null,null,null,null,null,null,null,null,null,0]
[null,null,null,null,null,null,null,null,null,null,null,null,null,0]
[null,null,null,null,null,null,null,null,null,null,null,null,null,0]
[null,null,null,null,null,null,null,null,null,null,null,null,null,0]
[null,null,null,null,null,null,null,null,null,null,null,null,null,0]
[null,null,null,null,null,null,null,null,null,null,null,null,null,0]
[null,null,null,null,null,null,null,null,null,null,null,null,null,0]
[null,null,null,null,null,null,null,null,null,null,null,null,null,0]
[null,null,null,null,null,null,null,null,null,null,null,null,null,0]
[null,null,null,null,null,null,null,null,null,null,null,null,null,0]
[null,null,null,null,null,null,null,null,null,null,null,null,null,0]
[null,null,null,null,null,null,null,null,null,null,null,null,null,0]
[null,null,null,null,null,null,null,null,null,null,null,null,null,0]
[null,null,null,null,null,null,null,null,null,null,null,null,null,0]
[null,null,null,null,null,null,null,null,null,null,null,null,null,0]
[null,null,null,null,null,null,null,null,null,null,null,null,null,0]
[null,null,null,null,null,null,null,null,null,null,null,null,null,0]
[null,null,null,null,null,null,null,null,null,null,null,null,null,0]
[null,null,null,null,null,null,null,null,null,null,null,null,null,0]
[null,null,null,null,null,null,null,null,null,null,null,null,null,0]
[null,null,null,null,null,null,null,null,null,null,null,null,null,0]
[null,null,null,null,null,null,null,null,null,null,null,null,null,0]
[null,null,null,null,null,null,null,null,null,null,null,null,null,0]
[null,null,null,null,null,null,null,null,null,null,null,null,null,0]
[null,null,null,null,null,null,null,null,null,null,null,null,null,0]
[null,null,null,null,null,null,null,null,null,null,null,null,null,0]
[null,null,null,null,null,null,null,null,null,null,null,null,null,0]
[null,null,null,null,null,null,null,null,null,null,null,null,null,0]
[null,null,null,null,null,null,null,null,null,null,null,null,null,0]
[null,null,null,null,null,null,null,null,null,null,null,null,null,0]
[null,null,null,null,null,null,null,null,null,null,null,null,null,0]
[null,null,null,null,null,null,null,null,null,null,null,null,null,0]
[null,null,null,null,null,null,null,null,null,null,null,null,null,0]
[null,null,null,null,null,null,null,null,null,null,null,null,null,0]
[null,null,null,null,null,null,null,null,null,null,null,null,null,0]
[null,null,null,null,null,null,null,null,null,null,null,null,null,0]
[null,null,null,null,null,null,null,null,null,null,null,null,null,0]
[null,null,null,null,null,null,null,null,null,null,null,null,null,0]
[null,null,null,null,null,null,null,null,null,null,null,null,null,0]
[null,null,null,null,null,null,null,null,null,null,null,null,null,0]
[null,null,null,null,null,null,null,null,null,null,null,null,null,0]
[null,null,null,null,null,null,null,null,null,null,null,null,null,0]
[null,null,null,null,null,null,null,null,null,null,null,null,null,0]
[null,null,null,null,null,null,null,null,null,null,null,null,null,0]
[null,null,null,null,null,null,null,null,null,null,null,null,null,0]
[null,null,null,null,null,null,null,null,null,null,null,null,null,0]
[null,null,null,null,null,null,null,null,null,null,null,null,null,0]
[null,null,null,null,null,null,null,null,null,null,null,null,null,0]
[null,null,null,null,null,null,null,null,null,null,null,null,null,0]
[null,null,null,null,null,null,null,null,null,null,null,null,null,0]
[null,null,null,null,null,null,null,null,null,null,null,null,null,0]
[null,null,null,null,null,null,null,null,null,null,null,null,null,0]
[null,null,null,null,null,null,null,null,null,null,null,null,null,0]
[null,null,null,null,null,null,null,null,null,null,null,null,null,0]
[null,null,null,null,null,null,null,null,null,null,null,null,null,0]
[null,null,null,null,null,null,null,null,null,null,null,null,null,0]
[null,null,null,null,null,null,null,null,null,null,null,null,null,0]
[null,null,null,null,null,null,null,null,null,null,null,null,null,0]
[null,null,null,null,null,null,null,null,null,null,null,null,null,0]
[null,null,null,null,null,null,null,null,null,null,null,null,null,0]
[null,null,null,null,null,null,null,null,null,null,null,null,null,0]
[null,null,null,null,null,null,null,null,null,null,null,null,null,0]
[null,null,null,null,null,null,null,null,null,null,null,null,null,0]
[null,null,null,null,null,null,null,null,null,null,null,null,null,{"$f":"IF(D389=\"Non Billable\",0,(IF(B389=\"Resources\",I389*H389,M389)))","v":0}]
[null,null,null,null,null,null,null,null,null,null,null,null,null,0]
[null,null,null,null,null,null,null,null,null,null,null,null,null,0]
[null,null,null,null,null,null,null,null,null,null,null,null,null,0]
[null,null,null,null,null,null,null,null,null,null,null,null,null,0]
[null,null,null,null,null,null,null,null,null,null,null,null,null,0]
[null,null,null,null,null,null,null,null,null,null,null,null,null,0]
[null,null,null,null,null,null,null,null,null,null,null,null,null,0]
[null,null,null,null,null,null,null,null,null,null,null,null,null,0]
[null,null,null,null,null,null,null,null,null,null,null,null,null,0]
[null,null,null,null,null,null,null,null,null,null,null,null,null,0]
[null,null,null,null,null,null,null,null,null,null,null,null,null,0]
[null,null,null,null,null,null,null,null,null,null,null,null,null,0]
[null,null,null,null,null,null,null,null,null,null,null,null,null,0]
[null,null,null,null,null,null,null,null,null,null,null,null,null,0]
[null,null,null,null,null,null,null,null,null,null,null,null,null,0]
[null,null,null,null,null,null,null,null,null,null,null,null,null,0]
[null,null,null,null,null,null,null,null,null,null,null,null,null,0]
[null,null,null,null,null,null,null,null,null,null,null,null,null,0]
[null,null,null,null,null,null,null,null,null,null,null,null,null,0]
[null,null,null,null,null,null,null,null,null,null,null,null,null,0]
[null,null,null,null,null,null,null,null,null,null,null,null,null,0]
[null,null,null,null,null,null,null,null,null,null,null,null,null,0]
[null,null,null,null,null,null,null,null,null,null,null,null,null,0]
[null,null,null,null,null,null,null,null,null,null,null,null,null,0]
[null,null,null,null,null,null,null,null,null,null,null,null,null,0]
[null,null,null,null,null,null,null,null,null,null,null,null,null,0]
[null,null,null,null,null,null,null,null,null,null,null,null,null,0]
[null,null,null,null,null,null,null,null,null,null,null,null,null,0]
[null,null,null,null,null,null,null,null,null,null,null,null,null,0]
[null,null,null,null,null,null,null,null,null,null,null,null,null,0]
[null,null,null,null,null,null,null,null,null,null,null,null,null,0]
[null,null,null,null,null,null,null,null,null,null,null,null,null,0]
[null,null,null,null,null,null,null,null,null,null,null,null,null,0]
[null,null,null,null,null,null,null,null,null,null,null,null,null,0]
[null,null,null,null,null,null,null,null,null,null,null,null,null,0]
[null,null,null,null,null,null,null,null,null,null,null,null,null,0]
[null,null,null,null,null,null,null,null,null,null,null,null,null,0]
[null,null,null,null,null,null,null,null,null,null,null,null,null,0]
[null,null,null,null,null,null,null,null,null,null,null,null,null,0]
[null,null,null,null,null,null,null,null,null,null,null,null,null,0]
[null,null,null,null,null,null,null,null,null,null,null,null,null,0]
[null,null,null,null,null,null,null,null,null,null,null,null,null,0]
[null,null,null,null,null,null,null,null,null,null,null,null,null,0]
[null,null,null,null,null,null,null,null,null,null,null,null,null,0]
[null,null,null,null,null,null,null,null,null,null,null,null,null,0]
[null,null,null,null,null,null,null,null,null,null,null,null,null,0]
[null,null,null,null,null,null,null,null,null,null,null,null,null,0]
[null,null,null,null,null,null,null,null,null,null,null,null,null,0]
[null,null,null,null,null,null,null,null,null,null,null,null,null,0]
[null,null,null,null,null,null,null,null,null,null,null,null,null,0]
[null,null,null,null,null,null,null,null,null,null,null,null,null,0]
[null,null,null,null,null,null,null,null,null,null,null,null,null,0]
[null,null,null,null,null,null,null,null,null,null,null,null,null,0]
[null,null,null,null,null,null,null,null,null,null,null,null,null,0]
[null,null,null,null,null,null,null,null,null,null,null,null,null,0]
[null,null,null,null,null,null,null,null,null,null,null,null,null,0]
[null,null,null,null,null,null,null,null,null,null,null,null,null,0]
[null,null,null,null,null,null,null,null,null,null,null,null,null,0]
[null,null,null,null,null,null,null,null,null,null,null,null,null,0]
[null,null,null,null,null,null,null,null,null,null,null,null,null,0]
[null,null,null,null,null,null,null,null,null,null,null,null,null,0]
[null,null,null,null,null,null,null,null,null,null,null,null,null,0]
[null,null,null,null,null,null,null,null,null,null,null,null,null,0]
[null,null,null,null,null,null,null,null,null,null,null,null,null,{"$f":"IF(D453=\"Non Billable\",0,(IF(B453=\"Resources\",I453*H453,M453)))","v":0}]
[null,null,null,null,null,null,null,null,null,null,null,null,null,0]
[null,null,null,null,null,null,null,null,null,null,null,null,null,0]
[null,null,null,null,null,null,null,null,null,null,null,null,null,0]
[null,null,null,null,null,null,null,null,null,null,null,null,null,0]
[null,null,null,null,null,null,null,null,null,null,null,null,null,0]
[null,null,null,null,null,null,null,null,null,null,null,null,null,0]
[null,null,null,null,null,null,null,null,null,null,null,null,null,0]
[null,null,null,null,null,null,null,null,null,null,null,null,null,0]
[null,null,null,null,null,null,null,null,null,null,null,null,null,0]
[null,null,null,null,null,null,null,null,null,null,null,null,null,0]
[null,null,null,null,null,null,null,null,null,null,null,null,null,0]
[null,null,null,null,null,null,null,null,null,null,null,null,null,0]
[null,null,null,null,null,null,null,null,null,null,null,null,null,0]
[null,null,null,null,null,null,null,null,null,null,null,null,null,0]
[null,null,null,null,null,null,null,null,null,null,null,null,null,0]
[null,null,null,null,null,null,null,null,null,null,null,null,null,0]
[null,null,null,null,null,null,null,null,null,null,null,null,null,0]
[null,null,null,null,null,null,null,null,null,null,null,null,null,0]
[null,null,null,null,null,null,null,null,null,null,null,null,null,0]
[null,null,null,null,null,null,null,null,null,null,null,null,null,0]
[null,null,null,null,null,null,null,null,null,null,null,null,null,0]
[null,null,null,null,null,null,null,null,null,null,null,null,null,0]
[null,null,null,null,null,null,null,null,null,null,null,null,null,0]
[null,null,null,null,null,null,null,null,null,null,null,null,null,0]
[null,null,null,null,null,null,null,null,null,null,null,null,null,0]
[null,null,null,null,null,null,null,null,null,null,null,null,null,0]
[null,null,null,null,null,null,null,null,null,null,null,null,null,0]
[null,null,null,null,null,null,null,null,null,null,null,null,null,0]
[null,null,null,null,null,null,null,null,null,null,null,null,null,0]
[null,null,null,null,null,null,null,null,null,null,null,null,null,0]
[null,null,null,null,null,null,null,null,null,null,null,null,null,0]
[null,null,null,null,null,null,null,null,null,null,null,null,null,0]
[null,null,null,null,null,null,null,null,null,null,null,null,null,0]
[null,null,null,null,null,null,null,null,null,null,null,null,null,0]

{"sheet":"Reference","index":4,"n_rows":85,"n_cols":11,"rows_kept":85,"cut":false,"hidden":false,"merged":[[2,4,2,6],[13,4,13,6],[0,0,0,10],[2,8,2,10]]}
["BAS Probity Data Request - Descriptions"]
[]
["Table 1 - Agency View By Cluster",null,"Table 2 - Service Type By Consulting Engagement Type",null,"Table 3 - Roles Definitions ",null,null,null,"Table 5 - Engagement Tab Commenting"]
[]
["SELECT CLUSTER BELOW TO VIEW",null,"SELECT ENGAGMENT TYPE BELOW TO VIEW",null,"NSW Government Role","Description","Years of Experience",null,"Situation","Comment Structure","Example"]
["Treasury",null,null,null,"Partner","Senior Management member","12+",null,"When a previously reported invoice is reversed, or a credit note is made.","Invoice Reverse/Credit Note: Invoice # | Invoice Amount. | Invoice Billing Month | Resource or Expense","Invoice Reverse/Credit Note: 757829734 | $12,000 | Jan 2019 | Resource"]
[{"$f":"IFERROR(INDEX(INDIRECT(SUBSTITUTE(SUBSTITUTE($A$6,\" \",\"_\"),\",\",\"\")),ROW()-6),\"\")","v":"Crown Finance Entity"},null,{"$f":"IFERROR(INDEX(INDIRECT(SUBSTITUTE(SUBSTITUTE($C$6,\" \",\"_\"),\",\",\"\")),ROW()-6),\"\")","v":""},null,"Director","Management  member with deep expertise","10+",null,"A change in total engagement cost.","Updated Total Engagement Cost: Previous Cost | New Cost | Reason (Optional)","Updated Total Engagement Cost: $50,000 | $50,500 | Extended due to travel costs"]
["First State Superannuation Trustee Corporation",null,{"$f":"IFERROR(INDEX(INDIRECT(SUBSTITUTE(SUBSTITUTE($C$6,\" \",\"_\"),\",\",\"\")),ROW()-6),\"\")","v":""},null,"Senior Manager","Senior employee with significant specialist expertise and team leadership capabilities","8+",null,"A change in start date.","Change in Start Date: Previous Start date | New Start date | Reason (Optional)","Change in Start Date: 01/01/2019 | 01/02/2019 | Delay in project"]
["Fund for Jobs for NSW",null,"",null,"Manager","Junior level of entity management, specialist technical and subject matter expertise; manages assignment schedules and resource allocation"," 6 - 8",null,"A change in end date.","Change in End Date: Previous End date | New End date | Reason (Optional)","Change in End Date: 01/01/2019 | 01/02/2019 | Extended due to project scope."]
["Insurance and Care NSW (icare)",null,"",null,"Senior Consultant","Field leadership role, moderate level of technical and subject matter expertise; provides business system advice and consulting services"," 4 - 6",null,"A change in project code.","Change in Project Code: Old code | New Code | Reason (Optional)","Change in Project Code: NSWP1234 | NSWP3214 | Sub-engagement joined to large one."]
["Lifetime Care and Support Authority of NSW",null,"",null,"Consultant","Performs detailed data and systems analysis, identifies risks, gathers additional data, interprets data and provides recommendations for improvement.  Higher level technical skills, broader experience base, business process & industry knowledge and requiring less supervision than an analyst"," < 4",null,"A change in project scope.","Change in Project Scope: Old scope | New scope | Description of resources impacted (If applicable)","Change in Project Scope: Fixed Price | Time & Material – Capped | Incorrect original reporting"]
["NSW Procurement",null,"",null,"Analyst","Performs data gathering and analysis with strong technical skills. Low level of industry knowledge.  Supervised by more senior members.","0-4",null,"Addition comments that lie outside of the structures above that would assist in amending/interpreting reported data.","Extra Commentary: Please keep concise"]
["NSW Treasury",null,""]
["Office of Small Business Commissioner",null,null,null,"Table 4 - Consulting Services Defintions"]
["SAS Trustee Corporation"]
["Skills & Economic Development including Jobs for NSW",null,null,null,"Type","Description","Payment trigger"]
["Treasury Corporation (TCorp)",null,null,null,"Assignment","Specific output is defined. Management of the project is the responsibility of the supplier and payment is triggered by milestones against deliverables. Risk of delivery is borne by supplier i.e. if  deliverables are not accepted by NSW Government then it is the supplier's responsibility to rectify at own cost","Delivery of defined services"]
["Western City and Aerotropolis Authority",null,null,null,"Secondment","NSW Government is responsible for the management of the resource. The supplier is responsible for providing resources with the right skills, processes and systems and the payments are linked to days worked. Risk of delivery of output is borne by NSW Government i.e. if  deliverables are not as required then rectification is carried out at NSW Government expense (possibly using the same seconded resources)","Timesheet - days worked"]
[""]
[""]
[""]
[""]
[""]
[""]
[""]
[""]
[""]
[""]
[""]
[""]
[""]
[""]
[""]
[""]
[""]
[""]
[""]
[""]
[{"$f":"IFERROR(INDEX(INDIRECT(SUBSTITUTE(SUBSTITUTE($A$6,\" \",\"_\"),\",\",\"\")),ROW()-6),\"\")","v":""}]
[""]
[""]
[""]
[""]
[""]
[""]
[""]
[""]
[""]
[""]
[""]
[""]
[""]
[""]
[""]
[""]
[""]
[""]
[""]
[""]
[""]
[""]
[""]
[""]
[""]
[""]
[""]
[""]
[""]
[""]
[""]
[""]
[""]
[""]
[""]
[""]
[""]
[""]
[""]
[""]
[""]
[""]
[""]
[""]
[""]
[""]

{"sheet":"Agency Structure","index":5,"n_rows":284,"n_cols":3,"rows_kept":284,"cut":false,"hidden":false,"merged":[[211,1,220,1],[221,1,255,1],[256,1,271,1],[272,1,283,1],[52,1,72,1],[0,1,0,2],[39,1,51,1],[3,1,38,1],[186,1,210,1],[73,1,113,1],[114,1,185,1]]}
[null,"BAS Cluster and Agency Hierarchy"]
[]
[null,"Cluster","Agency  "]
[null,"Customer Service","Behavioural Insights Unit"]
[null,null,"Better Regulation Division"]
[null,null,"Board of Surveying and Spatial Information"]
[null,null,"Building Professionals Board"]
[null,null,"Corporate Services"]
[null,null,"Customer, Delivery and Transformation"]
[null,null,"Data Analytics Centre"]
[null,null,"Department of Customer Service"]
[null,null,"Fair Trading Administration Corporation"]
[null,null,"Home Building Compensation Fund"]
[null,null,"ICT & Digital Government"]
[null,null,"Independent Pricing And Regulatory Tribunal of NSW"]
[null,null,"Information and Privacy Commission"]
[null,null,"Lands & Property Information"]
[null,null,"Long Service Corporation"]
[null,null,"Mine Subsidence Board"]
[null,null,"NSW Fair Trading"]
[null,null,"NSW Fair Trading - Emergency Services Levy Insurance Monitor"]
[null,null,"NSW Government Telecommunications Authority"]
[null,null,"NSW Land Registry Services"]
[null,null,"NSW Registry of Births, Deaths and Marriages"]
[null,null,"Office of the Customer Service Commissioner"]
[null,null,"Office of the Registrar General"]
[null,null,"Office of the Secretary"]
[null,null,"OFS Personnel Services"]
[null,null,"Responsible Gambling Fund"]
[null,null,"Revenue NSW"]
[null,null,"SafeWork NSW"]
[null,null,"Service NSW"]
[null,null,"Spatial Services (Spatial Services)"]
[null,null,"State Insurance Regulatory Authority (SIRA)"]
[null,null,"Strategic Communications"]
[null,null,"Subsidence Advisory NSW"]
[null,null,"Workcover Authority Fund"]
[null,null,"Workers Compensation Commission of NSW"]
[null,null,"Workers Compensation Independent Review Officer"]
[null,"Education","Adult Migrant English Service(AMES)"]
[null,null,"Department of Education and Communities"]
[null,null,"Early Childhood Education and Care"]
[null,null,"NSW Education Standards Authority"]
[null,null,"NSW Skills Board"]
[null,null,"NSW Veterinary Practitioners Board"]
[null,null,"NSW Vocational Education & Accreditation Board (VETAB)"]
[null,null,"Office of Education"]
[null,null,"Public Schools"]
[null,null,"State Training Services"]
[null,null,"TAFE"]
[null,null,"TAFE Commission"]
[null,null,"Training Services NSW"]
[null," Enterprise, Investment and Trade","Art Gallery of NSW Trust"]
[null,null,"Australian Museum Trust"]
[null,null,"Create NSW"]
[null,null,"Destination NSW"]
[null,null,"Institute of Sport"]
[null,null,"Investment NSW"]
[null,null,"Jobs Investment and Tourism"]
[null,null,"Library Council"]
[null,null,"Liquor Gaming & Racing"]
[null,null,"NSW Chief Scientist and Engineer"]
[null,null,"Office of the Chief Executive - Oos"]
[null,null,"Office of the Greyhound Welfare and Integrity Commission"]
[null,null,"Policy and Planning"]
[null,null,"Regional Delivery"]
[null,null,"State Archives"]
[null,null,"Sydney Cricket & Sports Ground Trust"]
[null,null,"Sydney Living Museums"]
[null,null,"Sydney Opera House Trust"]
[null,null,"Trustees of the Museum of Applied Arts Sciences"]
[null,null,"Venues NSW"]
[null,null,"Western Parkland City Authority"]
[null,"Health","Agency for Clinical Innovation"]
[null,null,"Ambulance Service of NSW"]
[null,null,"Bureau of Health Information"]
[null,null,"Cancer Institute NSW"]
[null,null,"Central Coast Local Health District"]
[null,null,"Clinical Excellence Commission"]
[null,null,"eHealth"]
[null,null,"Far West Local Health District"]
[null,null,"Health Administration Corporation"]
[null,null,"Health Education and Training Institute"]
[null,null,"Health Infrastructure"]
[null,null,"Health Professional Councils Authority"]
[null,null,"Health Protection NSW"]
[null,null,"Health Reform Transitional Organisation Southern"]
[null,null,"Health System Support Group"]
[null,null,"HealthShare NSW"]
[null,null,"Hunter New England Local Health District"]
[null,null,"Illawarra Shoalhaven Local Health District"]
[null,null,"Institute of Medical Education and Training"]
[null,null,"Justice & Forensic Mental Health Network"]
[null,null,"Mental Health Commission"]
[null,null,"Mid North Coast Local Health District"]
[null,null,"Ministry of Health"]
[null,null,"Murrumbidgee Local Health District"]
[null,null,"Nepean Blue Mountains Local Health District"]
[null,null,"Northern NSW Local Health District"]
[null,null,"Northern Sydney Local Health District"]
[null,null,"NSW Health Pathology"]
[null,null,"NSW Health Service"]
[null,null,"NSW Kids and Families"]
[null,null,"Nursing and Midwifery Council of NSW"]
[null,null,"Office of Health and Medical Research"]
[null,null,"Office of the Health Care Complaints Commission"]
[null,null,"Policy and Technical Support Unit"]
[null,null,"South Eastern Sydney Local Health District"]
[null,null,"South Western Sydney Local Health District"]
[null,null,"Southern NSW Local Health District"]
[null,null,"Sydney Childrens Hospital District"]
[null,null,"Sydney Local Health District"]
[null,null,"Western NSW Local Health District"]
[null,null,"Western Sydney Local Health District"]
[null,"Planning and Environment","Aboriginal Housing Office"]
[null,null,"Agricultural Scientific Collections Trust"]
[null,null,"Aquaculture Trust Fund"]
[null,null,"Belgenny Farm Trust"]
[null,null,"Biodiversity Conservation Trust"]
[null,null,"Boards & Committees"]
[null,null,"Cemeteries and Crematoria NSW"]
[null,null,"Charter Fishing Trust Fund"]
[null,null,"Chipping Norton Lake Authority"]
[null,null,"Coal Innovation Fund"]
[null,null,"Cobar Water Board"]
[null,null,"Commercial Fishing Trust Fund"]
[null,null,"Communication and Engagement"]
[null,null,"Corporate Service Partners"]
[null,null,"Crown"]
[null,null,"Crown Lands Reserve Trust"]
[null,null,"Crown Reserves Improvement Fund"]
[null,null,"Department of Industry"]
[null,null,"Department of Planning and Environment"]
[null,null,"Environment Protection Authority"]
[null,null,"Environmental Trust"]
[null,null,"Essential Energy"]
[null,null,"Fish Conservation Trust Fund"]
[null,null,"Game & Pest Management Trust Fund"]
[null,null,"Game Council of New South Wales"]
[null,null,"Heritage Council"]
[null,null,"Heritage Division"]
[null,null,"Heritage Stoneworks"]
[null,null,"Hunter and Central Coast Development Corporation"]
[null,null,"Hunter Water Corporation"]
[null,null,"Jenolan Caves Reserve Trust"]
[null,null,"Lake Illawarra Authority"]
[null,null,"Land Admin Ministerial Corp"]
[null,null,"Landcom"]
[null,null,"Lands and Water"]
[null,null,"Lord Howe Island Board"]
[null,null,"Luna Park Reserve Trust"]
[null,null,"Manly Hydraulics Laboratory"]
[null,null,"Marine Parks Authority"]
[null,null,"Milk Marketing Board"]
[null,null,"National Parks and Wildlife Advisory Council"]
[null,null,"Natural Resources Access Regulator"]
[null,null,"Natural Resources Commission"]
[null,null,"NSW Dams Safety Committee"]
[null,null,"NSW Food Authority"]
[null,null,"NSW Land and Housing Corporation"]
[null,null,"NSW Rural Assistance Authority"]
[null,null,"Office of Coal Seam Gas"]
[null,null,"Office of Local Government"]
[null,null,"Office of Secretary - Industry"]
[null,null,"Office of Strategic Lands"]
[null,null,"Office of Valuer General"]
[null,null,"Parramatta Park Trust"]
[null,null,"Personnel Services"]
[null,null,"Primary Industries"]
[null,null,"Property and Advisory Group"]
[null,null,"Property NSW"]
[null,null,"Public Reserves Management Fund"]
[null,null,"Recreational Fishing (Fresh) Trust Fund"]
[null,null,"Recreational Fishing (Salt) Trust Fund"]
[null,null,"Resource Regulator Compliance"]
[null,null,"Resources and Energy"]
[null,null,"Soil Conservation Service"]
[null,null,"Sport Development Group"]
[null,null,"Sport Infrastructure Group"]
[null,null,"Sydney Harbour Foreshore Authority"]
[null,null,"Sydney Olympic Park Authority"]
[null,null,"Sydney Water Corporation"]
[null,null,"Taronga Conservation Society Australia"]
[null,null,"Teacher Housing Authority"]
[null,null,"UrbanGrowth NSW Development Corporation"]
[null,null,"Waste Assets Management Corporation"]
[null,"Premier and Cabinet","Aboriginal Affairs"]
[null,null,"Arts & Culture"]
[null,null,"Arts NSW"]
[null,null,"Audit Office of NSW"]
[null,null,"Barangaroo Delivery Authority"]
[null,null,"Cross Border Commissioner"]
[null,null,"Culture Policy Branch"]
[null,null,"Department of Premier & Cabinet"]
[null,null,"Independent Commission Against Corruption"]
[null,null,"Inspector of the Independent Commission Against Corruption (ICAC)"]
[null,null,"Inspector of the Law Enforcement Conduct Commission"]
[null,null,"Law Enforcement Conduct Commission"]
[null,null,"Legislative Assembly"]
[null,null,"Legislative Council"]
[null,null,"NSW Aboriginal Land Council"]
[null,null,"NSW Electoral Commission"]
[null,null,"NSW Industrial Relations"]
[null,null,"NSW Ombudsman's Office"]
[null,null,"NSW Parliament"]
[null,null,"Office of General Counsel"]
[null,null,"Parliamentary Counsel"]
[null,null,"Public Service Commission"]
[null,null,"Screen NSW"]
[null,null,"Sesquicentenary Govt Trst"]
[null,null,"Strategy Policy and Coordination"]
[null,"Regional NSW","Corporate - Regional NSW"]
[null,null,"Department of Primary Industries"]
[null,null,"Department of Regional NSW"]
[null,null,"Forestry Corporation of NSW"]
[null,null,"Local Land Services"]
[null,null,"NSW Farmers Association"]
[null,null,"Primary Industries Ministerial Advisory Council"]
[null,null,"Public Works Advisory"]
[null,null,"Regional Growth NSW Development Corporation"]
[null,null,"Rural Assistance Authority"]
[null,"Stronger Communities","Advocate for Children and Young People"]
[null,null,"Anzac Memorial Building Trust"]
[null,null,"Civil and Administrative Tribunal of New South Wales"]
[null,null,"Cluster Reform"]
[null,null,"Community Services"]
[null,null,"Corporate Services"]
[null,null,"Corrective Services NSW"]
[null,null,"Courts & Tribunal Services"]
[null,null,"Crown Solicitor's Office"]
[null,null,"FACS Business Services"]
[null,null,"Fire and Rescue NSW"]
[null,null,"Housing NSW"]
[null,null,"Housing Reserve Fund"]
[null,null,"Judicial Commission"]
[null,null,"Justice Infrastructure"]
[null,null,"Justice Services"]
[null,null,"Justice Strategy & Policy"]
[null,null,"Juvenile Justice"]
[null,null,"Legal Aid Commission"]
[null,null,"Multicultural NSW"]
[null,null,"NSW Crime Commission"]
[null,null,"NSW Department of Communities and Justice"]
[null,null,"NSW Police Force"]
[null,null,"NSW Rural Fire Service"]
[null,null,"NSW State Emergency Service"]
[null,null,"NSW Trustee and Guardian"]
[null,null,"Office for Police"]
[null,null,"Office of Community Housing"]
[null,null,"Office of Emergency Management"]
[null,null,"Office of the Children's Guardian"]
[null,null,"Office of the Director of Public Prosecutions"]
[null,null,"Office of the Secretary"]
[null,null,"Office of Veterans' Affairs"]
[null,null,"Resilience NSW"]
[null,null,"Sport and Recreation"]
[null,"Transport and Infrastructure","Centennial Park and Moore Park Trust"]
[null,null,"Department of Transport"]
[null,null,"Greater Sydney Commission"]
[null,null,"Independent Transport Safety Regulator"]
[null,null,"Infrastructure NSW"]
[null,null,"NSW Trains"]
[null,null,"Office of Transport Safety Investigations"]
[null,null,"Place Management"]
[null,null,"Roads and Maritime Services"]
[null,null,"Royal Botanic Gardens and Domain Trust"]
[null,null,"State Transit Authority"]
[null,null,"Sydney Metro"]
[null,null,"Sydney Trains"]
[null,null,"Transport for NSW"]
[null,null,"Transport Project Division"]
[null,null,"Western Sydney Parklands Trust"]
[null,"Treasury","Crown Finance Entity"]
[null,null,"First State Superannuation Trustee Corporation"]
[null,null,"Fund for Jobs for NSW"]
[null,null,"Insurance and Care NSW (icare)"]
[null,null,"Lifetime Care and Support Authority of NSW"]
[null,null,"NSW Procurement"]
[null,null,"NSW Treasury"]
[null,null,"Office of Small Business Commissioner"]
[null,null,"SAS Trustee Corporation"]
[null,null,"Skills & Economic Development including Jobs for NSW"]
[null,null,"Treasury Corporation (TCorp)"]
[null,null,"Western City and Aerotropolis Authority"]

{"sheet":"Sheet1","index":6,"n_rows":412,"n_cols":2,"rows_kept":412,"cut":false,"hidden":true,"merged":[]}
["Agency","Cluster"]
["NSW MINISTRY OF HEALTH","Health"]
["Create NSW","Premier and Cabinet"]
["Heritage NSW","Planning, Industry and Environment,Premier and Cabinet"]
["Fisheries","Regional NSW"]
["Aboriginal Housing Office","Planning, Industry and Environment,Stronger Communities"]
["Department of Communities and Justice","Stronger Communities"]
["Aboriginal Affairs","Premier and Cabinet"]
["Multicultural NSW","Stronger Communities"]
["Department of Regional NSW","Regional NSW"]
["NSW Department of Primary Industries","Regional NSW"]
["Department of Primary Industries ","Regional NSW"]
["Primary Industries","Regional NSW"]
["National Parks and Wildlife Service","Planning, Industry and Environment"]
["Department of Planning and Environment","Regional NSW"]
["Department of Customer Service","Customer Service"]
["DPC","Premier and Cabinet"]
["NESA","Education"]
["Department of Planning, Industry and Environment","Planning, Industry and Environment"]
["Department of Planning Industry and Environment","Planning, Industry and Environment"]
["Department of Customer Service - Biofuels and FuelCheck","Customer Service"]
["Attorney General","Stronger Communities"]
["Treasury","Treasury"]
["Exchange for Change (NSW) Pty Ltd","Planning, Industry and Environment"]
["NSW Treasury","Treasury"]
["NSW Education Standards Authority","Education"]
["Place Management NSW","Planning, Industry and Environment"]
["Department of Customer Service - Spatial Services","Customer Service"]
["NSW Health","Health"]
["Cemeteries and Crematoria NSW","Planning, Industry and Environment"]
["Department of Justice","Stronger Communities"]
["Legal Aid NSW","Stronger Communities"]
["State Archives and Records Authority of New South Wales","Premier and Cabinet"]
["Sydney Olympic Park Authority ","Planning, Industry and Environment"]
["Western Sydney City Deal Delivery Office","Treasury"]
["Office of Sport","Stronger Communities"]
["Natural Resources Land and Water","Planning, Industry and Environment"]
["Department of Industry - Lands and Forestry","Regional NSW"]
["Long Service Corporation","Customer Service"]
["Ministry of Health","Health"]
["NSW Rural Fire Service","Stronger Communities"]
["Regional Infrastructure and Services","Planning, Industry and Environment"]
["Lands","Planning, Industry and Environment"]
["Department of Primary Industries","Regional NSW"]
["Health","Health"]
["Botanic Gardens and Centennial Parklands","Planning, Industry and Environment"]
["Planning Panels Secretariat","Planning, Industry and Environment"]
["Roads and Ports","Transport"]
["Education","Education"]
["icare","Treasury"]
["Better Regulation Division","Customer Service"]
["Department of Health","Health"]
["Trade and Investment","Regional NSW"]
["Resources and Energy","Regional NSW"]
["DPIE Water - Water Utility Policy","Planning, Industry and Environment"]
["Department Planning Industry and Environment","Planning, Industry and Environment"]
["Office of Environment and Heritage","Planning, Industry and Environment"]
["Finance, Services and Innovation ","Customer Service"]
["Employee Relations","Premier and Cabinet"]
["Department of Communites and Justice","Stronger Communities"]
["Crown Solicitor's Office","Stronger Communities"]
["Dams Safety NSW","Planning, Industry and Environment"]
["Regional Infrastructure and Services","Regional NSW"]
["Destination NSW","Treasury"]
["Office of the Director of Public Prosecutions","Stronger Communities"]
["NSW Department of Industry (Lands & Water)","Planning, Industry and Environment"]
["Dust Diseases Board - icare","Treasury"]
["Farrer Memorial Trust","Regional NSW"]
["Fire & Rescue NSW","Stronger Communities"]
["Food Authority","Regional NSW"]
["Greater Sydney Commission","Premier and Cabinet"]
["Western Sydney Parkands Trust ","Planning, Industry and Environment"]
["Customer Service","Customer Service"]
["Office of Racing","Customer Service"]
["Department of Premier and Cabinet","Premier and Cabinet"]
["Finance and Services","Customer Service"]
["Regional Infrastructure","Planning, Industry and Environment"]
["Premier's - legal branch","Premier and Cabinet"]
["Reviews & Secretariat Unit, Liquor & Gaming NSW","Customer Service"]
["Finance and Services","Planning, Industry and Environment"]
["Transport for NSW - Regional and Outer Metro","Transport"]
["Office of the Independent Planning Commission","Planning, Industry and Environment"]
["IPART","Customer Service"]
["Treasury","Premier and Cabinet"]
["Information & Privacy Commission","Customer Service,Stronger Communities"]
["Regional Infrastructure and Services","Premier and Cabinet"]
["NSW Trade and Investment","Treasury"]
["Judicial Commission of NSW","Stronger Communities"]
["DTRIS","Planning, Industry and Environment"]
["Department of Justice, NSW","Stronger Communities"]
["Environment Protection Authority","Planning, Industry and Environment"]
["Local Land Services","Regional NSW"]
["Local Land Services ","Regional NSW"]
["Office of Local Government","Planning, Industry and Environment"]
["Local Government","Planning, Industry and Environment"]
["Department of Education","Education"]
["Department of Primary Industries","Planning, Industry and Environment"]
["Department of Primary Industries - Fisheries","Regional NSW"]
["Centre for Maritime Safety","Transport"]
["Mental Health Commission","Health"]
["Department of Planning, Industry & Environment","Regional NSW"]
["NSW Resources Regulator - Department of Regional NSW","Regional NSW"]
["Family and Community Services","Stronger Communities"]
["Attorney","Stronger Communities"]
["Natural Resources Commission (Premier)","Planning, Industry and Environment"]
["New South Wales Crime Commission","Stronger Communities"]
["NSW Crime Commission","Stronger Communities"]
["NSW Police Force","Stronger Communities"]
["Department of Education ","Education"]
["Primary Industries","Planning, Industry and Environment"]
["Department of Customer Services","Customer Service"]
["NSW Ombudsman","Stronger Communities"]
["Department of Communities and Justice","Health"]
["Crown Lands","Planning, Industry and Environment"]
["Department of Family and Community Services","Stronger Communities"]
["Roads","Transport"]
["Department of Primary Industries - NSW Fisheries","Regional NSW"]
["Department of Planning, Industry and Environment","Regional NSW"]
["Housing/FACS","Stronger Communities"]
["Public Service Commission","Premier and Cabinet"]
["Roads and Maritime Services","Transport"]
["NSW Rural Assistance Authority","Regional NSW"]
["Ageing and Disability Commission ","Stronger Communities"]
["Inspector of Custodial Services ","Stronger Communities"]
["Inspector of Custodial Services","Stronger Communities"]
["Department of Planning Industry and Environment ","Planning, Industry and Environment"]
["Ministry for Police and Emergency Services","Stronger Communities"]
["Finance and Services","Treasury"]
["Prison Bed Capacity Program, Corrective Services NSW","Stronger Communities"]
["Professional Standards Authority","Customer Service"]
["Department for Fisheries","Regional NSW"]
["Rural Assistance Authority","Regional NSW"]
["Office of Regional Youth, Regional NSW, Department of Planning, Industry and Environment","Health"]
["DCS - Regulatory Services","Customer Service"]
["Office of Responsible Gambling","Customer Service"]
["Department of Planning, Industry & Environment","Planning, Industry and Environment"]
["DPI","Regional NSW"]
["Transport for NSW","Transport"]
["Industry- Lands","Planning, Industry and Environment"]
["SAS Trustee Corporation","Treasury"]
["Corrective Services NSW","Stronger Communities"]
["DPI NSW Fisheries","Regional NSW"]
["Treasury","Regional NSW"]
["Transport","Transport"]
["Resilience NSW","Premier and Cabinet"]
["State Insurance Regulatory Authority","Customer Service"]
["Sydney Metro","Transport"]
["TAFE NSW","Education"]
["Infrastructure","Premier and Cabinet"]
["Roads and Traffic Authority","Customer Service"]
["NSW Fisheries","Regional NSW"]
["Office of Racing - NSW Customer Service","Customer Service"]
["Veterans Affairs","Stronger Communities"]
["Crown Lands","Transport"]
["NSW Department of Education","Education"]
["NSW Department of Education ","Education"]
["Department of Communities & Justice","Stronger Communities"]
["Department of Planning, Industry and Environment- Crown Lands","Planning, Industry and Environment"]
["DPC","Regional NSW"]
["Advocate for Children and Young People","Health,Stronger Communities"]
["Behavioural Insights Unit","Customer Service"]
["Board of Surveying and Spatial Information","Customer Service"]
["Building Professionals Board","Customer Service"]
["Corporate Services","Customer Service"]
["Customer, Delivery and Transformation","Customer Service"]
["Data Analytics Centre","Customer Service"]
["Fair Trading Administration Corporation","Customer Service"]
["Greyhound Racing NSW","Customer Service"]
["Greyhound Welfare & Integrity Commission","Customer Service"]
["Home Building Compensation Fund","Customer Service"]
["ICT & Digital Government","Customer Service"]
["Independent Liquor & Gaming Authority","Customer Service"]
["Independent Pricing And Regulatory Tribunal of NSW","Customer Service"]
["Information and Privacy Commission","Customer Service"]
["Lands & Property Information","Customer Service"]
["Liquor Gaming and Racing","Customer Service"]
["Liquor, Gaming and Emergency Management","Customer Service"]
["Liquor, Gaming and Racing Division","Customer Service"]
["Mine Subsidence Board","Customer Service"]
["NSW Fair Trading","Customer Service"]
["NSW Fair Trading - Emergency Services Levy Insurance Monitor","Customer Service"]
["NSW Government Telecommunications Authority","Customer Service"]
["NSW Land Registry Services","Customer Service"]
["NSW Registry of Births, Deaths and Marriages","Customer Service"]
["Office of the Customer Service Commissioner","Customer Service"]
["Office of the Registrar General","Customer Service"]
["Office of the Secretary","Customer Service"]
["Office of the Secretary - DFSI","Customer Service"]
["OFS Personnel Services","Customer Service"]
["Responsible Gambling Fund","Customer Service"]
["Revenue NSW","Customer Service"]
["SafeWork NSW","Customer Service"]
["Service NSW","Customer Service"]
["Spatial Services (Spatial Services)","Customer Service"]
["State Insurance Regulatory Authority (SIRA)","Customer Service"]
["State Records Authority","Customer Service"]
["Strategic Communications","Customer Service"]
["Subsidence Advisory NSW","Customer Service"]
["Workcover Authority Fund","Customer Service"]
["Workers Compensation Commission of NSW","Customer Service"]
["Workers Compensation Independent Review Officer","Customer Service"]
["Adult Migrant English Service(AMES)","Education"]
["Department of Education and Communities","Education"]
["Early Childhood Education and Care","Education"]
["NSW Skills Board","Education"]
["NSW Veterinary Practitioners Board","Education"]
["NSW Vocational Education & Accreditation Board (VETAB)","Education"]
["Office of Education","Education"]
["Public Schools","Education"]
["State Training Services","Education"]
["TAFE","Education"]
["TAFE Commission","Education"]
["Training Services NSW","Education"]
["Agency for Clinical Innovation","Health"]
["Ambulance Service of NSW","Health"]
["Bureau of Health Information","Health"]
["Cancer Institute NSW","Health"]
["Central Coast Local Health District","Health"]
["Clinical Excellence Commission","Health"]
["eHealth","Health"]
["Far West Local Health District","Health"]
["Health Administration Corporation","Health"]
["Health Education and Training Institute","Health"]
["Health Infrastructure","Health"]
["Health Professional Councils Authority","Health"]
["Health Protection NSW","Health"]
["Health Reform Transitional Organisation Southern","Health"]
["Health System Support Group","Health"]
["HealthShare NSW","Health"]
["Hunter New England Local Health District","Health"]
["Illawarra Shoalhaven Local Health District","Health"]
["Institute of Medical Education and Training","Health"]
["Justice & Forensic Mental Health Network","Health"]
["Mid North Coast Local Health District","Health"]
["Murrumbidgee Local Health District","Health"]
["Nepean Blue Mountains Local Health District","Health"]
["Northern NSW Local Health District","Health"]
["Northern Sydney Local Health District","Health"]
["NSW Health Pathology","Health"]
["NSW Health Service","Health"]
["NSW Kids and Families","Health"]
["Nursing and Midwifery Council of NSW","Health"]
["Office of Health and Medical Research","Health"]
["Office of the Health Care Complaints Commission","Health"]
["Policy and Technical Support Unit","Health"]
["South Eastern Sydney Local Health District","Health"]
["South Western Sydney Local Health District","Health"]
["Southern NSW Local Health District","Health"]
["Sydney Childrens Hospital District","Health"]
["Sydney Local Health District","Health"]
["Western NSW Local Health District","Health"]
["Western Sydney Local Health District","Health"]
["Aboriginal Housing Office","Planning, Industry and Environment"]
["Agricultural Scientific Collections Trust","Planning, Industry and Environment"]
["Aquaculture Trust Fund","Planning, Industry and Environment"]
["Belgenny Farm Trust","Planning, Industry and Environment"]
["Biodiversity Conservation Trust","Planning, Industry and Environment"]
["Boards & Committees","Planning, Industry and Environment"]
["Centennial Park and Moore Park Trust","Planning, Industry and Environment"]
["Charter Fishing Trust Fund","Planning, Industry and Environment"]
["Chipping Norton Lake Authority","Planning, Industry and Environment"]
["Coal Innovation Fund","Planning, Industry and Environment"]
["Cobar Water Board","Planning, Industry and Environment"]
["Commercial Fishing Trust Fund","Planning, Industry and Environment"]
["Communication and Engagement","Planning, Industry and Environment"]
["Corporate Service Partners","Planning, Industry and Environment"]
["Crown","Planning, Industry and Environment"]
["Crown Lands Reserve Trust","Planning, Industry and Environment"]
["Crown Reserves Improvement Fund","Planning, Industry and Environment"]
["Department of Industry","Planning, Industry and Environment"]
["Department of Planning and Environment","Planning, Industry and Environment"]
["Environmental Trust","Planning, Industry and Environment"]
["Essential Energy","Planning, Industry and Environment"]
["Fish Conservation Trust Fund","Planning, Industry and Environment"]
["Forestry Corporation of NSW","Planning, Industry and Environment"]
["Game & Pest Management Trust Fund","Planning, Industry and Environment"]
["Game Council of New South Wales","Planning, Industry and Environment"]
["Heritage Council","Planning, Industry and Environment"]
["Heritage Stoneworks","Planning, Industry and Environment"]
["Hunter and Central Coast Development Corporation","Planning, Industry and Environment"]
["Hunter Water Corporation","Planning, Industry and Environment"]
["Jenolan Caves Reserve Trust","Planning, Industry and Environment"]
["Lake Illawarra Authority","Planning, Industry and Environment"]
["Landcom","Planning, Industry and Environment"]
["Land Admin Ministerial Corp","Planning, Industry and Environment"]
["Lands and Water","Planning, Industry and Environment"]
["Local Land Services","Planning, Industry and Environment"]
["Lord Howe Island Board","Planning, Industry and Environment"]
["Luna Park Reserve Trust","Planning, Industry and Environment"]
["Manly Hydraulics Laboratory","Planning, Industry and Environment"]
["Marine Parks Authority","Planning, Industry and Environment"]
["Milk Marketing Board","Planning, Industry and Environment"]
["National Parks and Wildlife Advisory Council","Planning, Industry and Environment"]
["Natural Resources Access Regulator","Planning, Industry and Environment"]
["Natural Resources Commission","Planning, Industry and Environment"]
["NSW Dams Safety Committee","Planning, Industry and Environment"]
["NSW Food Authority","Planning, Industry and Environment"]
["NSW Land and Housing Corporation","Planning, Industry and Environment"]
["NSW Office of Chief Scientist & Engineer","Planning, Industry and Environment"]
["NSW Rural Assistance Authority","Planning, Industry and Environment"]
["Office of Coal Seam Gas","Planning, Industry and Environment"]
["Office of Secretary - Industry","Planning, Industry and Environment"]
["Office of Strategic Lands","Planning, Industry and Environment"]
["Office of Valuer General","Planning, Industry and Environment"]
["Parramatta Park Trust","Planning, Industry and Environment"]
["Personnel Services","Planning, Industry and Environment"]
["Property and Advisory Group","Planning, Industry and Environment"]
["Property NSW","Planning, Industry and Environment"]
["Public Reserves Management Fund","Planning, Industry and Environment"]
["Public Works Advisory","Planning, Industry and Environment"]
["Recreational Fishing (Fresh) Trust Fund","Planning, Industry and Environment"]
["Recreational Fishing (Salt) Trust Fund","Planning, Industry and Environment"]
["Regional NSW","Planning, Industry and Environment"]
["Resource Regulator Compliance","Planning, Industry and Environment"]
["Resources and Energy","Planning, Industry and Environment"]
["Royal Botanic Gardens and Domain Trust","Planning, Industry and Environment"]
["Soil Conservation Service","Planning, Industry and Environment"]
["Sport Development Group","Planning, Industry and Environment"]
["Sport Infrastructure Group","Planning, Industry and Environment"]
["Sydney Harbour Foreshore Authority","Planning, Industry and Environment"]
["Sydney Olympic Park Authority","Planning, Industry and Environment"]
["Sydney Water Corporation","Planning, Industry and Environment"]
["Taronga Conservation Society Australia","Planning, Industry and Environment"]
["Teacher Housing Authority","Planning, Industry and Environment"]
["UrbanGrowth NSW Development Corporation","Planning, Industry and Environment"]
["Venues NSW","Planning, Industry and Environment"]
["Waste Assets Management Corporation","Planning, Industry and Environment"]
["Water NSW","Planning, Industry and Environment"]
["Western Sydney Parklands Trust","Planning, Industry and Environment"]
["Art Gallery of NSW","Premier and Cabinet"]
["Arts & Culture","Premier and Cabinet"]
["Arts NSW","Premier and Cabinet"]
["Audit Office of NSW","Premier and Cabinet"]
["Australian Museum","Premier and Cabinet"]
["Barangaroo Delivery Authority","Premier and Cabinet"]
["Cross Border Commissioner","Premier and Cabinet"]
["Culture Policy Branch","Premier and Cabinet"]
["Department of Premier & Cabinet","Premier and Cabinet"]
["Heritage Division","Premier and Cabinet"]
["Historic Houses Trust of NSW(Sydney Living Museums)","Premier and Cabinet"]
["Independent Commission Against Corruption","Premier and Cabinet"]
["Infrastructure NSW","Premier and Cabinet"]
["Inspector of the Independent Commission Against Corruption (ICAC)","Premier and Cabinet"]
["Inspector of the Law Enforcement Conduct Commission","Premier and Cabinet"]
["Law Enforcement Conduct Commission","Premier and Cabinet"]
["Legislative Assembly","Premier and Cabinet"]
["Legislative Council","Premier and Cabinet"]
["Library Council of NSW (State Library)","Premier and Cabinet"]
["Museum of Applied Arts and Sciences (Powerhouse Museum)","Premier and Cabinet"]
["Natural Resources Commission","Premier and Cabinet"]
["NSW Aboriginal Land Council","Premier and Cabinet"]
["NSW Electoral Commission","Premier and Cabinet"]
["NSW Industrial Relations","Premier and Cabinet"]
["NSW Ombudsman's Office","Premier and Cabinet"]
["NSW Parliament","Premier and Cabinet"]
["Office of General Counsel","Premier and Cabinet"]
["Parliamentary Counsel","Premier and Cabinet"]
["Screen NSW","Premier and Cabinet"]
["Sesquicentenary Govt Trst","Premier and Cabinet"]
["State Archives and Records Authority of NSW","Premier and Cabinet"]
["Strategy Policy and Coordination","Premier and Cabinet"]
["Sydney Cricket and Sports Ground Trust","Premier and Cabinet"]
["Sydney Opera House","Premier and Cabinet"]
["Advocate for Children and Young People","Stronger Communities"]
["Anzac Memorial Building Trust","Stronger Communities"]
["Civil and Administrative Tribunal of New South Wales","Stronger Communities"]
["Cluster Reform","Stronger Communities"]
["Community Services","Stronger Communities"]
["Corporate Services","Stronger Communities"]
["Courts & Tribunal Services","Stronger Communities"]
["FACS Business Services","Stronger Communities"]
["Fire and Rescue NSW","Stronger Communities"]
["Housing NSW","Stronger Communities"]
["HOUSING RESERVE FUND","Stronger Communities"]
["Institute of Sport","Stronger Communities"]
["Judicial Commission","Stronger Communities"]
["Justice Infrastructure","Stronger Communities"]
["Justice Services","Stronger Communities"]
["Justice Strategy & Policy","Stronger Communities"]
["Juvenile Justice","Stronger Communities"]
["Legal Aid Commission","Stronger Communities"]
["NSW Department of Communities and Justice","Stronger Communities"]
["NSW State Emergency Service","Stronger Communities"]
["NSW Trustee and Guardian","Stronger Communities"]
["Office for Police","Stronger Communities"]
["Office of Community Housing","Stronger Communities"]
["Office of Emergency Management","Stronger Communities"]
["Office of Sport CEO","Stronger Communities"]
["Office of the Children's Guardian","Stronger Communities"]
["Office of the Secretary","Stronger Communities"]
["Office of Veterans' Affairs","Stronger Communities"]
["OoS - Corporate Services","Stronger Communities"]
["Sport and Recreation","Stronger Communities"]
["Department of Transport","Transport"]
["Independent Transport Safety Regulator","Transport"]
["NSW Trains","Transport"]
["Office of Transport Safety Investigations","Transport"]
["State Transit Authority","Transport"]
["Sydney Trains","Transport"]
["Transport Project Division","Transport"]
["Crown Finance Entity","Treasury"]
["First State Superannuation Trustee Corporation","Treasury"]
["Fund for Jobs for NSW","Treasury"]
["Insurance and Care NSW (icare)","Treasury"]
["Lifetime Care and Support Authority of NSW","Treasury"]
["Long Service Corporation","Treasury"]
["NSW Industrial Relations","Treasury"]
["NSW Procurement","Treasury"]
["Office of Small Business Commissioner","Treasury"]
["Skills & Economic Development including Jobs for NSW","Treasury"]
["Treasury Corporation (TCorp)","Treasury"]
["Western City and Aerotropolis Authority","Treasury"]

{"sheet":"Named Ranges","index":7,"n_rows":74,"n_cols":59,"rows_kept":74,"cut":false,"hidden":true,"merged":[]}
[null,"Tab C. Engagements",null,"Tab C. Engagements",null,"Tab C. Engagements",null,"Tab C. Engagements",null,null,null,null,null,null,null,null,null,null,null,null,null,null,null,"Tab C. Engagements",null,null,null,null,null,null,null,null,null,null,null,"Tab C. Engagements",null,null,"Tab D., E. Resources",null,"Tab D., E. Resources",null,"Tab F. Expenses",null,"Tab F. Expenses",null,"Tab F. Expenses",null,"Tab C / D. Resources"]
[null,null,null,null,null,null,null,"Taxonomy 2017",{"$f":"COUNTA(I4:I88)","v":1},3,1,1,7,8,6,3,4,1,2,1,1,7,null,"As per new list of Agencies April 2022",{"$f":"COUNTA(Y$4:Y$89)","v":13},35,36,41,{"$f":"COUNTA(AC$4:AC$88)","v":71},25,{"$f":"COUNTA(AE$4:AE$89)","v":16},{"$f":"COUNTA(AF$4:AF$89)","v":12},{"$f":"COUNTA(AG$4:AG$89)","v":21},{"$f":"COUNTA(AH$4:AH$89)","v":10}]
[null,"The engagement was won trhough competitive bidding?",null,"Assignment / Secondement",null,"Pricing Model",null,"Engagement Type","Actuarial Services","Audit, Quality Assurance and Risk","Business Processes","Change Management","Financial Services","Government and Business Strategy","Human Resources","Marketing and Customer","Procurement and Supply Chain","Project Management","Taxation","Telecommunications","Transaction Services","ICT Consulting",null,"Cluster","Education","Stronger Communities","Customer Service","Health","Planning and Environment","Premier and Cabinet","Transport and Infrastructure","Treasury","Enterprise, Investment and Trade","Regional NSW",null,"Status",null,null,"Billable hours VS Non Billable hours",null,"Resource Billing Methodology",null,"Disbursement Billing Methodology",null,"Billable VS Non Billable",null,"Expense Type",null,"Resource Role",null,"Invoice Type",null,"FrameWork",null,"Framework key dates",null,"Above Capped Rate Approval (Y/N)",null,"New Engagement (or) Update to Engagement details ?"]
[null,"YES",null,"Assignment",null,"Fixed Price",null,"Actuarial Services","Actuarial Services","Internal/External Audit","Business Process Mapping/Re-engineering","Change Management","Accounting Services","Business Intelligence","Culture","Customer/Customer Experience","Category Management","Project Management","Goods and Services Tax (GST)","Telecommunications Consultancy","Transaction Services","ICT Strategy, Planning and Design",null,"Customer Service","Adult Migrant English Service(AMES)","Advocate for Children and Young People","Behavioural Insights Unit","Agency for Clinical Innovation","Aboriginal Housing Office","Aboriginal Affairs","Centennial Park and Moore Park Trust","Crown Finance Entity","Art Gallery of NSW Trust","Corporate - Regional NSW",null,"Open",null,null,"Billable",null,"Daily Rate",null,"Per Actuals",null,"Billable",null,"Accommodation",null,"Partner",null,"Resource",null,"2018+",null,"2018-01-01",null,"Y",null,"New Engagement"]
[null,"NO",null,"Secondment",null,"Time & Material - Capped",null,"Audit, Quality Assurance and Risk",null,"Probity Services",null,null,"Accounting Standards","Business Performance Reviews","Diversity","Market Research","Procurement/Sourcing",null,"Other Tax Services",null,null,"ICT Risk Management, Compliance and Security",null,"Education","Department of Education and Communities","Anzac Memorial Building Trust","Better Regulation Division","Ambulance Service of NSW","Agricultural Scientific Collections Trust","Arts & Culture","Department of Transport","First State Superannuation Trustee Corporation","Australian Museum Trust","Department of Primary Industries",null,"Closed",null,null,"Non Billable",null,"Hourly Rate",null,"Fixed % of project value",null,"Non Billable",null,"Airfares",null,"Director",null,"Expense",null,"2020+",null,"2020-01-05",null,"N",null,"Update to an already reported engagement"]
[null,null,null,null,null,"Time & Material - Uncapped",null,"Business Processes",null,"Risk Management",null,null,"Asset Management","Cost Management","Human Capital Management","Pricing","Procurement Accreditation",null,null,null,null,"ICT Policy",null,"Enterprise, Investment and Trade","Early Childhood Education and Care","Civil and Administrative Tribunal of New South Wales","Board of Surveying and Spatial Information","Bureau of Health Information","Aquaculture Trust Fund","Arts NSW","Greater Sydney Commission","Fund for Jobs for NSW","Create NSW","Department of Regional NSW",null,"On Hold",null,null,null,null,null,null,"Capped at % of the project value reconciled to actuals",null,null,null,"Car Hire",null,"Senior Manager",null,null,null,"2022+",null,"2022-04-01"]
[null,null,null,null,null,"Risk/Reward (Outcome Based Arrangement)",null,"Change Management",null,null,null,null,"Finance Process Reviews","Governance","Remuneration",null,"Supply Chain",null,null,null,null,"ICT Audits",null,"Health","NSW Education Standards Authority","Cluster Reform","Building Professionals Board","Cancer Institute NSW","Belgenny Farm Trust","Audit Office of NSW","Independent Transport Safety Regulator","Insurance and Care NSW (icare)","Destination NSW","Forestry Corporation of NSW",null,null,null,null,null,null,null,null,"No disbursements",null,null,null,"Couriers",null,"Manager",null,null,null,"No"]
[null,null,null,null,null,null,null,"Financial Services",null,null,null,null,"Financial/Economic Advisory Services","Organisational Design/Transformation","Retention",null,null,null,null,null,null,"ICT Change Management",null,"Planning and Environment","NSW Skills Board","Community Services","Corporate Services","Central Coast Local Health District","Biodiversity Conservation Trust","Barangaroo Delivery Authority","Infrastructure NSW","Lifetime Care and Support Authority of NSW","Institute of Sport","Local Land Services",null,null,null,null,null,null,null,null,null,null,null,null,"Database and Market Research",null,"Senior Consultant"]
[null,null,null,null,null,null,null,"Government and Business Strategy",null,null,null,null,"Forensic advisory","Strategic Business Case","Work Health and Safety (WHS)",null,null,null,null,null,null,"ICT Project Management",null,"Premier and Cabinet","NSW Veterinary Practitioners Board","Corporate Services","Customer, Delivery and Transformation","Clinical Excellence Commission","Boards & Committees","Cross Border Commissioner","NSW Trains","NSW Procurement","Investment NSW","NSW Farmers Association",null,null,null,null,null,null,null,null,null,null,null,null,"Disbursements Cap",null,"Consultant"]
[null,null,null,null,null,null,null,"Human Resources",null,null,null,null,"Valuations","Strategy Development and Planning",null,null,null,null,null,null,null,"ICT Training and Development",null,"Regional NSW","NSW Vocational Education & Accreditation Board (VETAB)","Corrective Services NSW","Data Analytics Centre","eHealth","Cemeteries and Crematoria NSW","Culture Policy Branch","Office of Transport Safety Investigations","NSW Treasury","Jobs Investment and Tourism","Primary Industries Ministerial Advisory Council",null,null,null,null,null,null,null,null,null,null,null,null,"Meals - Breakfast",null,"Analyst"]
[null,null,null,null,null,null,null,"Marketing and Customer",null,null,null,null,null,"Policy Review and Development",null,null,null,null,null,null,null,null,null,"Stronger Communities","Office of Education","Courts & Tribunal Services","Department of Customer Service","Far West Local Health District","Charter Fishing Trust Fund","Department of Premier & Cabinet","Place Management","Office of Small Business Commissioner","Library Council","Public Works Advisory",null,null,null,null,null,null,null,null,null,null,null,null,"Meals - Dinner"]
[null,null,null,null,null,null,null,"Procurement and Supply Chain",null,null,null,null,null,null,null,null,null,null,null,null,null,null,null,"Transport and Infrastructure","Public Schools","Crown Solicitor's Office","Fair Trading Administration Corporation","Health Administration Corporation","Chipping Norton Lake Authority","Independent Commission Against Corruption","Roads and Maritime Services","SAS Trustee Corporation","Liquor Gaming & Racing","Regional Growth NSW Development Corporation",null,null,null,null,null,null,null,null,null,null,null,null,"Meals - Lunch"]
[null,null,null,null,null,null,null,"Project Management",null,null,null,null,null,null,null,null,null,null,null,null,null,null,null,"Treasury","State Training Services","FACS Business Services","Home Building Compensation Fund","Health Education and Training Institute","Coal Innovation Fund","Inspector of the Independent Commission Against Corruption (ICAC)","Royal Botanic Gardens and Domain Trust","Skills & Economic Development including Jobs for NSW","NSW Chief Scientist and Engineer","Rural Assistance Authority",null,null,null,null,null,null,null,null,null,null,null,null,"Other Travel"]
[null,null,null,null,null,null,null,"Taxation",null,null,null,null,null,null,null,null,null,null,null,null,null,null,null,null,"TAFE","Fire and Rescue NSW","ICT & Digital Government","Health Infrastructure","Cobar Water Board","Inspector of the Law Enforcement Conduct Commission","State Transit Authority","Treasury Corporation (TCorp)","Office of the Chief Executive - Oos",null,null,null,null,null,null,null,null,null,null,null,null,null,"Photocopying"]
[null,null,null,null,null,null,null,"Telecommunications",null,null,null,null,null,null,null,null,null,null,null,null,null,null,null,null,"TAFE Commission","Housing NSW","Independent Pricing And Regulatory Tribunal of NSW","Health Professional Councils Authority","Commercial Fishing Trust Fund","Law Enforcement Conduct Commission","Sydney Metro","Western City and Aerotropolis Authority","Office of the Greyhound Welfare and Integrity Commission",null,null,null,null,null,null,null,null,null,null,null,null,null,"Room Hire & catering"]
[null,null,null,null,null,null,null,"Transaction Services",null,null,null,null,null,null,null,null,null,null,null,null,null,null,null,null,"Training Services NSW","Housing Reserve Fund","Information and Privacy Commission","Health Protection NSW","Communication and Engagement","Legislative Assembly","Sydney Trains",null,"Policy and Planning",null,null,null,null,null,null,null,null,null,null,null,null,null,"Secretarial & clerical"]
[null,null,null,null,null,null,null,"ICT Consulting",null,null,null,null,null,null,null,null,null,null,null,null,null,null,null,null,null,"Judicial Commission","Lands & Property Information","Health Reform Transitional Organisation Southern","Corporate Service Partners","Legislative Council","Transport for NSW",null,"Regional Delivery",null,null,null,null,null,null,null,null,null,null,null,null,null,"Stationery & postage"]
[null,null,null,null,null,null,null,null,null,null,null,null,null,null,null,null,null,null,null,null,null,null,null,null,null,"Justice Infrastructure","Long Service Corporation","Health System Support Group","Crown","NSW Aboriginal Land Council","Transport Project Division",null,"State Archives",null,null,null,null,null,null,null,null,null,null,null,null,null,"Taxi"]
[null,null,null,null,null,null,null,null,null,null,null,null,null,null,null,null,null,null,null,null,null,null,null,null,null,"Justice Services","Mine Subsidence Board","HealthShare NSW","Crown Lands Reserve Trust","NSW Electoral Commission","Western Sydney Parklands Trust",null,"Sydney Cricket & Sports Ground Trust",null,null,null,null,null,null,null,null,null,null,null,null,null,"Telephone & Fax"]
[null,null,null,null,null,null,null,null,null,null,null,null,null,null,null,null,null,null,null,null,null,null,null,null,null,"Justice Strategy & Policy","NSW Fair Trading","Hunter New England Local Health District","Crown Reserves Improvement Fund","NSW Industrial Relations",null,null,"Sydney Living Museums",null,null,null,null,null,null,null,null,null,null,null,null,null,"Tips & Gratuities"]
[null,null,null,null,null,null,null,null,null,null,null,null,null,null,null,null,null,null,null,null,null,null,null,null,null,"Juvenile Justice","NSW Fair Trading - Emergency Services Levy Insurance Monitor","Illawarra Shoalhaven Local Health District","Department of Industry","NSW Ombudsman's Office",null,null,"Sydney Opera House Trust",null,null,null,null,null,null,null,null,null,null,null,null,null,"Wireless Internet Fees Off Site"]
[null,null,null,null,null,null,null,null,null,null,null,null,null,null,null,null,null,null,null,null,null,null,null,null,null,"Legal Aid Commission","NSW Government Telecommunications Authority","Institute of Medical Education and Training","Department of Planning and Environment","NSW Parliament",null,null,"Trustees of the Museum of Applied Arts Sciences",null,null,null,null,null,null,null,null,null,null,null,null,null,"Wireless Internet Fees On (NSW Govt) Site"]
[null,null,null,null,null,null,null,null,null,null,null,null,null,null,null,null,null,null,null,null,null,null,null,null,null,"Multicultural NSW","NSW Land Registry Services","Justice & Forensic Mental Health Network","Environment Protection Authority","Office of General Counsel",null,null,"Venues NSW",null,null,null,null,null,null,null,null,null,null,null,null,null,"ICT - Cloud"]
[null,null,null,null,null,null,null,null,null,null,null,null,null,null,null,null,null,null,null,null,null,null,null,null,null,"NSW Crime Commission","NSW Registry of Births, Deaths and Marriages","Mental Health Commission","Environmental Trust","Parliamentary Counsel",null,null,"Western Parkland City Authority",null,null,null,null,null,null,null,null,null,null,null,null,null,"ICT - Hardware"]
[null,null,null,null,null,null,null,null,null,null,null,null,null,null,null,null,null,null,null,null,null,null,null,null,null,"NSW Department of Communities and Justice","Office of the Customer Service Commissioner","Mid North Coast Local Health District","Essential Energy","Public Service Commission",null,null,null,null,null,null,null,null,null,null,null,null,null,null,null,null,"ICT - Implementation Services"]
[null,null,null,null,null,null,null,null,null,null,null,null,null,null,null,null,null,null,null,null,null,null,null,null,null,"NSW Police Force","Office of the Registrar General","Ministry of Health","Fish Conservation Trust Fund","Screen NSW",null,null,null,null,null,null,null,null,null,null,null,null,null,null,null,null,"ICT - Managed Services"]
[null,null,null,null,null,null,null,null,null,null,null,null,null,null,null,null,null,null,null,null,null,null,null,null,null,"NSW Rural Fire Service","Office of the Secretary","Murrumbidgee Local Health District","Game & Pest Management Trust Fund","Sesquicentenary Govt Trst",null,null,null,null,null,null,null,null,null,null,null,null,null,null,null,null,"ICT - Software"]
[null,null,null,null,null,null,null,null,null,null,null,null,null,null,null,null,null,null,null,null,null,null,null,null,null,"NSW State Emergency Service","OFS Personnel Services","Nepean Blue Mountains Local Health District","Game Council of New South Wales","Strategy Policy and Coordination",null,null,null,null,null,null,null,null,null,null,null,null,null,null,null,null,"ICT - Telecommunications"]
[null,null,null,null,null,null,null,null,null,null,null,null,null,null,null,null,null,null,null,null,null,null,null,null,null,"NSW Trustee and Guardian","Responsible Gambling Fund","Northern NSW Local Health District","Heritage Council",null,null,null,null,null,null,null,null,null,null,null,null,null,null,null,null,null,"ICT - Other"]
[null,null,null,null,null,null,null,null,null,null,null,null,null,null,null,null,null,null,null,null,null,null,null,null,null,"Office for Police","Revenue NSW","Northern Sydney Local Health District","Heritage Division"]
[null,null,null,null,null,null,null,null,null,null,null,null,null,null,null,null,null,null,null,null,null,null,null,null,null,"Office of Community Housing","SafeWork NSW","NSW Health Pathology","Heritage Stoneworks"]
[null,null,null,null,null,null,null,null,null,null,null,null,null,null,null,null,null,null,null,null,null,null,null,null,null,"Office of Emergency Management","Service NSW","NSW Health Service","Hunter and Central Coast Development Corporation"]
[null,null,null,null,null,null,null,null,null,null,null,null,null,null,null,null,null,null,null,null,null,null,null,null,null,"Office of the Children's Guardian","Spatial Services (Spatial Services)","NSW Kids and Families","Hunter Water Corporation"]
[null,null,null,null,null,null,null,null,null,null,null,null,null,null,null,null,null,null,null,null,null,null,null,null,null,"Office of the Director of Public Prosecutions","State Insurance Regulatory Authority (SIRA)","Nursing and Midwifery Council of NSW","Jenolan Caves Reserve Trust"]
[null,null,null,null,null,null,null,null,null,null,null,null,null,null,null,null,null,null,null,null,null,null,null,null,null,"Office of the Secretary","Strategic Communications","Office of Health and Medical Research","Lake Illawarra Authority"]
[null,null,null,null,null,null,null,null,null,null,null,null,null,null,null,null,null,null,null,null,null,null,null,null,null,"Office of Veterans' Affairs","Subsidence Advisory NSW","Office of the Health Care Complaints Commission","Land Admin Ministerial Corp"]
[null,null,null,null,null,null,null,null,null,null,null,null,null,null,null,null,null,null,null,null,null,null,null,null,null,"Resilience NSW","Workcover Authority Fund","Policy and Technical Support Unit","Landcom"]
[null,null,null,null,null,null,null,null,null,null,null,null,null,null,null,null,null,null,null,null,null,null,null,null,null,"Sport and Recreation","Workers Compensation Commission of NSW","South Eastern Sydney Local Health District","Lands and Water"]
[null,null,null,null,null,null,null,null,null,null,null,null,null,null,null,null,null,null,null,null,null,null,null,null,null,null,"Workers Compensation Independent Review Officer","South Western Sydney Local Health District","Lord Howe Island Board"]
[null,null,null,null,null,null,null,null,null,null,null,null,null,null,null,null,null,null,null,null,null,null,null,null,null,null,null,"Southern NSW Local Health District","Luna Park Reserve Trust"]
[null,null,null,null,null,null,null,null,null,null,null,null,null,null,null,null,null,null,null,null,null,null,null,null,null,null,null,"Sydney Childrens Hospital District","Manly Hydraulics Laboratory"]
[null,null,null,null,null,null,null,null,null,null,null,null,null,null,null,null,null,null,null,null,null,null,null,null,null,null,null,"Sydney Local Health District","Marine Parks Authority"]
[null,null,null,null,null,null,null,null,null,null,null,null,null,null,null,null,null,null,null,null,null,null,null,null,null,null,null,"Western NSW Local Health District","Milk Marketing Board"]
[null,null,null,null,null,null,null,null,null,null,null,null,null,null,null,null,null,null,null,null,null,null,null,null,null,null,null,"Western Sydney Local Health District","National Parks and Wildlife Advisory Council"]
[null,null,null,null,null,null,null,null,null,null,null,null,null,null,null,null,null,null,null,null,null,null,null,null,null,null,null,null,"Natural Resources Access Regulator"]
[null,null,null,null,null,null,null,null,null,null,null,null,null,null,null,null,null,null,null,null,null,null,null,null,null,null,null,null,"Natural Resources Commission"]
[null,null,null,null,null,null,null,null,null,null,null,null,null,null,null,null,null,null,null,null,null,null,null,null,null,null,null,null,"NSW Dams Safety Committee"]
[null,null,null,null,null,null,null,null,null,null,null,null,null,null,null,null,null,null,null,null,null,null,null,null,null,null,null,null,"NSW Food Authority"]
[null,null,null,null,null,null,null,null,null,null,null,null,null,null,null,null,null,null,null,null,null,null,null,null,null,null,null,null,"NSW Land and Housing Corporation"]
[null,null,null,null,null,null,null,null,null,null,null,null,null,null,null,null,null,null,null,null,null,null,null,null,null,null,null,null,"NSW Rural Assistance Authority"]
[null,null,null,null,null,null,null,null,null,null,null,null,null,null,null,null,null,null,null,null,null,null,null,null,null,null,null,null,"Office of Coal Seam Gas"]
[null,null,null,null,null,null,null,null,null,null,null,null,null,null,null,null,null,null,null,null,null,null,null,null,null,null,null,null,"Office of Local Government"]
[null,null,null,null,null,null,null,null,null,null,null,null,null,null,null,null,null,null,null,null,null,null,null,null,null,null,null,null,"Office of Secretary - Industry"]
[null,null,null,null,null,null,null,null,null,null,null,null,null,null,null,null,null,null,null,null,null,null,null,null,null,null,null,null,"Office of Strategic Lands"]
[null,null,null,null,null,null,null,null,null,null,null,null,null,null,null,null,null,null,null,null,null,null,null,null,null,null,null,null,"Office of Valuer General"]
[null,null,null,null,null,null,null,null,null,null,null,null,null,null,null,null,null,null,null,null,null,null,null,null,null,null,null,null,"Parramatta Park Trust"]
[null,null,null,null,null,null,null,null,null,null,null,null,null,null,null,null,null,null,null,null,null,null,null,null,null,null,null,null,"Personnel Services"]
[null,null,null,null,null,null,null,null,null,null,null,null,null,null,null,null,null,null,null,null,null,null,null,null,null,null,null,null,"Property and Advisory Group"]
[null,null,null,null,null,null,null,null,null,null,null,null,null,null,null,null,null,null,null,null,null,null,null,null,null,null,null,null,"Property NSW"]
[null,null,null,null,null,null,null,null,null,null,null,null,null,null,null,null,null,null,null,null,null,null,null,null,null,null,null,null,"Public Reserves Management Fund"]
[null,null,null,null,null,null,null,null,null,null,null,null,null,null,null,null,null,null,null,null,null,null,null,null,null,null,null,null,"Recreational Fishing (Fresh) Trust Fund"]
[null,null,null,null,null,null,null,null,null,null,null,null,null,null,null,null,null,null,null,null,null,null,null,null,null,null,null,null,"Recreational Fishing (Salt) Trust Fund"]
[null,null,null,null,null,null,null,null,null,null,null,null,null,null,null,null,null,null,null,null,null,null,null,null,null,null,null,null,"Resource Regulator Compliance"]
[null,null,null,null,null,null,null,null,null,null,null,null,null,null,null,null,null,null,null,null,null,null,null,null,null,null,null,null,"Resources and Energy"]
[null,null,null,null,null,null,null,null,null,null,null,null,null,null,null,null,null,null,null,null,null,null,null,null,null,null,null,null,"Soil Conservation Service"]
[null,null,null,null,null,null,null,null,null,null,null,null,null,null,null,null,null,null,null,null,null,null,null,null,null,null,null,null,"Sport Development Group"]
[null,null,null,null,null,null,null,null,null,null,null,null,null,null,null,null,null,null,null,null,null,null,null,null,null,null,null,null,"Sport Infrastructure Group"]
[null,null,null,null,null,null,null,null,null,null,null,null,null,null,null,null,null,null,null,null,null,null,null,null,null,null,null,null,"Sydney Harbour Foreshore Authority"]
[null,null,null,null,null,null,null,null,null,null,null,null,null,null,null,null,null,null,null,null,null,null,null,null,null,null,null,null,"Sydney Olympic Park Authority"]
[null,null,null,null,null,null,null,null,null,null,null,null,null,null,null,null,null,null,null,null,null,null,null,null,null,null,null,null,"Sydney Water Corporation"]
[null,null,null,null,null,null,null,null,null,null,null,null,null,null,null,null,null,null,null,null,null,null,null,null,null,null,null,null,"Taronga Conservation Society Australia"]
[null,null,null,null,null,null,null,null,null,null,null,null,null,null,null,null,null,null,null,null,null,null,null,null,null,null,null,null,"Teacher Housing Authority"]
[null,null,null,null,null,null,null,null,null,null,null,null,null,null,null,null,null,null,null,null,null,null,null,null,null,null,null,null,"UrbanGrowth NSW Development Corporation"]
[null,null,null,null,null,null,null,null,null,null,null,null,null,null,null,null,null,null,null,null,null,null,null,null,null,null,null,null,"Waste Assets Management Corporation"]